Workbook

Sheet Accueil
F1: Avec le seul tableau respectant le règlement jusqu'au tirage au sort !
A8: Les Scores
A10: Inscrivez vos pronostics ou les résultats des matchs dans les tableaux ci-dessous.
A11: Les calculs se feront automatiquement.
A12: Et les équipes se positionneront dans le tableau final.
A14: Publiez vos pronostics et obtenez votre classement parmi tous les concurrents.
A25: Les Pronostics
A27: Récupérez les pronostics des autres utilisateurs pour suivre les tendances.
A35: Méthode de calcul du rang
A37: Le calcul du rang se fait à partir de la dernière publication de vos pronostics.
A38: Seuls les pronostics pour les matchs à venir sont pris en compte.
A40: Le nombre de matchs correctement pronostiqués détermine le rang.
A41: En cas d’égalité c’est le nombre total de matchs pronostiqués qui sera déterminant.
A42: Si l’égalité persiste le joueur le plus ancien (date de première publication) sera privilégié.

Sheet Scores
E1: =Data!T45 -> Faites vos paris entre amis ! | K1: =Data!T49 -> Avec le seul tableau respectant le règlement jusqu'au tirage au sort !
E2: =Data!T46 -> Inscrivez vos pronostics ou les résultats des matchs dans les tableaux ci-dessous. | Z2: =Data!T50 -> Si vous n'arrivez pas à lire correctement ce tableau :
E3: =Data!T47 -> Les calculs se feront automatiquement.
E4: =Data!T48 -> Et les équipes se positionneront dans le tableau final. | Z4: -> Téléchargez gratuitement une version d'essai d'Office 2010
Z5: ->Profitez des promos Office 2010 du moment !
B6: =Data!T29 -> Groupe A | S6: =Data!T33 -> Quarts de finale | W6: Pen | AA6: =Data!T41 -> Statistiques | AJ6: AJ | AK6: AK | AL6: AL | AM6: AM | AN6: AN | AO6: AO | AP6: AP | AQ6: AQ | AR6: AR | AS6: AS | AT6: AT | AU6: AU | AV6: AV | AW6: AW | AX6: AX | AY6: AY | AZ6: AZ | BA6: BA | BB6: BB | BC6: BC | BD6: BD | BE6: BE | BF6: BF | BG6: BG | BH6: BH | BI6: BI | BJ6: BJ | BK6: BK | BL6: BL | BM6: BM | BN6: BN | BO6: BO | BP6: BP | BQ6: BO | BR6: BP | BT6: =IF($BL8,IF(E7-F7<0,-0.5,IF(F7-E7<0,0.5,0)),IF($BH8,IF($AY8>$AY9,-0.5,IF($AY8<$AY9,0.5,0)),IF($BI8,IF($AZ8>$AZ9,-0.5, IF($AZ8<$AZ9,0.5,0)),0))) -> 0 | BV6: =F11-E11 -> -1
B7: 2012-06-08 | C7: 18:00:00 | D7: =Data!T2 -> Pologne | E7: 1 | F7: 1 | G7: =Data!T3 -> Grèce | J7: =Data!T29 -> Groupe A | K7: =Data!T38 -> Pts | L7: =Data!T39 -> BP | M7: =Data!T40 -> BC | N7: ="+/-" -> +/- | S7: 2012-06-21 | T7: 20:45:00 | U7: =IF(OR(I9<2),Data!T27,T(J8)) -> Rép.Tchèque | AA7: =Data!T42 -> Succès | AB7: =IF(ISBLANK(Data!T21),0,Data!T21/100) -> 0.06 | AK7: Rank | AL7: Team | AM7: Pts | AN7: GF | AO7: GA | AP7: GD | AQ7: Ag1 | AR7: Ag2 | AS7: Ag3 | AT7: Ag4 | AU7: Sp1 | AV7: Sp2 | AW7: Sp3 | AX7: Sp4 | AY7: T123 | AZ7: T124 | BA7: T134 | BB7: T234 | BC7: Rk1 | BD7: Rk2 | BE7: Rk3 | BF7: Rk4 | BG7: T1234 | BH7: T123 | BI7: T124 | BJ7: T134 | BK7: T234 | BL7: T12 | BM7: T13 | BN7: T14 | BO7: T23 | BP7: T24 | BQ7: T34 | BR7: NoT | BS7: sRk1 | BT7: sRk2 | BU7: sRk3 | BV7: sRk4 | BW7: T1x | BX7: T2x | BY7: T3x | BZ7: T4x | CA7: Règle d | CB7: T1x | CC7: T2x | CD7: T3x | CE7: T4x | CF7: T1234 | CG7: T123 | CH7: T124 | CI7: T134 | CJ7: T234 | CK7: TXXX?
B8: 2012-06-08 | C8: 20:45:00 | D8: =Data!T4 -> Russie | E8: 4 | F8: 1 | G8: =Data!T5 -> Rép.Tchèque | I8: =AH8 -> 1 | J8: =INDEX(AL8:AL11,MATCH(AJ8,$AK8:$AK11,0)) -> Rép.Tchèque | K8: =INDEX(AM8:AM11,MATCH(AJ8,$AK8:$AK11,0)) -> 6 | L8: =INDEX(AN8:AN11,MATCH(AJ8,$AK8:$AK11,0)) -> 4 | M8: =INDEX(AO8:AO11,MATCH(AJ8,$AK8:$AK11,0)) -> 5 | N8: =INDEX(AP8:AP11,MATCH(AJ8,$AK8:$AK11,0)) -> -1 | U8: =IF(OR(I18<3,I17<2),Data!T27,T(J17)) -> Portugal | AA8: =Data!T43 -> Position | AB8: =IF(ISBLANK(Data!T22),"",Data!T22) -> 367 | AH8: 1 | AI8: =ROUND(AJ8,0) -> 1 | AJ8: =MIN(AK8:AK11) -> 0.98 | AK8: =SUM(BC8:BF8)+2.45 -> 3.95 | AL8: =D7 -> Pologne | AM8: =SUM(AQ8:AT8) -> 2 | AN8: =E7+E9+F11 -> 2 | AO8: =F7+F9+E11 -> 3 | AP8: =AN8-AO8 -> -1 | AQ8: x | AR8: =IF(ISBLANK(E7),0,IF(E7>F7,3,IF(E7=F7,1,0))) -> 1 | AS8: =IF(ISBLANK(E9),0,IF(E9>F9,3,IF(E9=F9,1,0))) -> 1 | AT8: =IF(ISBLANK(F11),0,IF(F11>E11,3,IF(F11=E11,1,0))) -> 0 | AU8: x | AV8: =(10*(AP8-AP9)+AN8-AN9>0) -> FALSE | AW8: =10*(AP8-AP10)+AN8-AN10>0 -> FALSE | AX8: =10*(AP8-AP11)+AN8-AN11>0 -> FALSE | AY8: =10000*(AR8+AS8)+(E9-F9+E7-F7)*100+(E9+E7) -> 20002 | AZ8: =10000*(AR8+AT8)+(E7-F7+F11-E11)*100+(E7+F11) -> 9901 | BA8: =10000*(AS8+AT8)+(E9-F9+F11-E11)*100+(E9+F11) -> 9901 | BB8: x | BC8: x | BD8: =IF($AM8>$AM9,-0.5,IF($AM9>$AM8,0.5,IF(CK8=1,CC8,IF(BX8<>0,BX8,IF(AV8,-0.5,IF(AU9,0.5,BT8)))))) -> 0.5 | BE8: =IF($AM8>$AM10,-0.5,IF($AM10>$AM8,0.5,IF(CK8=1,CD8,IF(BY8<>0,BY8,IF(AW8,-0.5,IF(AU10,0.5,BU8)))))) -> 0.5 | BF8: =IF($AM8>$AM11,-0.5,IF($AM11>$AM8,0.5,IF(CK8=1,CE8,IF(BZ8<>0,BZ8,IF(AX8,-0.5,IF(AU11,0.5,BV8)))))) -> 0.5 | BG8: =AND(AND(AM8=AM9,AM9=AM10,AM10=AM11),AND(AN8=AN9,AN9=AN10,AN10=AN11),AND(AO8=AO9,AO9=AO10,AO10=AO11)) -> FALSE | BH8: =AND(NOT(BG8),AM8=AM9,AM8=AM10,AN8=AN9,AN8=AN10,AO8=AO9,AO8=AO10) -> FALSE | BI8: =AND(NOT(BG8),AM8=AM9,AM8=AM11,AN8=AN9,AN8=AN11,AO8=AO9,AO8=AO11) -> FALSE | BJ8: =AND(NOT(BG8),AM8=AM10,AM8=AM11,AN8=AN10,AN8=AN11,AO8=AO10,AO8=AO11) -> FALSE | BK8: =AND(NOT(BG8),AM9=AM10,AM9=AM11,AN9=AN10,AN9=AN11,AO9=AO10,AO9=AO11) -> FALSE | BL8: =AND(NOT(BG8),NOT(BH8),NOT(BI8),AM8=AM9,AN8=AN9,AO8=AO9) -> FALSE | BM8: =AND(NOT(BG8),NOT(BH8),NOT(BJ8),AM8=AM10,AN8=AN10,AO8=AO10) -> FALSE | BN8: =AND(NOT(BG8),NOT(BI8),NOT(BJ8),AM8=AM11,AN8=AN11,AO8=AO11) -> FALSE | BO8: =AND(NOT(BG8),NOT(BH8),NOT(BK8),AM9=AM10,AN9=AN10) -> FALSE | BP8: =AND(NOT(BG8),NOT(BI8),NOT(BK8),AM9=AM11,AN9=AN11,AO9=AO11) -> FALSE | BQ8: =AND(NOT(BG8),NOT(BJ8),NOT(BK8),AM10=AM11,AN10=AN11,AO10=AO11) -> FALSE | BR8: =AND(NOT(BG8:BQ8)) -> TRUE | BS8: x | BT8: =IF($BL8,IF(F7-E7<0,-0.5,IF(E7-F7<0,0.5,0)),IF($BH8,IF($AY8>$AY9,-0.5,IF($AY8<$AY9,0.5,0)),IF($BI8,IF($AZ8>$AZ9,-0.5, IF($AZ8<$AZ9,0.5,0)),0))) -> 0 | BU8: =IF($BM8,IF(F9-E9<0,-0.5,IF(E9-F9<0,0.5,0)),IF($BH8,IF($AY8>$AY10,-0.5,IF($AY8<$AY10,0.5,0)),IF($BJ8,IF($BA8>$BA10,-0.5,IF($BA8<$BA10,0.5,0)),0))) -> 0 | BV8: =IF($BN8,IF(E11-F11<0,-0.5,IF(F11-E11<0,0.5,0)),IF($BI8,IF($AZ8>$AZ11,-0.5,IF($AZ8<$AZ11,0.5,0)),IF($BJ8,IF($BA8>$BA11,-0.5, IF($BA8<$BA11,0.5,0)),0))) -> 0 | BW8: x | BX8: =IF(ISBLANK(E7),0,IF(AR8=0,0.5,IF(AR8=3,-0.5,0))) -> 0 | BY8: =IF(ISBLANK(E9),0,IF(AS8=0,0.5,IF(AS8=3,-0.5,0))) -> 0 | BZ8: =IF(ISBLANK(F11),0,IF(AT8=0,0.5,IF(AT8=3,-0.5,0))) -> 0.5 | CB8: x | CC8: =IF(100*AP8+AN8>=MAX(100*AP11+AN11,100*AP10+AN10),-0.5, 0.5) -> 0.5 | CD8: =IF(100*AP8+AN8>=MAX(100*AP9+AN9,100*AP11+AN11),-0.5, 0.5) -> 0.5 | CE8: =IF(100*AP8+AN8>=MAX(100*AP9+AN9,100*AP10+AN10),-0.5, 0.5) -> 0.5 | CF8: =AND(AM8=AM9,AM9=AM10,AM10=AM11) -> FALSE | CG8: =IF(AND(NOT(CF8),AM8=AM9,AM8=AM10),1,0) -> 0 | CH8: =IF(AND(NOT(CF8),AM8=AM9,AM8=AM11),1,0) -> 0 | CI8: =IF(AND(NOT(CF8),AM8=AM10,AM8=AM11),1,0) -> 0 | CJ8: =IF(AND(NOT(CF8),AM9=AM10,AM9=AM11),1,0) -> 0 | CK8: =IF(OR(CH8,CI8,CJ8),1,0) -> 0
B9: 2012-06-12 | C9: 20:45:00 | D9: =D7 -> Pologne | E9: 1 | F9: 1 | G9: =D8 -> Russie | I9: =AH9 -> 2 | J9: =INDEX(AL8:AL11,MATCH(AJ9,$AK8:$AK11,0)) -> Grèce | K9: =INDEX(AM8:AM11,MATCH(AJ9,$AK8:$AK11,0)) -> 4 | L9: =INDEX(AN8:AN11,MATCH(AJ9,$AK8:$AK11,0)) -> 3 | M9: =INDEX(AO8:AO11,MATCH(AJ9,$AK8:$AK11,0)) -> 3 | N9: =INDEX(AP8:AP11,MATCH(AJ9,$AK8:$AK11,0)) -> 0 | S9: 2012-06-22 | T9: 20:45:00 | U9: =IF(OR(I17<2),Data!T27,T(J16)) -> Allemagne | AA9: =Data!T44 -> Total | AB9: =IF(ISBLANK(Data!T23),"",Data!T23) -> 2757 | AH9: =IF(ROUND(AJ9,0)=ROUND(AJ8,0),AH8,2) -> 2 | AI9: =ROUND(AJ9,0) -> 2 | AJ9: =MAX(MIN(AK8:AK10),MIN(AK8,AK9,AK11),MIN(AK8,AK10,AK11),MIN(AK9:AK11)) -> 1.96 | AK9: =SUM(BC9:BF9)+2.46 -> 1.96 | AL9: =G7 -> Grèce | AM9: =SUM(AQ9:AT9) -> 4 | AN9: =F7+F10+E12 -> 3 | AO9: =E7+E10+F12 -> 3 | AP9: =AN9-AO9 -> 0 | AQ9: =IF(ISBLANK(F7),0,IF(AR8=3,0,IF(AR8=1,1,3))) -> 1 | AR9: x | AS9: =IF(ISBLANK(E12),0,IF(AR10=3,0,IF(AR10=1,1,3))) -> 3 | AT9: =IF(ISBLANK(F10),0,IF(F10>E10,3,IF(F10=E10,1,0))) -> 0 | AU9: =(10*(AP8-AP9)+AN8-AN9<0) -> TRUE | AV9: x | AW9: =10*(AP9-AP10)+AN9-AN10>0 -> FALSE | AX9: =10*(AP9-AP11)+AN9-AN11>0 -> TRUE | AY9: =10000*(AQ9+AS9)+(F7-E7+E12-F12)*100+(F7+E12) -> 40102 | AZ9: =10000*(AQ9+AT9)+(F7-E7+F10-E10)*100+(F7+F10) -> 9902 | BA9: x | BB9: =10000*(AS9+AT9)+(F10-E10+E12-F12)*100+(F10+E12) -> 30002 | BC9: =IF($AM8>$AM9,0.5,IF($AM9>$AM8,-0.5,IF(CK8=1,CB9,IF(BW9<>0,BW9,IF(AV8,0.5,IF(AU9,-0.5,BT8)))))) -> -0.5 | BD9: x | BE9: =IF($AM9>$AM10,-0.5,IF($AM10>$AM9,0.5,IF(CK8=1,CD9,IF(BY9<>0,BY9,IF(AW9,-0.5,IF(AV10,0.5,BU9)))))) -> -0.5 | BF9: =IF($AM9>$AM11,-0.5,IF($AM11>$AM9,0.5,IF(CK8=1,CE9,IF(BZ9<>0,BZ9,IF(AX9,-0.5,IF(AV11,0.5,BV9)))))) -> 0.5 | BT9: x | BU9: =IF($BO8,IF(F12-E12<0,-0.5,IF(E12-F12<0,0.5,0)),IF($BH8,IF($AY9>$AY10,-0.5,IF($AY9<$AY10,0.5,0)),IF($BK8,IF($BB9>$BB10,-0.5,IF($BB9<$BB10,0.5,0)),0))) -> 0 | BV9: =IF($BP8,IF(E10-F10<0,-0.5,IF(F10-E10<0,0.5,0)),IF($BI8,IF($AZ9>$AZ11,-0.5,IF($AZ9<$AZ11,0.5,0)),IF($BK8,IF($BB9>$BB11,-0.5,IF($BB9<$BB11,0.5,0)),0))) -> 0 | BW9: =-BX8 -> 0 | BX9: x | BY9: =IF(ISBLANK(E12),0,IF(AS9=0,0.5,IF(AS9=3,-0.5,0))) -> -0.5 | BZ9: =IF(ISBLANK(F10),0,IF(AT9=0,0.5,IF(AT9=3,-0.5,0))) -> 0.5 | CB9: =IF(100*AP9+AN9>=MAX(100*AP10+AN10,100*AP11+AN11),-0.5, 0.5) -> 0.5 | CC9: x | CD9: =IF(100*AP9+AN9>=MAX(100*AP8+AN8,100*AP11+AN11),-0.5, 0.5) -> -0.5 | CE9: =IF(100*AP9+AN9>=MAX(100*AP10+AN10,100*AP8+AN8),-0.5, 0.5) -> 0.5
B10: 2012-06-12 | C10: 18:00:00 | D10: =G8 -> Rép.Tchèque | E10: 2 | F10: 1 | G10: =G7 -> Grèce | I10: =AH10 -> 3 | J10: =INDEX(AL8:AL11,MATCH(AJ10,$AK8:$AK11,0)) -> Russie | K10: =INDEX(AM8:AM11,MATCH(AJ10,$AK8:$AK11,0)) -> 4 | L10: =INDEX(AN8:AN11,MATCH(AJ10,$AK8:$AK11,0)) -> 5 | M10: =INDEX(AO8:AO11,MATCH(AJ10,$AK8:$AK11,0)) -> 3 | N10: =INDEX(AP8:AP11,MATCH(AJ10,$AK8:$AK11,0)) -> 2 | U10: =IF(OR(I10<3,I9<2),Data!T27,T(J9)) -> Grèce | AH10: =IF(ROUND(AJ10,0)=ROUND(AJ9,0),AH9,3) -> 3 | AI10: =ROUND(AJ10,0) -> 3 | AJ10: =MIN(MAX(AK8:AK10),MAX(AK8,AK9,AK11),MAX(AK8,AK10,AK11),MAX(AK9:AK11)) -> 2.97 | AK10: =SUM(BC10:BF10)+2.47 -> 2.97 | AL10: =D8 -> Russie | AM10: =SUM(AQ10:AT10) -> 4 | AN10: =E8+F9+F12 -> 5 | AO10: =F8+E9+E12 -> 3 | AP10: =AN10-AO10 -> 2 | AQ10: =IF(ISBLANK(F9),0,IF(AS8=3,0,IF(AS8=1,1,3))) -> 1 | AR10: =IF(ISBLANK(F12),0,IF(F12>E12,3,IF(F12=E12,1,0))) -> 0 | AS10: x | AT10: =IF(ISBLANK(E8),0,IF(E8>F8,3,IF(E8=F8,1,0))) -> 3 | AU10: =10*(AP8-AP10)+AN8-AN10<0 -> TRUE | AV10: =10*(AP9-AP10)+AN9-AN10<0 -> TRUE | AW10: x | AX10: =10*(AP10-AP11)+AN10-AN11>0 -> TRUE | AY10: =10000*(AQ10+AR10)+(F9-E9+F12-E12)*100+(F9+F12) -> 9901 | AZ10: x | BA10: =10000*(AQ10+AT10)+(E8-F8+F9-E9)*100+(E8+F9) -> 40305 | BB10: =10000*(AR10+AT10)+(E8-F8+F12-E12)*100+(E8+F12) -> 30204 | BC10: =IF($AM8>$AM10,0.5,IF($AM10>$AM8,-0.5,IF(CK8=1,CB10,IF(BW10<>0,BW10,IF(AW8,0.5,IF(AU10,-0.5,BU8)))))) -> -0.5 | BD10: =IF($AM9>$AM10,0.5,IF($AM10>$AM9,-0.5,IF(CK8=1,CC10,IF(BX10<>0,BX10,IF(AW9,0.5,IF(AV10,-0.5,BU9)))))) -> 0.5 | BE10: x | BF10: =IF($AM10>$AM11,-0.5,IF($AM11>$AM10,0.5,IF(CK8=1,CE10,IF(BZ10<>0,BZ10,IF(AX10,-0.5,IF(AW11,0.5,BV10)))))) -> 0.5 | BU10: x | BV10: =IF($BQ8,IF(F8-E8<0,-0.5,IF(E8-F8<0,0.5,0)),IF($BJ8,IF($BA10>$BA11,-0.5,IF($BA10<$BA11,0.5,0)),IF($BK8,IF($BB10>$BB11,-0.5,IF($BB10<$BB11,0.5,0)),0))) -> 0 | BW10: =-BY8 -> 0 | BX10: =-BY9 -> 0.5 | BY10: x | BZ10: =IF(ISBLANK(E8),0,IF(AT10=0,0.5,IF(AT10=3,-0.5,0))) -> -0.5 | CB10: =IF(100*AP10+AN10>=MAX(100*AP11+AN11,100*AP9+AN9),-0.5, 0.5) -> -0.5 | CC10: =IF(100*AP10+AN10>=MAX(100*AP8+AN8,100*AP9+AN9),-0.5, 0.5) -> -0.5 | CD10: x | CE10: =IF(100*AP10+AN10>=MAX(100*AP8+AN8,100*AP9+AN9),-0.5, 0.5) -> -0.5
B11: 2012-06-16 | C11: 20:45:00 | D11: =G8 -> Rép.Tchèque | E11: 1 | F11: 0 | G11: =D7 -> Pologne | I11: =AH11 -> 4 | J11: =INDEX(AL8:AL11,MATCH(AJ11,$AK8:$AK11,0)) -> Pologne | K11: =INDEX(AM8:AM11,MATCH(AJ11,$AK8:$AK11,0)) -> 2 | L11: =INDEX(AN8:AN11,MATCH(AJ11,$AK8:$AK11,0)) -> 2 | M11: =INDEX(AO8:AO11,MATCH(AJ11,$AK8:$AK11,0)) -> 3 | N11: =INDEX(AP8:AP11,MATCH(AJ11,$AK8:$AK11,0)) -> -1 | S11: 2012-06-23 | T11: 20:45:00 | U11: =IF(OR(I25<2),Data!T27,T(J24)) -> Espagne | AH11: =IF(ROUND(AJ11,0)=ROUND(AJ10,0),AH10,4) -> 4 | AI11: =ROUND(AJ11,0) -> 4 | AJ11: =MAX(AK8:AK11) -> 3.95 | AK11: =SUM(BC11:BF11)+2.48 -> 0.98 | AL11: =G8 -> Rép.Tchèque | AM11: =SUM(AQ11:AT11) -> 6 | AN11: =F8+E10+E11 -> 4 | AO11: =E8+F10+F11 -> 5 | AP11: =AN11-AO11 -> -1 | AQ11: =IF(ISBLANK(E11),0,IF(AT8=3,0,IF(AT8=1,1,3))) -> 3 | AR11: =IF(ISBLANK(E10),0,IF(AT9=3,0,IF(AT9=1,1,3))) -> 3 | AS11: =IF(ISBLANK(F8),0,IF(AT10=3,0,IF(AT10=1,1,3))) -> 0 | AT11: x | AU11: =10*(AP8-AP11)+AN8-AN11<0 -> TRUE | AV11: =10*(AP9-AP11)+AN9-AN11<0 -> FALSE | AW11: =10*(AP10-AP11)+AN10-AN11<0 -> FALSE | AX11: x | AY11: x | AZ11: =10000*(AQ11+AR11)+(E11-F11+E10-F10)*100+(E11+E10) -> 60203 | BA11: =10000*(AQ11+AS11)+(F8-E8+E11-F11)*100+(F8+E11) -> 29802 | BB11: =10000*(AR11+AS11)+(E10-F10+F8-E8)*100+(E10+F8) -> 29803 | BC11: =IF($AM8>$AM11,0.5,IF($AM11>$AM8,-0.5,IF(CK8=1,CB11,IF(BW11<>0,BW11,IF(AX8,0.5,IF(AU11,-0.5,BV8)))))) -> -0.5 | BD11: =IF($AM9>$AM11,0.5,IF($AM11>$AM9,-0.5,IF(CK8=1,BX11,IF(BX11<>0,BX11,IF(AX9,0.5,IF(AV11,-0.5,BV9)))))) -> -0.5 | BE11: =IF($AM10>$AM11,0.5,IF($AM11>$AM10,-0.5,IF(CK8=1,CD11,IF(BY11<>0,BY11,IF(AX10,0.5,IF(AW11,-0.5,BV10)))))) -> -0.5 | BF11: x | BV11: x | BW11: =-BZ8 -> -0.5 | BX11: =-BZ9 -> -0.5 | BY11: =-BZ10 -> 0.5 | BZ11: x | CB11: =IF(100*AP11+AN11>=MAX(100*AP9+AN9,100*AP10+AN10),-0.5, 0.5) -> 0.5 | CC11: =IF(100*AP11+AN11>=MAX(100*AP8+AN8,100*AP10+AN10),-0.5, 0.5) -> 0.5 | CD11: =IF(100*AP11+AN11>=MAX(100*AP8+AN8,100*AP9+AN9),-0.5, 0.5) -> 0.5 | CE11: x
B12: 2012-06-16 | C12: 20:45:00 | D12: =G7 -> Grèce | E12: 1 | F12: 0 | G12: =D8 -> Russie | J12: =IF(OR(I10<3,I9<2),Data!T27," ") ->  | U12: =IF(OR(I34<3,I33<2),Data!T27,T(J33)) -> Angleterre
S13: 2012-06-24 | T13: 20:45:00 | U13: =IF(OR(I33<2),Data!T27,T(J32)) -> France | AF13: =Data!T51 -> Ne pas toucher cette partie des calculs, sinon :
B14: =Data!T30 -> Groupe B | U14: =IF(OR(I26<3,I25<2),Data!T27,T(J25)) -> Italie
B15: 2012-06-09 | C15: 18:00:00 | D15: =Data!T6 -> Pays-Bas | E15: 0 | F15: 1 | G15: =Data!T7 -> Danemark | J15: =Data!T30 -> Groupe B | K15: =K7 -> Pts | L15: =L7 -> BP | M15: =M7 -> BC | N15: ="+/-" -> +/- | AK15: Rank | AL15: Team | AM15: Pts | AN15: GF | AO15: GA | AP15: GD | AQ15: Ag1 | AR15: Ag2 | AS15: Ag3 | AT15: Ag4 | AU15: Sp1 | AV15: Sp2 | AW15: Sp3 | AX15: Sp4 | AY15: T123 | AZ15: T124 | BA15: T134 | BB15: T234 | BC15: Rk1 | BD15: Rk2 | BE15: Rk3 | BF15: Rk4 | BG15: T1234 | BH15: T123 | BI15: T124 | BJ15: T134 | BK15: T234 | BL15: T12 | BM15: T13 | BN15: T14 | BO15: T23 | BP15: T24 | BQ15: T34 | BR15: NoT | BS15: sRk1 | BT15: sRk2 | BU15: sRk3 | BV15: sRk4 | BW15: T1x | BX15: T2x | BY15: T3x | BZ15: T4x | CA15: Règle d | CB15: T1x | CC15: T2x | CD15: T3x | CE15: T4x | CF15: T1234 | CG15: T123 | CH15: T124 | CI15: T134 | CJ15: T234 | CK15: TXXX?
B16: 2012-06-09 | C16: 20:45:00 | D16: =Data!T8 -> Allemagne | E16: 1 | F16: 0 | G16: =Data!T9 -> Portugal | I16: =AH16 -> 1 | J16: =INDEX(AL16:AL19,MATCH(AJ16,$AK16:$AK19,0)) -> Allemagne | K16: =INDEX(AM16:AM19,MATCH(AJ16,$AK16:$AK19,0)) -> 9 | L16: =INDEX(AN16:AN19,MATCH(AJ16,$AK16:$AK19,0)) -> 5 | M16: =INDEX(AO16:AO19,MATCH(AJ16,$AK16:$AK19,0)) -> 2 | N16: =INDEX(AP16:AP19,MATCH(AJ16,$AK16:$AK19,0)) -> 3 | S16: =Data!T34 -> Demi-finales | W16: Pen | AH16: 1 | AI16: =ROUND(AJ16,0) -> 1 | AJ16: =MIN(AK16:AK19) -> 0.97 | AK16: =SUM(BC16:BF16)+2.45 -> 3.95 | AL16: =D15 -> Pays-Bas | AM16: =SUM(AQ16:AT16) -> 0 | AN16: =E15+E17+F19 -> 2 | AO16: =F15+F17+E19 -> 5 | AP16: =AN16-AO16 -> -3 | AQ16: x | AR16: =IF(ISBLANK(E15),0,IF(E15>F15,3,IF(E15=F15,1,0))) -> 0 | AS16: =IF(ISBLANK(E17),0,IF(E17>F17,3,IF(E17=F17,1,0))) -> 0 | AT16: =IF(ISBLANK(F19),0,IF(F19>E19,3,IF(F19=E19,1,0))) -> 0 | AU16: x | AV16: =(10*(AP16-AP17)+AN16-AN17>0) -> FALSE | AW16: =10*(AP16-AP18)+AN16-AN18>0 -> FALSE | AX16: =10*(AP16-AP19)+AN16-AN19>0 -> FALSE | AY16: =10000*(AR16+AS16)+(E17-F17+E15-F15)*100+(E17+E15) -> -199 | AZ16: =10000*(AR16+AT16)+(E15-F15+F19-E19)*100+(E15+F19) -> -199 | BA16: =10000*(AS16+AT16)+(F19-E19+E17-F17)*100+(F19+E17) -> -198 | BB16: x | BC16: x | BD16: =IF($AM16>$AM17,-0.5,IF($AM17>$AM16,0.5,IF(CK16=1,CC16,IF(BX16<>0,BX16,IF(AV16,-0.5,IF(AU17,0.5,BT16)))))) -> 0.5 | BE16: =IF($AM16>$AM18,-0.5,IF($AM18>$AM16,0.5,IF(CK16=1,CD16,IF(BY16<>0,BY16,IF(AW16,-0.5,IF(AU18,0.5,BU16)))))) -> 0.5 | BF16: =IF($AM16>$AM19,-0.5,IF($AM19>$AM16,0.5,IF(CK16=1,CE16,IF(BZ16<>0,BZ16,IF(AX16,-0.5,IF(AU19,0.5,BV16)))))) -> 0.5 | BG16: =AND(AND(AM16=AM17,AM17=AM18,AM18=AM19),AND(AN16=AN17,AN17=AN18,AN18=AN19),AND(AO16=AO17,AO17=AO18,AO18=AO19)) -> FALSE | BH16: =AND(NOT(BG16),AM16=AM17,AM16=AM18,AN16=AN17,AN16=AN18,AO16=AO17,AO16=AO18) -> FALSE | BI16: =AND(NOT(BG16),AM16=AM17,AM16=AM19,AN16=AN17,AN16=AN19,AO16=AO17,AO16=AO19) -> FALSE | BJ16: =AND(NOT(BG16),AM16=AM18,AM16=AM19,AN16=AN18,AN16=AN19,AO16=AO18,AO16=AO19) -> FALSE | BK16: =AND(NOT(BG16),AM17=AM18,AM17=AM19,AN17=AN18,AN17=AN19,AO17=AO18,AO17=AO19) -> FALSE | BL16: =AND(NOT(BG16),NOT(BH16),NOT(BI16),AM16=AM17,AN16=AN17,AO16=AO17) -> FALSE | BM16: =AND(NOT(BG16),NOT(BH16),NOT(BJ16),AM16=AM18,AN16=AN18,AO16=AO18) -> FALSE | BN16: =AND(NOT(BG16),NOT(BI16),NOT(BJ16),AM16=AM19,AN16=AN19,AO16=AO19) -> FALSE | BO16: =AND(NOT(BG16),NOT(BH16),NOT(BK16),AM17=AM18,AN17=AN18) -> FALSE | BP16: =AND(NOT(BG16),NOT(BI16),NOT(BK16),AM17=AM19,AN17=AN19,AO17=AO19) -> FALSE | BQ16: =AND(NOT(BG16),NOT(BJ16),NOT(BK16),AM18=AM19,AN18=AN19,AO18=AO19) -> FALSE | BR16: =AND(NOT(BG16:BQ16)) -> TRUE | BS16: x | BT16: =IF($BL16,IF(F15-E15<0,-0.5,IF(E15-F15<0,0.5,0)),IF($BH16,IF($AY16>$AY17,-0.5,IF($AY16<$AY17,0.5,0)),IF($BI16,IF($AZ16>$AZ17,-0.5, IF($AZ16<$AZ17,0.5,0)),0))) -> 0 | BU16: =IF($BM16,IF(F17-E17<0,-0.5,IF(E17-F17<0,0.5,0)),IF($BH16,IF($AY16>$AY18,-0.5,IF($AY16<$AY18,0.5,0)),IF($BJ16,IF($BA16>$BA18,-0.5,IF($BA16<$BA18,0.5,0)),0))) -> 0 | BV16: =IF($BN16,IF(E19-F19<0,-0.5,IF(F19-E19<0,0.5,0)),IF($BI16,IF($AZ16>$AZ19,-0.5,IF($AZ16<$AZ19,0.5,0)),IF($BJ16,IF($BA16>$BA19,-0.5, IF($BA16<$BA19,0.5,0)),0))) -> 0 | BW16: x | BX16: =IF(ISBLANK(E15),0,IF(AR16=0,0.5,IF(AR16=3,-0.5,0))) -> 0.5 | BY16: =IF(ISBLANK(E17),0,IF(AS16=0,0.5,IF(AS16=3,-0.5,0))) -> 0.5 | BZ16: =IF(ISBLANK(F19),0,IF(AT16=0,0.5,IF(AT16=3,-0.5,0))) -> 0.5 | CB16: x | CC16: =IF(100*AP16+AN16>=MAX(100*AP19+AN19,100*AP18+AN18),-0.5, 0.5) -> 0.5 | CD16: =IF(100*AP16+AN16>=MAX(100*AP17+AN17,100*AP19+AN19),-0.5, 0.5) -> 0.5 | CE16: =IF(100*AP16+AN16>=MAX(100*AP17+AN17,100*AP18+AN18),-0.5, 0.5) -> 0.5 | CF16: =AND(AM16=AM17,AM17=AM18,AM18=AM19) -> FALSE | CG16: =IF(AND(NOT(CF16),AM16=AM17,AM16=AM18),1,0) -> 0 | CH16: =IF(AND(NOT(CF16),AM16=AM17,AM16=AM19),1,0) -> 0 | CI16: =IF(AND(NOT(CF16),AM16=AM18,AM16=AM19),1,0) -> 0 | CJ16: =IF(AND(NOT(CF16),AM17=AM18,AM17=AM19),1,0) -> 0 | CK16: =IF(OR(CH16,CI16,CJ16),1,0) -> 0
B17: 2012-06-13 | C17: 20:45:00 | D17: =D15 -> Pays-Bas | E17: 1 | F17: 2 | G17: =D16 -> Allemagne | I17: =AH17 -> 2 | J17: =INDEX(AL16:AL19,MATCH(AJ17,$AK16:$AK19,0)) -> Portugal | K17: =INDEX(AM16:AM19,MATCH(AJ17,$AK16:$AK19,0)) -> 6 | L17: =INDEX(AN16:AN19,MATCH(AJ17,$AK16:$AK19,0)) -> 5 | M17: =INDEX(AO16:AO19,MATCH(AJ17,$AK16:$AK19,0)) -> 4 | N17: =INDEX(AP16:AP19,MATCH(AJ17,$AK16:$AK19,0)) -> 1 | S17: 2012-06-27 | T17: 20:45:00 | U17: =IF(100*V7+W7>100*V8+W8,U7,IF(100*V7+W7<100*V8+W8,U8,"-")) -> - | AH17: =IF(ROUND(AJ17,0)=ROUND(AJ16,0),AH16,2) -> 2 | AI17: =ROUND(AJ17,0) -> 2 | AJ17: =MAX(MIN(AK16:AK18),MIN(AK16,AK17,AK19),MIN(AK16,AK18,AK19),MIN(AK17:AK19)) -> 1.98 | AK17: =SUM(BC17:BF17)+2.46 -> 2.96 | AL17: =G15 -> Danemark | AM17: =SUM(AQ17:AT17) -> 3 | AN17: =F15+F18+E20 -> 4 | AO17: =E15+E18+F20 -> 5 | AP17: =AN17-AO17 -> -1 | AQ17: =IF(ISBLANK(F15),0,IF(AR16=3,0,IF(AR16=1,1,3))) -> 3 | AR17: x | AS17: =IF(ISBLANK(E20),0,IF(AR18=3,0,IF(AR18=1,1,3))) -> 0 | AT17: =IF(ISBLANK(F18),0,IF(F18>E18,3,IF(F18=E18,1,0))) -> 0 | AU17: =(10*(AP16-AP17)+AN16-AN17<0) -> TRUE | AV17: x | AW17: =10*(AP17-AP18)+AN17-AN18>0 -> FALSE | AX17: =10*(AP17-AP19)+AN17-AN19>0 -> FALSE | AY17: =10000*(AQ17+AS17)+(F15-E15+E20-F20)*100+(F15+E20) -> 30002 | AZ17: =10000*(AQ17+AT17)+(F15-E15+F18-E18)*100+(F15+F18) -> 30003 | BA17: x | BB17: =10000*(AS17+AT17)+(F18-E18+E20-F20)*100+(F18+E20) -> -197 | BC17: =IF($AM16>$AM17,0.5,IF($AM17>$AM16,-0.5,IF(CK16=1,CB17,IF(BW17<>0,BW17,IF(AV16,0.5,IF(AU17,-0.5,BT16)))))) -> -0.5 | BD17: x | BE17: =IF($AM17>$AM18,-0.5,IF($AM18>$AM17,0.5,IF(CK16=1,CD17,IF(BY17<>0,BY17,IF(AW17,-0.5,IF(AV18,0.5,BU17)))))) -> 0.5 | BF17: =IF($AM17>$AM19,-0.5,IF($AM19>$AM17,0.5,IF(CK16=1,CE17,IF(BZ17<>0,BZ17,IF(AX17,-0.5,IF(AV19,0.5,BV17)))))) -> 0.5 | BT17: x | BU17: =IF($BO16,IF(F20-E20<0,-0.5,IF(E20-F20<0,0.5,0)),IF($BH16,IF($AY17>$AY18,-0.5,IF($AY17<$AY18,0.5,0)),IF($BK16,IF($BB17>$BB18,-0.5,IF($BB17<$BB18,0.5,0)),0))) -> 0 | BV17: =IF($BP16,IF(E18-F18<0,-0.5,IF(F18-E18<0,0.5,0)),IF($BI16,IF($AZ17>$AZ19,-0.5,IF($AZ17<$AZ19,0.5,0)),IF($BK16,IF($BB17>$BB19,-0.5,IF($BB17<$BB19,0.5,0)),0))) -> 0 | BW17: =-BX16 -> -0.5 | BX17: x | BY17: =IF(ISBLANK(E20),0,IF(AS17=0,0.5,IF(AS17=3,-0.5,0))) -> 0.5 | BZ17: =IF(ISBLANK(F18),0,IF(AT17=0,0.5,IF(AT17=3,-0.5,0))) -> 0.5 | CB17: =IF(100*AP17+AN17>=MAX(100*AP18+AN18,100*AP19+AN19),-0.5, 0.5) -> 0.5 | CC17: x | CD17: =IF(100*AP17+AN17>=MAX(100*AP16+AN16,100*AP19+AN19),-0.5, 0.5) -> 0.5 | CE17: =IF(100*AP17+AN17>=MAX(100*AP18+AN18,100*AP16+AN16),-0.5, 0.5) -> 0.5
B18: 2012-06-13 | C18: 18:00:00 | D18: =G16 -> Portugal | E18: 3 | F18: 2 | G18: =G15 -> Danemark | I18: =AH18 -> 3 | J18: =INDEX(AL16:AL19,MATCH(AJ18,$AK16:$AK19,0)) -> Danemark | K18: =INDEX(AM16:AM19,MATCH(AJ18,$AK16:$AK19,0)) -> 3 | L18: =INDEX(AN16:AN19,MATCH(AJ18,$AK16:$AK19,0)) -> 4 | M18: =INDEX(AO16:AO19,MATCH(AJ18,$AK16:$AK19,0)) -> 5 | N18: =INDEX(AP16:AP19,MATCH(AJ18,$AK16:$AK19,0)) -> -1 | U18: =IF(100*V11+W11>100*V12+W12,U11,IF(100*V11+W11<100*V12+W12,U12,"-")) -> - | AH18: =IF(ROUND(AJ18,0)=ROUND(AJ17,0),AH17,3) -> 3 | AI18: =ROUND(AJ18,0) -> 3 | AJ18: =MIN(MAX(AK16:AK18),MAX(AK16,AK17,AK19),MAX(AK16,AK18,AK19),MAX(AK17:AK19)) -> 2.96 | AK18: =SUM(BC18:BF18)+2.47 -> 0.97 | AL18: =D16 -> Allemagne | AM18: =SUM(AQ18:AT18) -> 9 | AN18: =E16+F17+F20 -> 5 | AO18: =F16+E17+E20 -> 2 | AP18: =AN18-AO18 -> 3 | AQ18: =IF(ISBLANK(F17),0,IF(AS16=3,0,IF(AS16=1,1,3))) -> 3 | AR18: =IF(ISBLANK(F20),0,IF(F20>E20,3,IF(F20=E20,1,0))) -> 3 | AS18: x | AT18: =IF(ISBLANK(E16),0,IF(E16>F16,3,IF(E16=F16,1,0))) -> 3 | AU18: =10*(AP16-AP18)+AN16-AN18<0 -> TRUE | AV18: =10*(AP17-AP18)+AN17-AN18<0 -> TRUE | AW18: x | AX18: =10*(AP18-AP19)+AN18-AN19>0 -> TRUE | AY18: =10000*(AQ18+AR18)+(F17-E17+F20-E20)*100+(F17+F20) -> 60204 | AZ18: x | BA18: =10000*(AQ18+AT18)+(E16-F16+F17-E17)*100+(E16+F17) -> 60203 | BB18: =10000*(AR18+AT18)+(E16-F16+F20-E20)*100+(E16+F20) -> 60203 | BC18: =IF($AM16>$AM18,0.5,IF($AM18>$AM16,-0.5,IF(CK16=1,CB18,IF(BW18<>0,BW18,IF(AW16,0.5,IF(AU18,-0.5,BU16)))))) -> -0.5 | BD18: =IF($AM17>$AM18,0.5,IF($AM18>$AM17,-0.5,IF(CK16=1,CC18,IF(BX18<>0,BX18,IF(AW17,0.5,IF(AV18,-0.5,BU17)))))) -> -0.5 | BE18: x | BF18: =IF($AM18>$AM19,-0.5,IF($AM19>$AM18,0.5,IF(CK16=1,CE18,IF(BZ18<>0,BZ18,IF(AX18,-0.5,IF(AW19,0.5,BV18)))))) -> -0.5 | BU18: x | BV18: =IF($BQ16,IF(F16-E16<0,-0.5,IF(E16-F16<0,0.5,0)),IF($BJ16,IF($BA18>$BA19,-0.5,IF($BA18<$BA19,0.5,0)),IF($BK16,IF($BB18>$BB19,-0.5,IF($BB18<$BB19,0.5,0)),0))) -> 0 | BW18: =-BY16 -> -0.5 | BX18: =-BY17 -> -0.5 | BY18: x | BZ18: =IF(ISBLANK(E16),0,IF(AT18=0,0.5,IF(AT18=3,-0.5,0))) -> -0.5 | CB18: =IF(100*AP18+AN18>=MAX(100*AP19+AN19,100*AP17+AN17),-0.5, 0.5) -> -0.5 | CC18: =IF(100*AP18+AN18>=MAX(100*AP16+AN16,100*AP17+AN17),-0.5, 0.5) -> -0.5 | CD18: x | CE18: =IF(100*AP18+AN18>=MAX(100*AP16+AN16,100*AP17+AN17),-0.5, 0.5) -> -0.5
B19: 2012-06-17 | C19: 20:45:00 | D19: =G16 -> Portugal | E19: 2 | F19: 1 | G19: =D15 -> Pays-Bas | I19: =AH19 -> 4 | J19: =INDEX(AL16:AL19,MATCH(AJ19,$AK16:$AK19,0)) -> Pays-Bas | K19: =INDEX(AM16:AM19,MATCH(AJ19,$AK16:$AK19,0)) -> 0 | L19: =INDEX(AN16:AN19,MATCH(AJ19,$AK16:$AK19,0)) -> 2 | M19: =INDEX(AO16:AO19,MATCH(AJ19,$AK16:$AK19,0)) -> 5 | N19: =INDEX(AP16:AP19,MATCH(AJ19,$AK16:$AK19,0)) -> -3 | S19: 2012-06-28 | T19: 20:45:00 | U19: =IF(100*V9+W9>100*V10+W10,U9,IF(100*V9+W9<100*V10+W10,U10,"-")) -> - | AH19: =IF(ROUND(AJ19,0)=ROUND(AJ18,0),AH18,4) -> 4 | AI19: =ROUND(AJ19,0) -> 4 | AJ19: =MAX(AK16:AK19) -> 3.95 | AK19: =SUM(BC19:BF19)+2.48 -> 1.98 | AL19: =G16 -> Portugal | AM19: =SUM(AQ19:AT19) -> 6 | AN19: =F16+E18+E19 -> 5 | AO19: =E16+F18+F19 -> 4 | AP19: =AN19-AO19 -> 1 | AQ19: =IF(ISBLANK(E19),0,IF(AT16=3,0,IF(AT16=1,1,3))) -> 3 | AR19: =IF(ISBLANK(E18),0,IF(AT17=3,0,IF(AT17=1,1,3))) -> 3 | AS19: =IF(ISBLANK(F16),0,IF(AT18=3,0,IF(AT18=1,1,3))) -> 0 | AT19: x | AU19: =10*(AP16-AP19)+AN16-AN19<0 -> TRUE | AV19: =10*(AP17-AP19)+AN17-AN19<0 -> TRUE | AW19: =10*(AP18-AP19)+AN18-AN19<0 -> FALSE | AX19: x | AY19: x | AZ19: =10000*(AQ19+AR19)+(E18-F18+E19-F19)*100+(E18+E19) -> 60205 | BA19: =10000*(AQ19+AS19)+(E19-F19+F16-E16)*100+(E19+F16) -> 30002 | BB19: =10000*(AR19+AS19)+(E18-F18+F16-E16)*100+(E18+F16) -> 30003 | BC19: =IF($AM16>$AM19,0.5,IF($AM19>$AM16,-0.5,IF(CK16=1,CB19,IF(BW19<>0,BW19,IF(AX16,0.5,IF(AU19,-0.5,BV16)))))) -> -0.5 | BD19: =IF($AM17>$AM19,0.5,IF($AM19>$AM17,-0.5,IF(CK16=1,BX19,IF(BX19<>0,BX19,IF(AX17,0.5,IF(AV19,-0.5,BV17)))))) -> -0.5 | BE19: =IF($AM18>$AM19,0.5,IF($AM19>$AM18,-0.5,IF(CK16=1,CD19,IF(BY19<>0,BY19,IF(AX18,0.5,IF(AW19,-0.5,BV18)))))) -> 0.5 | BF19: x | BV19: x | BW19: =-BZ16 -> -0.5 | BX19: =-BZ17 -> -0.5 | BY19: =-BZ18 -> 0.5 | BZ19: x | CB19: =IF(100*AP19+AN19>=MAX(100*AP17+AN17,100*AP18+AN18),-0.5, 0.5) -> 0.5 | CC19: =IF(100*AP19+AN19>=MAX(100*AP16+AN16,100*AP18+AN18),-0.5, 0.5) -> 0.5 | CD19: =IF(100*AP19+AN19>=MAX(100*AP16+AN16,100*AP17+AN17),-0.5, 0.5) -> -0.5 | CE19: x
B20: 2012-06-17 | C20: 20:45:00 | D20: =G15 -> Danemark | E20: 1 | F20: 2 | G20: =D16 -> Allemagne | J20: =IF(OR(I18<3,I17<2),Data!T27," ") ->  | U20: =IF(100*V13+W13>100*V14+W14,U13,IF(100*V13+W13<100*V14+W14,U14,"-")) -> -
B22: =Data!T31 -> Groupe C | S22: =Data!T35 -> Finale | W22: Pen | CL22: Egalité 3 équipes
B23: 2012-06-10 | C23: 18:00:00 | D23: =Data!T10 -> Espagne | E23: 1 | F23: 1 | G23: =Data!T11 -> Italie | J23: =Data!T31 -> Groupe C | K23: =K7 -> Pts | L23: =L7 -> BP | M23: =M7 -> BC | N23: ="+/-" -> +/- | AK23: Rank | AL23: Team | AM23: Pts | AN23: GF | AO23: GA | AP23: GD | AQ23: Ag1 | AR23: Ag2 | AS23: Ag3 | AT23: Ag4 | AU23: Sp1 | AV23: Sp2 | AW23: Sp3 | AX23: Sp4 | AY23: T123 | AZ23: T124 | BA23: T134 | BB23: T234 | BC23: Rk1 | BD23: Rk2 | BE23: Rk3 | BF23: Rk4 | BG23: T1234 | BH23: T123 | BI23: T124 | BJ23: T134 | BK23: T234 | BL23: T12 | BM23: T13 | BN23: T14 | BO23: T23 | BP23: T24 | BQ23: T34 | BR23: NoT | BS23: sRk1 | BT23: sRk2 | BU23: sRk3 | BV23: sRk4 | BW23: T1x | BX23: T2x | BY23: T3x | BZ23: T4x | CA23: Règle d | CB23: T1x | CC23: T2x | CD23: T3x | CE23: T4x | CF23: T1234 | CG23: T123 | CH23: T124 | CI23: T134 | CJ23: T234 | CK23: TXXX? | CL23: 1 | CM23: 2 | CN23: 3 | CO23: 4
B24: 2012-06-10 | C24: 20:45:00 | D24: =Data!T12 -> Irlande | E24: 1 | F24: 3 | G24: =Data!T13 -> Croatie | I24: =AH24 -> 1 | J24: =INDEX(AL24:AL27,MATCH(AJ24,$AK24:$AK27,0)) -> Espagne | K24: =INDEX(AM24:AM27,MATCH(AJ24,$AK24:$AK27,0)) -> 7 | L24: =INDEX(AN24:AN27,MATCH(AJ24,$AK24:$AK27,0)) -> 6 | M24: =INDEX(AO24:AO27,MATCH(AJ24,$AK24:$AK27,0)) -> 1 | N24: =INDEX(AP24:AP27,MATCH(AJ24,$AK24:$AK27,0)) -> 5 | S24: 2012-07-01 | T24: 20:45:00 | U24: =IF(100*V17+W17>100*V18+W18,U17,IF(100*V17+W17<100*V18+W18,U18,"-")) -> - | AH24: 1 | AI24: =ROUND(AJ24,0) -> 1 | AJ24: =MIN(AK24:AK27) -> 0.95 | AK24: =SUM(BC24:BF24)+2.45 -> 0.95 | AL24: =D23 -> Espagne | AM24: =SUM(AQ24:AT24) -> 7 | AN24: =E23+E25+F27 -> 6 | AO24: =F23+F25+E27 -> 1 | AP24: =AN24-AO24 -> 5 | AQ24: x | AR24: =IF(ISBLANK(E23),0,IF(E23>F23,3,IF(E23=F23,1,0))) -> 1 | AS24: =IF(ISBLANK(E25),0,IF(E25>F25,3,IF(E25=F25,1,0))) -> 3 | AT24: =IF(ISBLANK(F27),0,IF(F27>E27,3,IF(F27=E27,1,0))) -> 3 | AU24: x | AV24: =(10*(AP24-AP25)+AN24-AN25>0) -> TRUE | AW24: =10*(AP24-AP26)+AN24-AN26>0 -> TRUE | AX24: =10*(AP24-AP27)+AN24-AN27>0 -> TRUE | AY24: =10000*(AR24+AS24)+(E25-F25+E23-F23)*100+(E25+E23) -> 40405 | AZ24: =10000*(AR24+AT24)+(E23-F23+F27-E27)*100+(E23+F27)+(AY24+BA24)/1000000 -> 40102.10091 | BA24: =10000*(AS24+AT24)+(F27-E27+E25-F25)*100+(F27+E25) -> 60505 | BB24: x | BC24: x | BD24: =IF($AM24>$AM25,-0.5,IF($AM25>$AM24,0.5,IF(CK24=1,CC24,IF(BX24<>0,BX24,IF(AV24,-0.5,IF(AU25,0.5,BT24)))))) -> -0.5 | BE24: =IF($AM24>$AM26,-0.5,IF($AM26>$AM24,0.5,IF(CK24=1,CD24,IF(BY24<>0,BY24,IF(AW24,-0.5,IF(AU26,0.5,BU24)))))) -> -0.5 | BF24: =IF($AM24>$AM27,-0.5,IF($AM27>$AM24,0.5,IF(CK24=1,CE24,IF(BZ24<>0,BZ24,IF(AX24,-0.5,IF(AU27,0.5,BV24)))))) -> -0.5 | BG24: =AND(AND(AM24=AM25,AM25=AM26,AM26=AM27),AND(AN24=AN25,AN25=AN26,AN26=AN27),AND(AO24=AO25,AO25=AO26,AO26=AO27)) -> FALSE | BH24: =AND(NOT(BG24),AM24=AM25,AM24=AM26,AN24=AN25,AN24=AN26,AO24=AO25,AO24=AO26) -> FALSE | BI24: =AND(NOT(BG24),AM24=AM25,AM24=AM27,AN24=AN25,AN24=AN27,AO24=AO25,AO24=AO27) -> FALSE | BJ24: =AND(NOT(BG24),AM24=AM26,AM24=AM27,AN24=AN26,AN24=AN27,AO24=AO26,AO24=AO27) -> FALSE | BK24: =AND(NOT(BG24),AM25=AM26,AM25=AM27,AN25=AN26,AN25=AN27,AO25=AO26,AO25=AO27) -> FALSE | BL24: =AND(NOT(BG24),NOT(BH24),NOT(BI24),AM24=AM25,AN24=AN25,AO24=AO25) -> FALSE | BM24: =AND(NOT(BG24),NOT(BH24),NOT(BJ24),AM24=AM26,AN24=AN26,AO24=AO26) -> FALSE | BN24: =AND(NOT(BG24),NOT(BI24),NOT(BJ24),AM24=AM27,AN24=AN27,AO24=AO27) -> FALSE | BO24: =AND(NOT(BG24),NOT(BH24),NOT(BK24),AM25=AM26,AN25=AN26) -> FALSE | BP24: =AND(NOT(BG24),NOT(BI24),NOT(BK24),AM25=AM27,AN25=AN27,AO25=AO27) -> FALSE | BQ24: =AND(NOT(BG24),NOT(BJ24),NOT(BK24),AM26=AM27,AN26=AN27,AO26=AO27) -> FALSE | BR24: =AND(NOT(BG24:BQ24)) -> TRUE | BS24: x | BT24: =IF($BL24,IF(F23-E23<0,-0.5,IF(E23-F23<0,0.5,0)),IF($BH24,IF($AY24>$AY25,-0.5,IF($AY24<$AY25,0.5,0)),IF($BI24,IF($AZ24>$AZ25,-0.5, IF($AZ24<$AZ25,0.5,0)),0))) -> 0 | BU24: =IF($BM24,IF(F25-E25<0,-0.5,IF(E25-F25<0,0.5,0)),IF($BH24,IF($AY24>$AY26,-0.5,IF($AY24<$AY26,0.5,0)),IF($BJ24,IF($BA24>$BA26,-0.5,IF($BA24<$BA26,0.5,0)),0))) -> 0 | BV24: =IF($BN24,IF(E27-F27<0,-0.5,IF(F27-E27<0,0.5,0)),IF($BI24,IF($AZ24>$AZ27,-0.5,IF($AZ24<$AZ27,0.5,0)),IF($BJ24,IF($BA24>$BA27,-0.5, IF($BA24<$BA27,0.5,0)),0))) -> 0 | BW24: x | BX24: =IF(ISBLANK(E23),0,IF(AR24=0,0.5,IF(AR24=3,-0.5,0))) -> 0 | BY24: =IF(ISBLANK(E25),0,IF(AS24=0,0.5,IF(AS24=3,-0.5,0))) -> -0.5 | BZ24: =IF(ISBLANK(F27),0,IF(AT24=0,0.5,IF(AT24=3,-0.5,0))) -> -0.5 | CB24: x | CC24: =CN24 -> -0.5 | CD24: =CN24 -> -0.5 | CE24: =CN24 -> -0.5 | CF24: =AND(AM24=AM25,AM25=AM26,AM26=AM27) -> FALSE | CG24: =IF(AND(NOT(CF24),AM24=AM25,AM24=AM26),1,0) -> 0 | CH24: =IF(AND(NOT(CF24),AM24=AM25,AM24=AM27),1,0) -> 0 | CI24: =IF(AND(NOT(CF24),AM24=AM26,AM24=AM27),1,0) -> 0 | CJ24: =IF(AND(NOT(CF24),AM25=AM26,AM25=AM27),1,0) -> 0 | CK24: =IF(OR(CH24,CI24,CJ24),1,0) -> 0 | CL24: x | CN24: =IF(AZ24>MAX(AZ25,AZ27),-0.5,IF(AZ24<MIN(AZ25,AZ27),0.5,0)) -> -0.5
B25: 2012-06-14 | C25: 20:45:00 | D25: =D23 -> Espagne | E25: 4 | F25: 0 | G25: =D24 -> Irlande | I25: =AH25 -> 2 | J25: =INDEX(AL24:AL27,MATCH(AJ25,$AK24:$AK27,0)) -> Italie | K25: =INDEX(AM24:AM27,MATCH(AJ25,$AK24:$AK27,0)) -> 5 | L25: =INDEX(AN24:AN27,MATCH(AJ25,$AK24:$AK27,0)) -> 4 | M25: =INDEX(AO24:AO27,MATCH(AJ25,$AK24:$AK27,0)) -> 2 | N25: =INDEX(AP24:AP27,MATCH(AJ25,$AK24:$AK27,0)) -> 2 | U25: =IF(100*V19+W19>100*V20+W20,U19,IF(100*V19+W19<100*V20+W20,U20,"-")) -> - | AH25: =IF(ROUND(AJ25,0)=ROUND(AJ24,0),AH24,2) -> 2 | AI25: =ROUND(AJ25,0) -> 2 | AJ25: =MAX(MIN(AK24:AK26),MIN(AK24,AK25,AK27),MIN(AK24,AK26,AK27),MIN(AK25:AK27)) -> 1.96 | AK25: =SUM(BC25:BF25)+2.46 -> 1.96 | AL25: =G23 -> Italie | AM25: =SUM(AQ25:AT25) -> 5 | AN25: =F23+F26+E28 -> 4 | AO25: =E23+E26+F28 -> 2 | AP25: =AN25-AO25 -> 2 | AQ25: =IF(ISBLANK(F23),0,IF(AR24=3,0,IF(AR24=1,1,3))) -> 1 | AR25: x | AS25: =IF(ISBLANK(E28),0,IF(AR26=3,0,IF(AR26=1,1,3))) -> 3 | AT25: =IF(ISBLANK(F26),0,IF(F26>E26,3,IF(F26=E26,1,0))) -> 1 | AU25: =(10*(AP24-AP25)+AN24-AN25<0) -> FALSE | AV25: x | AW25: =10*(AP25-AP26)+AN25-AN26>0 -> TRUE | AX25: =10*(AP25-AP27)+AN25-AN27>0 -> TRUE | AY25: =10000*(AQ25+AS25)+(F23-E23+E28-F28)*100+(F23+E28) -> 40203 | AZ25: =10000*(AQ25+AT25)+(F23-E23+F26-E26)*100+(F23+F26)+(AY25+BB25)/1000000 -> 20002.08041 | BA25: x | BB25: =10000*(AS25+AT25)+(F26-E26+E28-F28)*100+(F26+E28) -> 40203 | BC25: =IF($AM24>$AM25,0.5,IF($AM25>$AM24,-0.5,IF(CK24=1,CB25,IF(BW25<>0,BW25,IF(AV24,0.5,IF(AU25,-0.5,BT24)))))) -> 0.5 | BD25: x | BE25: =IF($AM25>$AM26,-0.5,IF($AM26>$AM25,0.5,IF(CK24=1,CD25,IF(BY25<>0,BY25,IF(AW25,-0.5,IF(AV26,0.5,BU25)))))) -> -0.5 | BF25: =IF($AM25>$AM27,-0.5,IF($AM27>$AM25,0.5,IF(CK24=1,CE25,IF(BZ25<>0,BZ25,IF(AX25,-0.5,IF(AV27,0.5,BV25)))))) -> -0.5 | BT25: x | BU25: =IF($BO24,IF(F28-E28<0,-0.5,IF(E28-F28<0,0.5,0)),IF($BH24,IF($AY25>$AY26,-0.5,IF($AY25<$AY26,0.5,0)),IF($BK24,IF($BB25>$BB26,-0.5,IF($BB25<$BB26,0.5,0)),0))) -> 0 | BV25: =IF($BP24,IF(E26-F26<0,-0.5,IF(F26-E26<0,0.5,0)),IF($BI24,IF($AZ25>$AZ27,-0.5,IF($AZ25<$AZ27,0.5,0)),IF($BK24,IF($BB25>$BB27,-0.5,IF($BB25<$BB27,0.5,0)),0))) -> 0 | BW25: =-BX24 -> 0 | BX25: x | BY25: =IF(ISBLANK(E28),0,IF(AS25=0,0.5,IF(AS25=3,-0.5,0))) -> -0.5 | BZ25: =IF(ISBLANK(F26),0,IF(AT25=0,0.5,IF(AT25=3,-0.5,0))) -> 0 | CB25: =CN25 -> 0 | CC25: x | CD25: =CN25 -> 0 | CE25: =CN25 -> 0 | CM25: x | CN25: =IF(AZ25>MAX(AZ24,AZ27),-0.5,IF(AZ25<MIN(AZ24,AZ27),0.5,0)) -> 0
B26: 2012-06-14 | C26: 18:00:00 | D26: =G24 -> Croatie | E26: 1 | F26: 1 | G26: =G23 -> Italie | I26: =AH26 -> 3 | J26: =INDEX(AL24:AL27,MATCH(AJ26,$AK24:$AK27,0)) -> Croatie | K26: =INDEX(AM24:AM27,MATCH(AJ26,$AK24:$AK27,0)) -> 4 | L26: =INDEX(AN24:AN27,MATCH(AJ26,$AK24:$AK27,0)) -> 4 | M26: =INDEX(AO24:AO27,MATCH(AJ26,$AK24:$AK27,0)) -> 3 | N26: =INDEX(AP24:AP27,MATCH(AJ26,$AK24:$AK27,0)) -> 1 | AH26: =IF(ROUND(AJ26,0)=ROUND(AJ25,0),AH25,3) -> 3 | AI26: =ROUND(AJ26,0) -> 3 | AJ26: =MIN(MAX(AK24:AK26),MAX(AK24,AK25,AK27),MAX(AK24,AK26,AK27),MAX(AK25:AK27)) -> 2.98 | AK26: =SUM(BC26:BF26)+2.47 -> 3.97 | AL26: =D24 -> Irlande | AM26: =SUM(AQ26:AT26) -> 0 | AN26: =E24+F25+F28 -> 1 | AO26: =F24+E25+E28 -> 9 | AP26: =AN26-AO26 -> -8 | AQ26: =IF(ISBLANK(F25),0,IF(AS24=3,0,IF(AS24=1,1,3))) -> 0 | AR26: =IF(ISBLANK(F28),0,IF(F28>E28,3,IF(F28=E28,1,0))) -> 0 | AS26: x | AT26: =IF(ISBLANK(E24),0,IF(E24>F24,3,IF(E24=F24,1,0))) -> 0 | AU26: =10*(AP24-AP26)+AN24-AN26<0 -> FALSE | AV26: =10*(AP25-AP26)+AN25-AN26<0 -> FALSE | AW26: x | AX26: =10*(AP26-AP27)+AN26-AN27>0 -> FALSE | AY26: =10000*(AQ26+AR26)+(F25-E25+F28-E28)*100+(F25+F28) -> -600 | AZ26: x | BA26: =10000*(AQ26+AT26)+(E24-F24+F25-E25)*100+(E24+F25) -> -599 | BB26: =10000*(AR26+AT26)+(E24-F24+F28-E28)*100+(E24+F28) -> -399 | BC26: =IF($AM24>$AM26,0.5,IF($AM26>$AM24,-0.5,IF(CK24=1,CB26,IF(BW26<>0,BW26,IF(AW24,0.5,IF(AU26,-0.5,BU24)))))) -> 0.5 | BD26: =IF($AM25>$AM26,0.5,IF($AM26>$AM25,-0.5,IF(CK24=1,CC26,IF(BX26<>0,BX26,IF(AW25,0.5,IF(AV26,-0.5,BU25)))))) -> 0.5 | BE26: x | BF26: =IF($AM26>$AM27,-0.5,IF($AM27>$AM26,0.5,IF(CK24=1,CE26,IF(BZ26<>0,BZ26,IF(AX26,-0.5,IF(AW27,0.5,BV26)))))) -> 0.5 | BU26: x | BV26: =IF($BQ24,IF(F24-E24<0,-0.5,IF(E24-F24<0,0.5,0)),IF($BJ24,IF($BA26>$BA27,-0.5,IF($BA26<$BA27,0.5,0)),IF($BK24,IF($BB26>$BB27,-0.5,IF($BB26<$BB27,0.5,0)),0))) -> 0 | BW26: =-BY24 -> 0.5 | BX26: =-BY25 -> 0.5 | BY26: x | BZ26: =IF(ISBLANK(E24),0,IF(AT26=0,0.5,IF(AT26=3,-0.5,0))) -> 0.5 | CB26: =IF(100*AP26+AN26>=MAX(100*AP27+AN27,100*AP25+AN25),-0.5, 0.5) -> 0.5 | CC26: =IF(100*AP26+AN26>=MAX(100*AP24+AN24,100*AP25+AN25),-0.5, 0.5) -> 0.5 | CD26: x | CE26: =IF(100*AP26+AN26>=MAX(100*AP24+AN24,100*AP25+AN25),-0.5, 0.5) -> 0.5 | CN26: x
B27: 2012-06-18 | C27: 20:45:00 | D27: =G24 -> Croatie | E27: 0 | F27: 1 | G27: =D23 -> Espagne | I27: =AH27 -> 4 | J27: =INDEX(AL24:AL27,MATCH(AJ27,$AK24:$AK27,0)) -> Irlande | K27: =INDEX(AM24:AM27,MATCH(AJ27,$AK24:$AK27,0)) -> 0 | L27: =INDEX(AN24:AN27,MATCH(AJ27,$AK24:$AK27,0)) -> 1 | M27: =INDEX(AO24:AO27,MATCH(AJ27,$AK24:$AK27,0)) -> 9 | N27: =INDEX(AP24:AP27,MATCH(AJ27,$AK24:$AK27,0)) -> -8 | S27: =Data!T36 -> Vainqueur | U27: =IF(100*V24+W24>100*V25+W25,U24,IF(100*V25+W25>100*V24+W24,U25,"-")) -> - | Y27: =Data!T37 -> Finaliste | AA27: =IF(100*V24+W24>100*V25+W25,U25,IF(100*V25+W25>100*V24+W24,U24,"-")) -> - | AH27: =IF(ROUND(AJ27,0)=ROUND(AJ26,0),AH26,4) -> 4 | AI27: =ROUND(AJ27,0) -> 4 | AJ27: =MAX(AK24:AK27) -> 3.97 | AK27: =SUM(BC27:BF27)+2.48 -> 2.98 | AL27: =G24 -> Croatie | AM27: =SUM(AQ27:AT27) -> 4 | AN27: =F24+E26+E27 -> 4 | AO27: =E24+F26+F27 -> 3 | AP27: =AN27-AO27 -> 1 | AQ27: =IF(ISBLANK(E27),0,IF(AT24=3,0,IF(AT24=1,1,3))) -> 0 | AR27: =IF(ISBLANK(E26),0,IF(AT25=3,0,IF(AT25=1,1,3))) -> 1 | AS27: =IF(ISBLANK(F24),0,IF(AT26=3,0,IF(AT26=1,1,3))) -> 3 | AT27: x | AU27: =10*(AP24-AP27)+AN24-AN27<0 -> FALSE | AV27: =10*(AP25-AP27)+AN25-AN27<0 -> FALSE | AW27: =10*(AP26-AP27)+AN26-AN27<0 -> TRUE | AX27: x | AY27: x | AZ27: =10000*(AQ27+AR27)+(E26-F26+E27-F27)*100+(E26+E27)+(BA27+BB27)/1000000 -> 9901.070307 | BA27: =10000*(AQ27+AS27)+(E27-F27+F24-E24)*100+(E27+F24) -> 30103 | BB27: =10000*(AR27+AS27)+(E26-F26+F24-E24)*100+(E26+F24) -> 40204 | BC27: =IF($AM24>$AM27,0.5,IF($AM27>$AM24,-0.5,IF(CK24=1,CB27,IF(BW27<>0,BW27,IF(AX24,0.5,IF(AU27,-0.5,BV24)))))) -> 0.5 | BD27: =IF($AM25>$AM27,0.5,IF($AM27>$AM25,-0.5,IF(CK24=1,BX27,IF(BX27<>0,BX27,IF(AX25,0.5,IF(AV27,-0.5,BV25)))))) -> 0.5 | BE27: =IF($AM26>$AM27,0.5,IF($AM27>$AM26,-0.5,IF(CK24=1,CD27,IF(BY27<>0,BY27,IF(AX26,0.5,IF(AW27,-0.5,BV26)))))) -> -0.5 | BF27: x | BV27: x | BW27: =-BZ24 -> 0.5 | BX27: =-BZ25 -> 0 | BY27: =-BZ26 -> -0.5 | BZ27: x | CB27: =CN27 -> 0.5 | CC27: =CN27 -> 0.5 | CD27: =CN27 -> 0.5 | CE27: x | CN27: =IF(AZ27>MAX(AZ25,AZ24),-0.5,0.5) -> 0.5 | CO27: x
B28: 2012-06-18 | C28: 20:45:00 | D28: =G23 -> Italie | E28: 2 | F28: 0 | G28: =D24 -> Irlande | J28: =IF(OR(I26<3,I25<2),Data!T27," ") -> 
B30: =Data!T32 -> Groupe D
B31: 2012-06-11 | C31: 18:00:00 | D31: =Data!T16 -> France | E31: 1 | F31: 1 | G31: =Data!T17 -> Angleterre | J31: =Data!T32 -> Groupe D | K31: =K7 -> Pts | L31: =L7 -> BP | M31: =M7 -> BC | N31: ="+/-" -> +/- | AK31: Rank | AL31: Team | AM31: Pts | AN31: GF | AO31: GA | AP31: GD | AQ31: Ag1 | AR31: Ag2 | AS31: Ag3 | AT31: Ag4 | AU31: Sp1 | AV31: Sp2 | AW31: Sp3 | AX31: Sp4 | AY31: T123 | AZ31: T124 | BA31: T134 | BB31: T234 | BC31: Rk1 | BD31: Rk2 | BE31: Rk3 | BF31: Rk4 | BG31: T1234 | BH31: T123 | BI31: T124 | BJ31: T134 | BK31: T234 | BL31: T12 | BM31: T13 | BN31: T14 | BO31: T23 | BP31: T24 | BQ31: T34 | BR31: NoT | BS31: sRk1 | BT31: sRk2 | BU31: sRk3 | BV31: sRk4 | BW31: T1x | BX31: T2x | BY31: T3x | BZ31: T4x | CA31: Règle d | CB31: T1x | CC31: T2x | CD31: T3x | CE31: T4x | CF31: T1234 | CG31: T123 | CH31: T124 | CI31: T134 | CJ31: T234 | CK31: TXXX?
B32: 2012-06-11 | C32: 20:45:00 | D32: =Data!T14 -> Ukraine | E32: 2 | F32: 1 | G32: =Data!T15 -> Suède | I32: =AH32 -> 1 | J32: =INDEX(AL32:AL35,MATCH(AJ32,$AK32:$AK35,0)) -> France | K32: =INDEX(AM32:AM35,MATCH(AJ32,$AK32:$AK35,0)) -> 4 | L32: =INDEX(AN32:AN35,MATCH(AJ32,$AK32:$AK35,0)) -> 3 | M32: =INDEX(AO32:AO35,MATCH(AJ32,$AK32:$AK35,0)) -> 1 | N32: =INDEX(AP32:AP35,MATCH(AJ32,$AK32:$AK35,0)) -> 2 | AH32: 1 | AI32: =ROUND(AJ32,0) -> 1 | AJ32: =MIN(AK32:AK35) -> 0.95 | AK32: =SUM(BC32:BF32)+2.45 -> 0.95 | AL32: =D31 -> France | AM32: =SUM(AQ32:AT32) -> 4 | AN32: =E31+E33+F35 -> 3 | AO32: =F31+F33+E35 -> 1 | AP32: =AN32-AO32 -> 2 | AQ32: x | AR32: =IF(ISBLANK(E31),0,IF(E31>F31,3,IF(E31=F31,1,0))) -> 1 | AS32: =IF(ISBLANK(E33),0,IF(E33>F33,3,IF(E33=F33,1,0))) -> 3 | AT32: =IF(ISBLANK(F35),0,IF(F35>E35,3,IF(F35=E35,1,0))) -> 0 | AU32: x | AV32: =(10*(AP32-AP33)+AN32-AN33>0) -> TRUE | AW32: =10*(AP32-AP34)+AN32-AN34>0 -> TRUE | AX32: =10*(AP32-AP35)+AN32-AN35>0 -> TRUE | AY32: =10000*(AR32+AS32)+(E33-F33+E31-F31)*100+(E33+E31) -> 40203 | AZ32: =10000*(AR32+AT32)+(E31-F31+F35-E35)*100+(E31+F35) -> 10001 | BA32: =10000*(AS32+AT32)+(F35-E35+E33-F33)*100+(F35+E33) -> 30202 | BB32: x | BC32: x | BD32: =IF($AM32>$AM33,-0.5,IF($AM33>$AM32,0.5,IF(CK32=1,CC32,IF(BX32<>0,BX32,IF(AV32,-0.5,IF(AU33,0.5,BT32)))))) -> -0.5 | BE32: =IF($AM32>$AM34,-0.5,IF($AM34>$AM32,0.5,IF(CK32=1,CD32,IF(BY32<>0,BY32,IF(AW32,-0.5,IF(AU34,0.5,BU32)))))) -> -0.5 | BF32: =IF($AM32>$AM35,-0.5,IF($AM35>$AM32,0.5,IF(CK32=1,CE32,IF(BZ32<>0,BZ32,IF(AX32,-0.5,IF(AU35,0.5,BV32)))))) -> -0.5 | BG32: =AND(AND(AM32=AM33,AM33=AM34,AM34=AM35),AND(AN32=AN33,AN33=AN34,AN34=AN35),AND(AO32=AO33,AO33=AO34,AO34=AO35)) -> FALSE | BH32: =AND(NOT(BG32),AM32=AM33,AM32=AM34,AN32=AN33,AN32=AN34,AO32=AO33,AO32=AO34) -> FALSE | BI32: =AND(NOT(BG32),AM32=AM33,AM32=AM35,AN32=AN33,AN32=AN35,AO32=AO33,AO32=AO35) -> FALSE | BJ32: =AND(NOT(BG32),AM32=AM34,AM32=AM35,AN32=AN34,AN32=AN35,AO32=AO34,AO32=AO35) -> FALSE | BK32: =AND(NOT(BG32),AM33=AM34,AM33=AM35,AN33=AN34,AN33=AN35,AO33=AO34,AO33=AO35) -> FALSE | BL32: =AND(NOT(BG32),NOT(BH32),NOT(BI32),AM32=AM33,AN32=AN33,AO32=AO33) -> FALSE | BM32: =AND(NOT(BG32),NOT(BH32),NOT(BJ32),AM32=AM34,AN32=AN34,AO32=AO34) -> FALSE | BN32: =AND(NOT(BG32),NOT(BI32),NOT(BJ32),AM32=AM35,AN32=AN35,AO32=AO35) -> FALSE | BO32: =AND(NOT(BG32),NOT(BH32),NOT(BK32),AM33=AM34,AN33=AN34) -> FALSE | BP32: =AND(NOT(BG32),NOT(BI32),NOT(BK32),AM33=AM35,AN33=AN35,AO33=AO35) -> FALSE | BQ32: =AND(NOT(BG32),NOT(BJ32),NOT(BK32),AM34=AM35,AN34=AN35,AO34=AO35) -> FALSE | BR32: =AND(NOT(BG32:BQ32)) -> TRUE | BS32: x | BT32: =IF($BL32,IF(F31-E31<0,-0.5,IF(E31-F31<0,0.5,0)),IF($BH32,IF($AY32>$AY33,-0.5,IF($AY32<$AY33,0.5,0)),IF($BI32,IF($AZ32>$AZ33,-0.5, IF($AZ32<$AZ33,0.5,0)),0))) -> 0 | BU32: =IF($BM32,IF(F33-E33<0,-0.5,IF(E33-F33<0,0.5,0)),IF($BH32,IF($AY32>$AY34,-0.5,IF($AY32<$AY34,0.5,0)),IF($BJ32,IF($BA32>$BA34,-0.5,IF($BA32<$BA34,0.5,0)),0))) -> 0 | BV32: =IF($BN32,IF(E35-F35<0,-0.5,IF(F35-E35<0,0.5,0)),IF($BI32,IF($AZ32>$AZ35,-0.5,IF($AZ32<$AZ35,0.5,0)),IF($BJ32,IF($BA32>$BA35,-0.5, IF($BA32<$BA35,0.5,0)),0))) -> 0 | BW32: x | BX32: =IF(ISBLANK(E31),0,IF(AR32=0,0.5,IF(AR32=3,-0.5,0))) -> 0 | BY32: =IF(ISBLANK(E33),0,IF(AS32=0,0.5,IF(AS32=3,-0.5,0))) -> -0.5 | BZ32: =IF(ISBLANK(F35),0,IF(AT32=0,0.5,IF(AT32=3,-0.5,0))) -> 0 | CB32: x | CC32: =IF(100*AP32+AN32>=MAX(100*AP35+AN35,100*AP34+AN34),-0.5, 0.5) -> -0.5 | CD32: =IF(100*AP32+AN32>=MAX(100*AP33+AN33,100*AP35+AN35),-0.5, 0.5) -> -0.5 | CE32: =IF(100*AP32+AN32>=MAX(100*AP33+AN33,100*AP34+AN34),-0.5, 0.5) -> -0.5 | CF32: =AND(AM32=AM33,AM33=AM34,AM34=AM35) -> FALSE | CG32: =IF(AND(NOT(CF32),AM32=AM33,AM32=AM34),1,0) -> 0 | CH32: =IF(AND(NOT(CF32),AM32=AM33,AM32=AM35),1,0) -> 0 | CI32: =IF(AND(NOT(CF32),AM32=AM34,AM32=AM35),1,0) -> 0 | CJ32: =IF(AND(NOT(CF32),AM33=AM34,AM33=AM35),1,0) -> 0 | CK32: =IF(OR(CH32,CI32,CJ32),1,0) -> 0
B33: 2012-06-15 | C33: 18:00:00 | D33: =D31 -> France | E33: 2 | F33: 0 | G33: =D32 -> Ukraine | I33: =AH33 -> 2 | J33: =INDEX(AL32:AL35,MATCH(AJ33,$AK32:$AK35,0)) -> Angleterre | K33: =INDEX(AM32:AM35,MATCH(AJ33,$AK32:$AK35,0)) -> 4 | L33: =INDEX(AN32:AN35,MATCH(AJ33,$AK32:$AK35,0)) -> 4 | M33: =INDEX(AO32:AO35,MATCH(AJ33,$AK32:$AK35,0)) -> 3 | N33: =INDEX(AP32:AP35,MATCH(AJ33,$AK32:$AK35,0)) -> 1 | AH33: =IF(ROUND(AJ33,0)=ROUND(AJ32,0),AH32,2) -> 2 | AI33: =ROUND(AJ33,0) -> 2 | AJ33: =MAX(MIN(AK32:AK34),MIN(AK32,AK33,AK35),MIN(AK32,AK34,AK35),MIN(AK33:AK35)) -> 1.96 | AK33: =SUM(BC33:BF33)+2.46 -> 1.96 | AL33: =G31 -> Angleterre | AM33: =SUM(AQ33:AT33) -> 4 | AN33: =F31+F34+E36 -> 4 | AO33: =E31+E34+F36 -> 3 | AP33: =AN33-AO33 -> 1 | AQ33: =IF(ISBLANK(F31),0,IF(AR32=3,0,IF(AR32=1,1,3))) -> 1 | AR33: x | AS33: =IF(ISBLANK(E36),0,IF(AR34=3,0,IF(AR34=1,1,3))) -> 0 | AT33: =IF(ISBLANK(F34),0,IF(F34>E34,3,IF(F34=E34,1,0))) -> 3 | AU33: =(10*(AP32-AP33)+AN32-AN33<0) -> FALSE | AV33: x | AW33: =10*(AP33-AP34)+AN33-AN34>0 -> TRUE | AX33: =10*(AP33-AP35)+AN33-AN35>0 -> TRUE | AY33: =10000*(AQ33+AS33)+(F31-E31+E36-F36)*100+(F31+E36) -> 10001 | AZ33: =10000*(AQ33+AT33)+(F31-E31+F34-E34)*100+(F31+F34) -> 40104 | BA33: x | BB33: =10000*(AS33+AT33)+(F34-E34+E36-F36)*100+(F34+E36) -> 30103 | BC33: =IF($AM32>$AM33,0.5,IF($AM33>$AM32,-0.5,IF(CK32=1,CB33,IF(BW33<>0,BW33,IF(AV32,0.5,IF(AU33,-0.5,BT32)))))) -> 0.5 | BD33: x | BE33: =IF($AM33>$AM34,-0.5,IF($AM34>$AM33,0.5,IF(CK32=1,CD33,IF(BY33<>0,BY33,IF(AW33,-0.5,IF(AV34,0.5,BU33)))))) -> -0.5 | BF33: =IF($AM33>$AM35,-0.5,IF($AM35>$AM33,0.5,IF(CK32=1,CE33,IF(BZ33<>0,BZ33,IF(AX33,-0.5,IF(AV35,0.5,BV33)))))) -> -0.5 | BT33: x | BU33: =IF($BO32,IF(F36-E36<0,-0.5,IF(E36-F36<0,0.5,0)),IF($BH32,IF($AY33>$AY34,-0.5,IF($AY33<$AY34,0.5,0)),IF($BK32,IF($BB33>$BB34,-0.5,IF($BB33<$BB34,0.5,0)),0))) -> 0 | BV33: =IF($BP32,IF(E34-F34<0,-0.5,IF(F34-E34<0,0.5,0)),IF($BI32,IF($AZ33>$AZ35,-0.5,IF($AZ33<$AZ35,0.5,0)),IF($BK32,IF($BB33>$BB35,-0.5,IF($BB33<$BB35,0.5,0)),0))) -> 0 | BW33: =-BX32 -> 0 | BX33: x | BY33: =IF(ISBLANK(E36),0,IF(AS33=0,0.5,IF(AS33=3,-0.5,0))) -> 0 | BZ33: =IF(ISBLANK(F34),0,IF(AT33=0,0.5,IF(AT33=3,-0.5,0))) -> -0.5 | CB33: =IF(100*AP33+AN33>=MAX(100*AP34+AN34,100*AP35+AN35),-0.5, 0.5) -> -0.5 | CC33: x | CD33: =IF(100*AP33+AN33>=MAX(100*AP32+AN32,100*AP35+AN35),-0.5, 0.5) -> 0.5 | CE33: =IF(100*AP33+AN33>=MAX(100*AP34+AN34,100*AP32+AN32),-0.5, 0.5) -> 0.5
B34: 2012-06-15 | C34: 20:45:00 | D34: =G32 -> Suède | E34: 2 | F34: 3 | G34: =G31 -> Angleterre | I34: =AH34 -> 3 | J34: =INDEX(AL32:AL35,MATCH(AJ34,$AK32:$AK35,0)) -> Ukraine | K34: =INDEX(AM32:AM35,MATCH(AJ34,$AK32:$AK35,0)) -> 3 | L34: =INDEX(AN32:AN35,MATCH(AJ34,$AK32:$AK35,0)) -> 2 | M34: =INDEX(AO32:AO35,MATCH(AJ34,$AK32:$AK35,0)) -> 3 | N34: =INDEX(AP32:AP35,MATCH(AJ34,$AK32:$AK35,0)) -> -1 | AH34: =IF(ROUND(AJ34,0)=ROUND(AJ33,0),AH33,3) -> 3 | AI34: =ROUND(AJ34,0) -> 3 | AJ34: =MIN(MAX(AK32:AK34),MAX(AK32,AK33,AK35),MAX(AK32,AK34,AK35),MAX(AK33:AK35)) -> 2.97 | AK34: =SUM(BC34:BF34)+2.47 -> 2.97 | AL34: =D32 -> Ukraine | AM34: =SUM(AQ34:AT34) -> 3 | AN34: =E32+F33+F36 -> 2 | AO34: =F32+E33+E36 -> 3 | AP34: =AN34-AO34 -> -1 | AQ34: =IF(ISBLANK(F33),0,IF(AS32=3,0,IF(AS32=1,1,3))) -> 0 | AR34: =IF(ISBLANK(F36),0,IF(F36>E36,3,IF(F36=E36,1,0))) -> 0 | AS34: x | AT34: =IF(ISBLANK(E32),0,IF(E32>F32,3,IF(E32=F32,1,0))) -> 3 | AU34: =10*(AP32-AP34)+AN32-AN34<0 -> FALSE | AV34: =10*(AP33-AP34)+AN33-AN34<0 -> FALSE | AW34: x | AX34: =10*(AP34-AP35)+AN34-AN35>0 -> TRUE | AY34: =10000*(AQ34+AR34)+(F33-E33+F36-E36)*100+(F33+F36) -> -200 | AZ34: x | BA34: =10000*(AQ34+AT34)+(E32-F32+F33-E33)*100+(E32+F33) -> 29902 | BB34: =10000*(AR34+AT34)+(E32-F32+F36-E36)*100+(E32+F36) -> 30102 | BC34: =IF($AM32>$AM34,0.5,IF($AM34>$AM32,-0.5,IF(CK32=1,CB34,IF(BW34<>0,BW34,IF(AW32,0.5,IF(AU34,-0.5,BU32)))))) -> 0.5 | BD34: =IF($AM33>$AM34,0.5,IF($AM34>$AM33,-0.5,IF(CK32=1,CC34,IF(BX34<>0,BX34,IF(AW33,0.5,IF(AV34,-0.5,BU33)))))) -> 0.5 | BE34: x | BF34: =IF($AM34>$AM35,-0.5,IF($AM35>$AM34,0.5,IF(CK32=1,CE34,IF(BZ34<>0,BZ34,IF(AX34,-0.5,IF(AW35,0.5,BV34)))))) -> -0.5 | BU34: x | BV34: =IF($BQ32,IF(F32-E32<0,-0.5,IF(E32-F32<0,0.5,0)),IF($BJ32,IF($BA34>$BA35,-0.5,IF($BA34<$BA35,0.5,0)),IF($BK32,IF($BB34>$BB35,-0.5,IF($BB34<$BB35,0.5,0)),0))) -> 0 | BW34: =-BY32 -> 0.5 | BX34: =-BY33 -> 0 | BY34: x | BZ34: =IF(ISBLANK(E32),0,IF(AT34=0,0.5,IF(AT34=3,-0.5,0))) -> -0.5 | CB34: =IF(100*AP34+AN34>=MAX(100*AP35+AN35,100*AP33+AN33),-0.5, 0.5) -> 0.5 | CC34: =IF(100*AP34+AN34>=MAX(100*AP32+AN32,100*AP33+AN33),-0.5, 0.5) -> 0.5 | CD34: x | CE34: =IF(100*AP34+AN34>=MAX(100*AP32+AN32,100*AP33+AN33),-0.5, 0.5) -> 0.5
B35: 2012-06-19 | C35: 20:45:00 | D35: =G32 -> Suède | G35: =D31 -> France | I35: =AH35 -> 4 | J35: =INDEX(AL32:AL35,MATCH(AJ35,$AK32:$AK35,0)) -> Suède | K35: =INDEX(AM32:AM35,MATCH(AJ35,$AK32:$AK35,0)) -> 0 | L35: =INDEX(AN32:AN35,MATCH(AJ35,$AK32:$AK35,0)) -> 3 | M35: =INDEX(AO32:AO35,MATCH(AJ35,$AK32:$AK35,0)) -> 5 | N35: =INDEX(AP32:AP35,MATCH(AJ35,$AK32:$AK35,0)) -> -2 | AH35: =IF(ROUND(AJ35,0)=ROUND(AJ34,0),AH34,4) -> 4 | AI35: =ROUND(AJ35,0) -> 4 | AJ35: =MAX(AK32:AK35) -> 3.98 | AK35: =SUM(BC35:BF35)+2.48 -> 3.98 | AL35: =G32 -> Suède | AM35: =SUM(AQ35:AT35) -> 0 | AN35: =F32+E34+E35 -> 3 | AO35: =E32+F34+F35 -> 5 | AP35: =AN35-AO35 -> -2 | AQ35: =IF(ISBLANK(E35),0,IF(AT32=3,0,IF(AT32=1,1,3))) -> 0 | AR35: =IF(ISBLANK(E34),0,IF(AT33=3,0,IF(AT33=1,1,3))) -> 0 | AS35: =IF(ISBLANK(F32),0,IF(AT34=3,0,IF(AT34=1,1,3))) -> 0 | AT35: x | AU35: =10*(AP32-AP35)+AN32-AN35<0 -> FALSE | AV35: =10*(AP33-AP35)+AN33-AN35<0 -> FALSE | AW35: =10*(AP34-AP35)+AN34-AN35<0 -> FALSE | AX35: x | AY35: x | AZ35: =10000*(AQ35+AR35)+(E34-F34+E35-F35)*100+(E34+E35) -> -98 | BA35: =10000*(AQ35+AS35)+(E35-F35+F32-E32)*100+(E35+F32) -> -99 | BB35: =10000*(AR35+AS35)+(E34-F34+F32-E32)*100+(E34+F32) -> -197 | BC35: =IF($AM32>$AM35,0.5,IF($AM35>$AM32,-0.5,IF(CK32=1,CB35,IF(BW35<>0,BW35,IF(AX32,0.5,IF(AU35,-0.5,BV32)))))) -> 0.5 | BD35: =IF($AM33>$AM35,0.5,IF($AM35>$AM33,-0.5,IF(CK32=1,BX35,IF(BX35<>0,BX35,IF(AX33,0.5,IF(AV35,-0.5,BV33)))))) -> 0.5 | BE35: =IF($AM34>$AM35,0.5,IF($AM35>$AM34,-0.5,IF(CK32=1,CD35,IF(BY35<>0,BY35,IF(AX34,0.5,IF(AW35,-0.5,BV34)))))) -> 0.5 | BF35: x | BV35: x | BW35: =-BZ32 -> 0 | BX35: =-BZ33 -> 0.5 | BY35: =-BZ34 -> 0.5 | BZ35: x | CB35: =IF(100*AP35+AN35>=MAX(100*AP33+AN33,100*AP34+AN34),-0.5, 0.5) -> 0.5 | CC35: =IF(100*AP35+AN35>=MAX(100*AP32+AN32,100*AP34+AN34),-0.5, 0.5) -> 0.5 | CD35: =IF(100*AP35+AN35>=MAX(100*AP32+AN32,100*AP33+AN33),-0.5, 0.5) -> 0.5 | CE35: x
B36: 2012-06-19 | C36: 20:45:00 | D36: =G31 -> Angleterre | G36: =D32 -> Ukraine | J36: =IF(OR(I34<3,I33<2),Data!T27," ") -> 

Sheet Pronostics
C3: =Data!T53 -> Les Pronostics
BL4: 2012-06-09 | BM4: 2012-06-10
BK5: Users | BL5: 1932 | BM5: =Scores!AB9 -> 2757
BK6: Bets | BL6: 25918 | BM6: =SUM(BL22:BL119) -> 31874
E8: Groupe A | BL8: =BL6/BL5 -> 13.41511387 | BM8: =BM6/BM5 -> 11.56111716
D10: 1 | E10: =VLOOKUP(D10,Data!$B$2:$J$33,7,FALSE) -> 2012-06-08T18:00:00 | X10: 3 | Y10: =VLOOKUP(X10,Data!$B$2:$J$33,7,FALSE) -> 2012-06-12T18:00:00 | AR10: 5 | AS10: =VLOOKUP(AR10,Data!$B$2:$J$33,7,FALSE) -> 2012-06-16T20:45:00
D12: 1 | E12: =VLOOKUP(D12,Data!$B$2:$J$33,5,FALSE) -> Pologne | H12: vs | I12: =VLOOKUP(D12,Data!$B$2:$J$33,6,FALSE) -> Grèce | O12: =VLOOKUP(D13,Data!$B$2:$J$33,5,FALSE) -> Russie | R12: vs | S12: =VLOOKUP(D13,Data!$B$2:$J$33,6,FALSE) -> Rép.Tchèque | X12: 3 | Y12: =VLOOKUP(X12,Data!$B$2:$J$33,5,FALSE) -> Grèce | AB12: vs | AC12: =VLOOKUP(X12,Data!$B$2:$J$33,6,FALSE) -> Rép.Tchèque | AI12: =VLOOKUP(X13,Data!$B$2:$J$33,5,FALSE) -> Pologne | AL12: vs | AM12: =VLOOKUP(X13,Data!$B$2:$J$33,6,FALSE) -> Russie | AR12: 5 | AS12: =VLOOKUP(AR12,Data!$B$2:$J$33,5,FALSE) -> Grèce | AV12: vs | AW12: =VLOOKUP(AR12,Data!$B$2:$J$33,6,FALSE) -> Russie | BC12: =VLOOKUP(AR13,Data!$B$2:$J$33,5,FALSE) -> Rép.Tchèque | BF12: vs | BG12: =VLOOKUP(AR13,Data!$B$2:$J$33,6,FALSE) -> Pologne
D13: 2 | E13: =VLOOKUP(D12,Data!$B$2:$J$33,2,FALSE) -> 1 | H13: =Data!T52 -> à | I13: =VLOOKUP(D12,Data!$B$2:$J$33,3,FALSE) -> 1 | O13: =VLOOKUP(D13,Data!$B$2:$J$33,2,FALSE) -> 4 | R13: =H13 -> à | S13: =VLOOKUP(D13,Data!$B$2:$J$33,3,FALSE) -> 1 | X13: 4 | Y13: =VLOOKUP(X12,Data!$B$2:$J$33,2,FALSE) -> 1 | AB13: =H13 -> à | AC13: =VLOOKUP(X12,Data!$B$2:$J$33,3,FALSE) -> 2 | AI13: =VLOOKUP(X13,Data!$B$2:$J$33,2,FALSE) -> 1 | AL13: =H13 -> à | AM13: =VLOOKUP(X13,Data!$B$2:$J$33,3,FALSE) -> 1 | AR13: 6 | AS13: =VLOOKUP(AR12,Data!$B$2:$J$33,2,FALSE) -> 1 | AV13: =H13 -> à | AW13: =VLOOKUP(AR12,Data!$B$2:$J$33,3,FALSE) -> 0 | BC13: =VLOOKUP(AR13,Data!$B$2:$J$33,2,FALSE) -> 1 | BF13: =H13 -> à | BG13: =VLOOKUP(AR13,Data!$B$2:$J$33,3,FALSE) -> 0
E14: =ROUND((SUM(G17:G22)*G16+SUM(H17:H22)*H16+SUM(I17:I22)*I16+SUM(J17:J22)*J16+SUM(K17:K22)*5)/IF(SUM(F17:K22)=0,1,SUM(F17:K22)),2) -> 1.29 | I14: =ROUND((SUM(F18:K18)*E18+SUM(F19:K19)*E19+SUM(F20:K20)*E20+SUM(F21:K21)*E21++SUM(F22:K22)*5)/IF(SUM(F17:K22)=0,1,SUM(F17:K22)),2) -> 0.6 | O14: =ROUND((SUM(Q17:Q22)*Q16+SUM(R17:R22)*R16+SUM(S17:S22)*S16+SUM(T17:T22)*T16+SUM(U17:U22)*5)/IF(SUM(P17:U22)=0,1,SUM(P17:U22)),2) -> 1.4 | S14: =ROUND((SUM(P18:U18)*O18+SUM(P19:U19)*O19+SUM(P20:U20)*O20+SUM(P21:U21)*O21++SUM(P22:U22)*5)/IF(SUM(P17:U22)=0,1,SUM(P17:U22)),2) -> 1.02 | Y14: =ROUND((SUM(AA17:AA22)*AA16+SUM(AB17:AB22)*AB16+SUM(AC17:AC22)*AC16+SUM(AD17:AD22)*AD16+SUM(AE17:AE22)*5)/IF(SUM(Z17:AE22)=0,1,SUM(Z17:AE22)),2) -> 0.65 | AC14: =ROUND((SUM(Z18:AE18)*Y18+SUM(Z19:AE19)*Y19+SUM(Z20:AE20)*Y20+SUM(Z21:AE21)*Y21++SUM(Z22:AE22)*5)/IF(SUM(Z17:AE22)=0,1,SUM(Z17:AE22)),2) -> 1.38 | AI14: =ROUND((SUM(AK17:AK22)*AK16+SUM(AL17:AL22)*AL16+SUM(AM17:AM22)*AM16+SUM(AN17:AN22)*AN16+SUM(AO17:AO22)*5)/IF(SUM(AJ17:AO22)=0,1,SUM(AJ17:AO22)),2) -> 0.82 | AM14: =ROUND((SUM(AJ18:AO18)*AI18+SUM(AJ19:AO19)*AI19+SUM(AJ20:AO20)*AI20+SUM(AJ21:AO21)*AI21++SUM(AJ22:AO22)*5)/IF(SUM(AJ17:AO22)=0,1,SUM(AJ17:AO22)),2) -> 1.28 | AS14: =ROUND((SUM(AU17:AU22)*AU16+SUM(AV17:AV22)*AV16+SUM(AW17:AW22)*AW16+SUM(AX17:AX22)*AX16+SUM(AY17:AY22)*5)/IF(SUM(AT17:AY22)=0,1,SUM(AT17:AY22)),2) -> 0.65 | AW14: =ROUND((SUM(AT18:AY18)*AS18+SUM(AT19:AY19)*AS19+SUM(AT20:AY20)*AS20+SUM(AT21:AY21)*AS21++SUM(AT22:AY22)*5)/IF(SUM(AT17:AY22)=0,1,SUM(AT17:AY22)),2) -> 1.61 | BC14: =ROUND((SUM(BE17:BE22)*BE16+SUM(BF17:BF22)*BF16+SUM(BG17:BG22)*BG16+SUM(BH17:BH22)*BH16+SUM(BI17:BI22)*5)/IF(SUM(BD17:BI22)=0,1,SUM(BD17:BI22)),2) -> 1.13 | BG14: =ROUND((SUM(BD18:BI18)*BC18+SUM(BD19:BI19)*BC19+SUM(BD20:BI20)*BC20+SUM(BD21:BI21)*BC21++SUM(BD22:BI22)*5)/IF(SUM(BD17:BI22)=0,1,SUM(BD17:BI22)),2) -> 1.03
E15: =E12 -> Pologne | O15: =O12 -> Russie | Y15: =Y12 -> Grèce | AI15: =AI12 -> Pologne | AS15: =AS12 -> Grèce | BC15: =BC12 -> Rép.Tchèque
C16: =I12 -> Grèce | F16: 0 | G16: 1 | H16: 2 | I16: 3 | J16: 4 | K16: 4+ | N16: =S12 -> Rép.Tchèque | P16: 0 | Q16: 1 | R16: 2 | S16: 3 | T16: 4 | U16: 4+ | W16: =AC12 -> Rép.Tchèque | Z16: 0 | AA16: 1 | AB16: 2 | AC16: 3 | AD16: 4 | AE16: 4+ | AH16: =AM12 -> Russie | AJ16: 0 | AK16: 1 | AL16: 2 | AM16: 3 | AN16: 4 | AO16: 4+ | AQ16: =AW12 -> Russie | AT16: 0 | AU16: 1 | AV16: 2 | AW16: 3 | AX16: 4 | AY16: 4+ | BB16: =BG12 -> Pologne | BD16: 0 | BE16: 1 | BF16: 2 | BG16: 3 | BH16: 4 | BI16: 4+
E17: 0 | F17: =VLOOKUP(D12,Data!$W$2:$BG$33,2,FALSE) -> 47 | G17: =VLOOKUP(D12,Data!$W$2:$BG$33,8,FALSE) -> 331 | H17: =VLOOKUP(D12,Data!$W$2:$BG$33,14,FALSE) -> 140 | I17: =VLOOKUP(D12,Data!$W$2:$BG$33,20,FALSE) -> 11 | J17: =VLOOKUP(D12,Data!$W$2:$BG$33,26,FALSE) -> 1 | K17: =VLOOKUP(D12,Data!$W$2:$BG$33,32,FALSE) -> 3 | O17: 0 | P17: =VLOOKUP(D13,Data!$W$2:$BG$33,2,FALSE) -> 22 | Q17: =VLOOKUP(D13,Data!$W$2:$BG$33,8,FALSE) -> 130 | R17: =VLOOKUP(D13,Data!$W$2:$BG$33,14,FALSE) -> 96 | S17: =VLOOKUP(D13,Data!$W$2:$BG$33,20,FALSE) -> 10 | T17: =VLOOKUP(D13,Data!$W$2:$BG$33,26,FALSE) -> 0 | U17: =VLOOKUP(D13,Data!$W$2:$BG$33,32,FALSE) -> 1 | Y17: 0 | Z17: =VLOOKUP(X12,Data!$W$2:$BG$33,2,FALSE) -> 90 | AA17: =VLOOKUP(X12,Data!$W$2:$BG$33,8,FALSE) -> 74 | AB17: =VLOOKUP(X12,Data!$W$2:$BG$33,14,FALSE) -> 22 | AC17: =VLOOKUP(X12,Data!$W$2:$BG$33,20,FALSE) -> 6 | AD17: =VLOOKUP(X12,Data!$W$2:$BG$33,26,FALSE) -> 2 | AE17: =VLOOKUP(X12,Data!$W$2:$BG$33,32,FALSE) -> 0 | AI17: 0 | AJ17: =VLOOKUP(X13,Data!$W$2:$BG$33,2,FALSE) -> 93 | AK17: =VLOOKUP(X13,Data!$W$2:$BG$33,8,FALSE) -> 85 | AL17: =VLOOKUP(X13,Data!$W$2:$BG$33,14,FALSE) -> 19 | AM17: =VLOOKUP(X13,Data!$W$2:$BG$33,20,FALSE) -> 2 | AN17: =VLOOKUP(X13,Data!$W$2:$BG$33,26,FALSE) -> 0 | AO17: =VLOOKUP(X13,Data!$W$2:$BG$33,32,FALSE) -> 0 | AS17: 0 | AT17: =VLOOKUP(AR12,Data!$W$2:$BG$33,2,FALSE) -> 71 | AU17: =VLOOKUP(AR12,Data!$W$2:$BG$33,8,FALSE) -> 68 | AV17: =VLOOKUP(AR12,Data!$W$2:$BG$33,14,FALSE) -> 24 | AW17: =VLOOKUP(AR12,Data!$W$2:$BG$33,20,FALSE) -> 3 | AX17: =VLOOKUP(AR12,Data!$W$2:$BG$33,26,FALSE) -> 3 | AY17: =VLOOKUP(AR12,Data!$W$2:$BG$33,32,FALSE) -> 1 | BC17: 0 | BD17: =VLOOKUP(AR13,Data!$W$2:$BG$33,2,FALSE) -> 95 | BE17: =VLOOKUP(AR13,Data!$W$2:$BG$33,8,FALSE) -> 134 | BF17: =VLOOKUP(AR13,Data!$W$2:$BG$33,14,FALSE) -> 63 | BG17: =VLOOKUP(AR13,Data!$W$2:$BG$33,20,FALSE) -> 18 | BH17: =VLOOKUP(AR13,Data!$W$2:$BG$33,26,FALSE) -> 1 | BI17: =VLOOKUP(AR13,Data!$W$2:$BG$33,32,FALSE) -> 0
E18: 1 | F18: =VLOOKUP(D12,Data!$W$2:$BG$33,3,FALSE) -> 50 | G18: =VLOOKUP(D12,Data!$W$2:$BG$33,9,FALSE) -> 156 | H18: =VLOOKUP(D12,Data!$W$2:$BG$33,15,FALSE) -> 172 | I18: =VLOOKUP(D12,Data!$W$2:$BG$33,21,FALSE) -> 11 | J18: =VLOOKUP(D12,Data!$W$2:$BG$33,27,FALSE) -> 3 | K18: =VLOOKUP(D12,Data!$W$2:$BG$33,33,FALSE) -> 0 | O18: 1 | P18: =VLOOKUP(D13,Data!$W$2:$BG$33,3,FALSE) -> 55 | Q18: =VLOOKUP(D13,Data!$W$2:$BG$33,9,FALSE) -> 190 | R18: =VLOOKUP(D13,Data!$W$2:$BG$33,15,FALSE) -> 205 | S18: =VLOOKUP(D13,Data!$W$2:$BG$33,21,FALSE) -> 40 | T18: =VLOOKUP(D13,Data!$W$2:$BG$33,27,FALSE) -> 8 | U18: =VLOOKUP(D13,Data!$W$2:$BG$33,33,FALSE) -> 0 | Y18: 1 | Z18: =VLOOKUP(X12,Data!$W$2:$BG$33,3,FALSE) -> 220 | AA18: =VLOOKUP(X12,Data!$W$2:$BG$33,9,FALSE) -> 140 | AB18: =VLOOKUP(X12,Data!$W$2:$BG$33,15,FALSE) -> 41 | AC18: =VLOOKUP(X12,Data!$W$2:$BG$33,21,FALSE) -> 8 | AD18: =VLOOKUP(X12,Data!$W$2:$BG$33,27,FALSE) -> 1 | AE18: =VLOOKUP(X12,Data!$W$2:$BG$33,33,FALSE) -> 1 | AI18: 1 | AJ18: =VLOOKUP(X13,Data!$W$2:$BG$33,3,FALSE) -> 139 | AK18: =VLOOKUP(X13,Data!$W$2:$BG$33,9,FALSE) -> 282 | AL18: =VLOOKUP(X13,Data!$W$2:$BG$33,15,FALSE) -> 59 | AM18: =VLOOKUP(X13,Data!$W$2:$BG$33,21,FALSE) -> 9 | AN18: =VLOOKUP(X13,Data!$W$2:$BG$33,27,FALSE) -> 1 | AO18: =VLOOKUP(X13,Data!$W$2:$BG$33,33,FALSE) -> 0 | AS18: 1 | AT18: =VLOOKUP(AR12,Data!$W$2:$BG$33,3,FALSE) -> 160 | AU18: =VLOOKUP(AR12,Data!$W$2:$BG$33,9,FALSE) -> 136 | AV18: =VLOOKUP(AR12,Data!$W$2:$BG$33,15,FALSE) -> 33 | AW18: =VLOOKUP(AR12,Data!$W$2:$BG$33,21,FALSE) -> 6 | AX18: =VLOOKUP(AR12,Data!$W$2:$BG$33,27,FALSE) -> 1 | AY18: =VLOOKUP(AR12,Data!$W$2:$BG$33,33,FALSE) -> 3 | BC18: 1 | BD18: =VLOOKUP(AR13,Data!$W$2:$BG$33,3,FALSE) -> 104 | BE18: =VLOOKUP(AR13,Data!$W$2:$BG$33,9,FALSE) -> 272 | BF18: =VLOOKUP(AR13,Data!$W$2:$BG$33,15,FALSE) -> 131 | BG18: =VLOOKUP(AR13,Data!$W$2:$BG$33,21,FALSE) -> 24 | BH18: =VLOOKUP(AR13,Data!$W$2:$BG$33,27,FALSE) -> 0 | BI18: =VLOOKUP(AR13,Data!$W$2:$BG$33,33,FALSE) -> 0
E19: 2 | F19: =VLOOKUP(D12,Data!$W$2:$BG$33,4,FALSE) -> 19 | G19: =VLOOKUP(D12,Data!$W$2:$BG$33,10,FALSE) -> 52 | H19: =VLOOKUP(D12,Data!$W$2:$BG$33,16,FALSE) -> 13 | I19: =VLOOKUP(D12,Data!$W$2:$BG$33,22,FALSE) -> 4 | J19: =VLOOKUP(D12,Data!$W$2:$BG$33,28,FALSE) -> 2 | K19: =VLOOKUP(D12,Data!$W$2:$BG$33,34,FALSE) -> 0 | O19: 2 | P19: =VLOOKUP(D13,Data!$W$2:$BG$33,4,FALSE) -> 53 | Q19: =VLOOKUP(D13,Data!$W$2:$BG$33,10,FALSE) -> 98 | R19: =VLOOKUP(D13,Data!$W$2:$BG$33,16,FALSE) -> 49 | S19: =VLOOKUP(D13,Data!$W$2:$BG$33,22,FALSE) -> 15 | T19: =VLOOKUP(D13,Data!$W$2:$BG$33,28,FALSE) -> 0 | U19: =VLOOKUP(D13,Data!$W$2:$BG$33,34,FALSE) -> 0 | Y19: 2 | Z19: =VLOOKUP(X12,Data!$W$2:$BG$33,4,FALSE) -> 214 | AA19: =VLOOKUP(X12,Data!$W$2:$BG$33,10,FALSE) -> 136 | AB19: =VLOOKUP(X12,Data!$W$2:$BG$33,16,FALSE) -> 41 | AC19: =VLOOKUP(X12,Data!$W$2:$BG$33,22,FALSE) -> 5 | AD19: =VLOOKUP(X12,Data!$W$2:$BG$33,28,FALSE) -> 0 | AE19: =VLOOKUP(X12,Data!$W$2:$BG$33,34,FALSE) -> 0 | AI19: 2 | AJ19: =VLOOKUP(X13,Data!$W$2:$BG$33,4,FALSE) -> 127 | AK19: =VLOOKUP(X13,Data!$W$2:$BG$33,10,FALSE) -> 164 | AL19: =VLOOKUP(X13,Data!$W$2:$BG$33,16,FALSE) -> 49 | AM19: =VLOOKUP(X13,Data!$W$2:$BG$33,22,FALSE) -> 4 | AN19: =VLOOKUP(X13,Data!$W$2:$BG$33,28,FALSE) -> 1 | AO19: =VLOOKUP(X13,Data!$W$2:$BG$33,34,FALSE) -> 0 | AS19: 2 | AT19: =VLOOKUP(AR12,Data!$W$2:$BG$33,4,FALSE) -> 233 | AU19: =VLOOKUP(AR12,Data!$W$2:$BG$33,10,FALSE) -> 159 | AV19: =VLOOKUP(AR12,Data!$W$2:$BG$33,16,FALSE) -> 29 | AW19: =VLOOKUP(AR12,Data!$W$2:$BG$33,22,FALSE) -> 2 | AX19: =VLOOKUP(AR12,Data!$W$2:$BG$33,28,FALSE) -> 1 | AY19: =VLOOKUP(AR12,Data!$W$2:$BG$33,34,FALSE) -> 0 | BC19: 2 | BD19: =VLOOKUP(AR13,Data!$W$2:$BG$33,4,FALSE) -> 54 | BE19: =VLOOKUP(AR13,Data!$W$2:$BG$33,10,FALSE) -> 117 | BF19: =VLOOKUP(AR13,Data!$W$2:$BG$33,16,FALSE) -> 77 | BG19: =VLOOKUP(AR13,Data!$W$2:$BG$33,22,FALSE) -> 6 | BH19: =VLOOKUP(AR13,Data!$W$2:$BG$33,28,FALSE) -> 3 | BI19: =VLOOKUP(AR13,Data!$W$2:$BG$33,34,FALSE) -> 1
E20: 3 | F20: =VLOOKUP(D12,Data!$W$2:$BG$33,5,FALSE) -> 1 | G20: =VLOOKUP(D12,Data!$W$2:$BG$33,11,FALSE) -> 3 | H20: =VLOOKUP(D12,Data!$W$2:$BG$33,17,FALSE) -> 3 | I20: =VLOOKUP(D12,Data!$W$2:$BG$33,23,FALSE) -> 1 | J20: =VLOOKUP(D12,Data!$W$2:$BG$33,29,FALSE) -> 0 | K20: =VLOOKUP(D12,Data!$W$2:$BG$33,35,FALSE) -> 0 | O20: 3 | P20: =VLOOKUP(D13,Data!$W$2:$BG$33,5,FALSE) -> 4 | Q20: =VLOOKUP(D13,Data!$W$2:$BG$33,11,FALSE) -> 9 | R20: =VLOOKUP(D13,Data!$W$2:$BG$33,17,FALSE) -> 8 | S20: =VLOOKUP(D13,Data!$W$2:$BG$33,23,FALSE) -> 3 | T20: =VLOOKUP(D13,Data!$W$2:$BG$33,29,FALSE) -> 0 | U20: =VLOOKUP(D13,Data!$W$2:$BG$33,35,FALSE) -> 0 | Y20: 3 | Z20: =VLOOKUP(X12,Data!$W$2:$BG$33,5,FALSE) -> 30 | AA20: =VLOOKUP(X12,Data!$W$2:$BG$33,11,FALSE) -> 55 | AB20: =VLOOKUP(X12,Data!$W$2:$BG$33,17,FALSE) -> 6 | AC20: =VLOOKUP(X12,Data!$W$2:$BG$33,23,FALSE) -> 0 | AD20: =VLOOKUP(X12,Data!$W$2:$BG$33,29,FALSE) -> 1 | AE20: =VLOOKUP(X12,Data!$W$2:$BG$33,35,FALSE) -> 0 | AI20: 3 | AJ20: =VLOOKUP(X13,Data!$W$2:$BG$33,5,FALSE) -> 18 | AK20: =VLOOKUP(X13,Data!$W$2:$BG$33,11,FALSE) -> 50 | AL20: =VLOOKUP(X13,Data!$W$2:$BG$33,17,FALSE) -> 11 | AM20: =VLOOKUP(X13,Data!$W$2:$BG$33,23,FALSE) -> 0 | AN20: =VLOOKUP(X13,Data!$W$2:$BG$33,29,FALSE) -> 0 | AO20: =VLOOKUP(X13,Data!$W$2:$BG$33,35,FALSE) -> 0 | AS20: 3 | AT20: =VLOOKUP(AR12,Data!$W$2:$BG$33,5,FALSE) -> 88 | AU20: =VLOOKUP(AR12,Data!$W$2:$BG$33,11,FALSE) -> 83 | AV20: =VLOOKUP(AR12,Data!$W$2:$BG$33,17,FALSE) -> 13 | AW20: =VLOOKUP(AR12,Data!$W$2:$BG$33,23,FALSE) -> 0 | AX20: =VLOOKUP(AR12,Data!$W$2:$BG$33,29,FALSE) -> 1 | AY20: =VLOOKUP(AR12,Data!$W$2:$BG$33,35,FALSE) -> 0 | BC20: 3 | BD20: =VLOOKUP(AR13,Data!$W$2:$BG$33,5,FALSE) -> 2 | BE20: =VLOOKUP(AR13,Data!$W$2:$BG$33,11,FALSE) -> 22 | BF20: =VLOOKUP(AR13,Data!$W$2:$BG$33,17,FALSE) -> 10 | BG20: =VLOOKUP(AR13,Data!$W$2:$BG$33,23,FALSE) -> 1 | BH20: =VLOOKUP(AR13,Data!$W$2:$BG$33,29,FALSE) -> 0 | BI20: =VLOOKUP(AR13,Data!$W$2:$BG$33,35,FALSE) -> 0
E21: 4 | F21: =VLOOKUP(D12,Data!$W$2:$BG$33,6,FALSE) -> 0 | G21: =VLOOKUP(D12,Data!$W$2:$BG$33,12,FALSE) -> 0 | H21: =VLOOKUP(D12,Data!$W$2:$BG$33,18,FALSE) -> 0 | I21: =VLOOKUP(D12,Data!$W$2:$BG$33,24,FALSE) -> 1 | J21: =VLOOKUP(D12,Data!$W$2:$BG$33,30,FALSE) -> 0 | K21: =VLOOKUP(D12,Data!$W$2:$BG$33,36,FALSE) -> 0 | O21: 4 | P21: =VLOOKUP(D13,Data!$W$2:$BG$33,6,FALSE) -> 0 | Q21: =VLOOKUP(D13,Data!$W$2:$BG$33,12,FALSE) -> 0 | R21: =VLOOKUP(D13,Data!$W$2:$BG$33,18,FALSE) -> 0 | S21: =VLOOKUP(D13,Data!$W$2:$BG$33,24,FALSE) -> 1 | T21: =VLOOKUP(D13,Data!$W$2:$BG$33,30,FALSE) -> 0 | U21: =VLOOKUP(D13,Data!$W$2:$BG$33,36,FALSE) -> 1 | Y21: 4 | Z21: =VLOOKUP(X12,Data!$W$2:$BG$33,6,FALSE) -> 5 | AA21: =VLOOKUP(X12,Data!$W$2:$BG$33,12,FALSE) -> 1 | AB21: =VLOOKUP(X12,Data!$W$2:$BG$33,18,FALSE) -> 1 | AC21: =VLOOKUP(X12,Data!$W$2:$BG$33,24,FALSE) -> 1 | AD21: =VLOOKUP(X12,Data!$W$2:$BG$33,30,FALSE) -> 0 | AE21: =VLOOKUP(X12,Data!$W$2:$BG$33,36,FALSE) -> 0 | AI21: 4 | AJ21: =VLOOKUP(X13,Data!$W$2:$BG$33,6,FALSE) -> 1 | AK21: =VLOOKUP(X13,Data!$W$2:$BG$33,12,FALSE) -> 1 | AL21: =VLOOKUP(X13,Data!$W$2:$BG$33,18,FALSE) -> 0 | AM21: =VLOOKUP(X13,Data!$W$2:$BG$33,24,FALSE) -> 0 | AN21: =VLOOKUP(X13,Data!$W$2:$BG$33,30,FALSE) -> 1 | AO21: =VLOOKUP(X13,Data!$W$2:$BG$33,36,FALSE) -> 0 | AS21: 4 | AT21: =VLOOKUP(AR12,Data!$W$2:$BG$33,6,FALSE) -> 8 | AU21: =VLOOKUP(AR12,Data!$W$2:$BG$33,12,FALSE) -> 8 | AV21: =VLOOKUP(AR12,Data!$W$2:$BG$33,18,FALSE) -> 0 | AW21: =VLOOKUP(AR12,Data!$W$2:$BG$33,24,FALSE) -> 0 | AX21: =VLOOKUP(AR12,Data!$W$2:$BG$33,30,FALSE) -> 0 | AY21: =VLOOKUP(AR12,Data!$W$2:$BG$33,36,FALSE) -> 1 | BC21: 4 | BD21: =VLOOKUP(AR13,Data!$W$2:$BG$33,6,FALSE) -> 0 | BE21: =VLOOKUP(AR13,Data!$W$2:$BG$33,12,FALSE) -> 1 | BF21: =VLOOKUP(AR13,Data!$W$2:$BG$33,18,FALSE) -> 0 | BG21: =VLOOKUP(AR13,Data!$W$2:$BG$33,24,FALSE) -> 0 | BH21: =VLOOKUP(AR13,Data!$W$2:$BG$33,30,FALSE) -> 0 | BI21: =VLOOKUP(AR13,Data!$W$2:$BG$33,36,FALSE) -> 0
E22: 4+ | F22: =VLOOKUP(D12,Data!$W$2:$BG$33,7,FALSE) -> 0 | G22: =VLOOKUP(D12,Data!$W$2:$BG$33,13,FALSE) -> 2 | H22: =VLOOKUP(D12,Data!$W$2:$BG$33,19,FALSE) -> 1 | I22: =VLOOKUP(D12,Data!$W$2:$BG$33,25,FALSE) -> 1 | J22: =VLOOKUP(D12,Data!$W$2:$BG$33,31,FALSE) -> 0 | K22: =VLOOKUP(D12,Data!$W$2:$BG$33,37,FALSE) -> 0 | O22: 4+ | P22: =VLOOKUP(D13,Data!$W$2:$BG$33,7,FALSE) -> 0 | Q22: =VLOOKUP(D13,Data!$W$2:$BG$33,13,FALSE) -> 0 | R22: =VLOOKUP(D13,Data!$W$2:$BG$33,19,FALSE) -> 0 | S22: =VLOOKUP(D13,Data!$W$2:$BG$33,25,FALSE) -> 0 | T22: =VLOOKUP(D13,Data!$W$2:$BG$33,31,FALSE) -> 0 | U22: =VLOOKUP(D13,Data!$W$2:$BG$33,37,FALSE) -> 2 | Y22: 4+ | Z22: =VLOOKUP(X12,Data!$W$2:$BG$33,7,FALSE) -> 1 | AA22: =VLOOKUP(X12,Data!$W$2:$BG$33,13,FALSE) -> 0 | AB22: =VLOOKUP(X12,Data!$W$2:$BG$33,19,FALSE) -> 0 | AC22: =VLOOKUP(X12,Data!$W$2:$BG$33,25,FALSE) -> 1 | AD22: =VLOOKUP(X12,Data!$W$2:$BG$33,31,FALSE) -> 1 | AE22: =VLOOKUP(X12,Data!$W$2:$BG$33,37,FALSE) -> 0 | AI22: 4+ | AJ22: =VLOOKUP(X13,Data!$W$2:$BG$33,7,FALSE) -> 0 | AK22: =VLOOKUP(X13,Data!$W$2:$BG$33,13,FALSE) -> 0 | AL22: =VLOOKUP(X13,Data!$W$2:$BG$33,19,FALSE) -> 0 | AM22: =VLOOKUP(X13,Data!$W$2:$BG$33,25,FALSE) -> 0 | AN22: =VLOOKUP(X13,Data!$W$2:$BG$33,31,FALSE) -> 0 | AO22: =VLOOKUP(X13,Data!$W$2:$BG$33,37,FALSE) -> 1 | AS22: 4+ | AT22: =VLOOKUP(AR12,Data!$W$2:$BG$33,7,FALSE) -> 2 | AU22: =VLOOKUP(AR12,Data!$W$2:$BG$33,13,FALSE) -> 0 | AV22: =VLOOKUP(AR12,Data!$W$2:$BG$33,19,FALSE) -> 1 | AW22: =VLOOKUP(AR12,Data!$W$2:$BG$33,25,FALSE) -> 0 | AX22: =VLOOKUP(AR12,Data!$W$2:$BG$33,31,FALSE) -> 0 | AY22: =VLOOKUP(AR12,Data!$W$2:$BG$33,37,FALSE) -> 2 | BC22: 4+ | BD22: =VLOOKUP(AR13,Data!$W$2:$BG$33,7,FALSE) -> 0 | BE22: =VLOOKUP(AR13,Data!$W$2:$BG$33,13,FALSE) -> 1 | BF22: =VLOOKUP(AR13,Data!$W$2:$BG$33,19,FALSE) -> 0 | BG22: =VLOOKUP(AR13,Data!$W$2:$BG$33,25,FALSE) -> 0 | BH22: =VLOOKUP(AR13,Data!$W$2:$BG$33,31,FALSE) -> 0 | BI22: =VLOOKUP(AR13,Data!$W$2:$BG$33,37,FALSE) -> 2 | BL22: =SUM(E16:BI22)-120 -> 6528
E24: Groupe B
D26: 7 | E26: =VLOOKUP(D26,Data!$B$2:$J$33,7,FALSE) -> 2012-06-09T18:00:00 | X26: 9 | Y26: =VLOOKUP(X26,Data!$B$2:$J$33,7,FALSE) -> 2012-06-13T18:00:00 | AR26: 11 | AS26: =VLOOKUP(AR26,Data!$B$2:$J$33,7,FALSE) -> 2012-06-17T20:45:00
D28: 7 | E28: =VLOOKUP(D28,Data!$B$2:$J$33,5,FALSE) -> Pays-Bas | H28: vs | I28: =VLOOKUP(D28,Data!$B$2:$J$33,6,FALSE) -> Danemark | M28: 1 | O28: =VLOOKUP(D29,Data!$B$2:$J$33,5,FALSE) -> Allemagne | R28: vs | S28: =VLOOKUP(D29,Data!$B$2:$J$33,6,FALSE) -> Portugal | X28: 9 | Y28: =VLOOKUP(X28,Data!$B$2:$J$33,5,FALSE) -> Danemark | AB28: vs | AC28: =VLOOKUP(X28,Data!$B$2:$J$33,6,FALSE) -> Portugal | AI28: =VLOOKUP(X29,Data!$B$2:$J$33,5,FALSE) -> Pays-Bas | AL28: vs | AM28: =VLOOKUP(X29,Data!$B$2:$J$33,6,FALSE) -> Allemagne | AR28: 11 | AS28: =VLOOKUP(AR28,Data!$B$2:$J$33,5,FALSE) -> Portugal | AV28: vs | AW28: =VLOOKUP(AR28,Data!$B$2:$J$33,6,FALSE) -> Pays-Bas | BC28: =VLOOKUP(AR29,Data!$B$2:$J$33,5,FALSE) -> Danemark | BF28: vs | BG28: =VLOOKUP(AR29,Data!$B$2:$J$33,6,FALSE) -> Allemagne
D29: 8 | E29: =VLOOKUP(D28,Data!$B$2:$J$33,2,FALSE) -> 0 | H29: =H13 -> à | I29: =VLOOKUP(D28,Data!$B$2:$J$33,3,FALSE) -> 1 | O29: =VLOOKUP(D29,Data!$B$2:$J$33,2,FALSE) -> 1 | R29: =H13 -> à | S29: =VLOOKUP(D29,Data!$B$2:$J$33,3,FALSE) -> 0 | X29: 10 | Y29: =VLOOKUP(X28,Data!$B$2:$J$33,2,FALSE) -> 2 | AB29: =H13 -> à | AC29: =VLOOKUP(X28,Data!$B$2:$J$33,3,FALSE) -> 3 | AI29: =VLOOKUP(X29,Data!$B$2:$J$33,2,FALSE) -> 1 | AL29: =H13 -> à | AM29: =VLOOKUP(X29,Data!$B$2:$J$33,3,FALSE) -> 2 | AR29: 12 | AS29: =VLOOKUP(AR28,Data!$B$2:$J$33,2,FALSE) -> 2 | AV29: =H13 -> à | AW29: =VLOOKUP(AR28,Data!$B$2:$J$33,3,FALSE) -> 1 | BC29: =VLOOKUP(AR29,Data!$B$2:$J$33,2,FALSE) -> 1 | BF29: =H13 -> à | BG29: =VLOOKUP(AR29,Data!$B$2:$J$33,3,FALSE) -> 2
E30: =ROUND((SUM(G33:G38)*G32+SUM(H33:H38)*H32+SUM(I33:I38)*I32+SUM(J33:J38)*J32+SUM(K33:K38)*5)/IF(SUM(F33:K38)=0,1,SUM(F33:K38)),2) -> 2.3 | I30: =ROUND((SUM(F34:K34)*E34+SUM(F35:K35)*E35+SUM(F36:K36)*E36+SUM(F37:K37)*E37++SUM(F38:K38)*5)/IF(SUM(F33:K38)=0,1,SUM(F33:K38)),2) -> 0.53 | O30: =ROUND((SUM(Q33:Q38)*Q32+SUM(R33:R38)*R32+SUM(S33:S38)*S32+SUM(T33:T38)*T32+SUM(U33:U38)*5)/IF(SUM(P33:U38)=0,1,SUM(P33:U38)),2) -> 1.92 | S30: =ROUND((SUM(P34:U34)*O34+SUM(P35:U35)*O35+SUM(P36:U36)*O36+SUM(P37:U37)*O37++SUM(P38:U38)*5)/IF(SUM(P33:U38)=0,1,SUM(P33:U38)),2) -> 1.02 | Y30: =ROUND((SUM(AA33:AA38)*AA32+SUM(AB33:AB38)*AB32+SUM(AC33:AC38)*AC32+SUM(AD33:AD38)*AD32+SUM(AE33:AE38)*5)/IF(SUM(Z33:AE38)=0,1,SUM(Z33:AE38)),2) -> 0.62 | AC30: =ROUND((SUM(Z34:AE34)*Y34+SUM(Z35:AE35)*Y35+SUM(Z36:AE36)*Y36+SUM(Z37:AE37)*Y37++SUM(Z38:AE38)*5)/IF(SUM(Z33:AE38)=0,1,SUM(Z33:AE38)),2) -> 1.67 | AI30: =ROUND((SUM(AK33:AK38)*AK32+SUM(AL33:AL38)*AL32+SUM(AM33:AM38)*AM32+SUM(AN33:AN38)*AN32+SUM(AO33:AO38)*5)/IF(SUM(AJ33:AO38)=0,1,SUM(AJ33:AO38)),2) -> 1.36 | AM30: =ROUND((SUM(AJ34:AO34)*AI34+SUM(AJ35:AO35)*AI35+SUM(AJ36:AO36)*AI36+SUM(AJ37:AO37)*AI37++SUM(AJ38:AO38)*5)/IF(SUM(AJ33:AO38)=0,1,SUM(AJ33:AO38)),2) -> 1.64 | AS30: =ROUND((SUM(AU33:AU38)*AU32+SUM(AV33:AV38)*AV32+SUM(AW33:AW38)*AW32+SUM(AX33:AX38)*AX32+SUM(AY33:AY38)*5)/IF(SUM(AT33:AY38)=0,1,SUM(AT33:AY38)),2) -> 1.09 | AW30: =ROUND((SUM(AT34:AY34)*AS34+SUM(AT35:AY35)*AS35+SUM(AT36:AY36)*AS36+SUM(AT37:AY37)*AS37++SUM(AT38:AY38)*5)/IF(SUM(AT33:AY38)=0,1,SUM(AT33:AY38)),2) -> 1.62 | BC30: =ROUND((SUM(BE33:BE38)*BE32+SUM(BF33:BF38)*BF32+SUM(BG33:BG38)*BG32+SUM(BH33:BH38)*BH32+SUM(BI33:BI38)*5)/IF(SUM(BD33:BI38)=0,1,SUM(BD33:BI38)),2) -> 0.46 | BG30: =ROUND((SUM(BD34:BI34)*BC34+SUM(BD35:BI35)*BC35+SUM(BD36:BI36)*BC36+SUM(BD37:BI37)*BC37++SUM(BD38:BI38)*5)/IF(SUM(BD33:BI38)=0,1,SUM(BD33:BI38)),2) -> 2.23
E31: =E28 -> Pays-Bas | O31: =O28 -> Allemagne | Y31: =Y28 -> Danemark | AI31: =AI28 -> Pays-Bas | AS31: =AS28 -> Portugal | BC31: =BC28 -> Danemark
C32: =I28 -> Danemark | F32: 0 | G32: 1 | H32: 2 | I32: 3 | J32: 4 | K32: 4+ | N32: =S28 -> Portugal | P32: 0 | Q32: 1 | R32: 2 | S32: 3 | T32: 4 | U32: 4+ | W32: =AC28 -> Portugal | Z32: 0 | AA32: 1 | AB32: 2 | AC32: 3 | AD32: 4 | AE32: 4+ | AH32: =AM28 -> Allemagne | AJ32: 0 | AK32: 1 | AL32: 2 | AM32: 3 | AN32: 4 | AO32: 4+ | AQ32: =AW28 -> Pays-Bas | AT32: 0 | AU32: 1 | AV32: 2 | AW32: 3 | AX32: 4 | AY32: 4+ | BB32: =BG28 -> Allemagne | BD32: 0 | BE32: 1 | BF32: 2 | BG32: 3 | BH32: 4 | BI32: 4+
E33: 0 | F33: =VLOOKUP(D28,Data!$W$2:$BG$33,2,FALSE) -> 10 | G33: =VLOOKUP(D28,Data!$W$2:$BG$33,8,FALSE) -> 61 | H33: =VLOOKUP(D28,Data!$W$2:$BG$33,14,FALSE) -> 308 | I33: =VLOOKUP(D28,Data!$W$2:$BG$33,20,FALSE) -> 126 | J33: =VLOOKUP(D28,Data!$W$2:$BG$33,26,FALSE) -> 19 | K33: =VLOOKUP(D28,Data!$W$2:$BG$33,32,FALSE) -> 3 | O33: 0 | P33: =VLOOKUP(D29,Data!$W$2:$BG$33,2,FALSE) -> 18 | Q33: =VLOOKUP(D29,Data!$W$2:$BG$33,8,FALSE) -> 83 | R33: =VLOOKUP(D29,Data!$W$2:$BG$33,14,FALSE) -> 107 | S33: =VLOOKUP(D29,Data!$W$2:$BG$33,20,FALSE) -> 17 | T33: =VLOOKUP(D29,Data!$W$2:$BG$33,26,FALSE) -> 3 | U33: =VLOOKUP(D29,Data!$W$2:$BG$33,32,FALSE) -> 0 | Y33: 0 | Z33: =VLOOKUP(X28,Data!$W$2:$BG$33,2,FALSE) -> 36 | AA33: =VLOOKUP(X28,Data!$W$2:$BG$33,8,FALSE) -> 43 | AB33: =VLOOKUP(X28,Data!$W$2:$BG$33,14,FALSE) -> 6 | AC33: =VLOOKUP(X28,Data!$W$2:$BG$33,20,FALSE) -> 0 | AD33: =VLOOKUP(X28,Data!$W$2:$BG$33,26,FALSE) -> 1 | AE33: =VLOOKUP(X28,Data!$W$2:$BG$33,32,FALSE) -> 0 | AI33: 0 | AJ33: =VLOOKUP(X29,Data!$W$2:$BG$33,2,FALSE) -> 22 | AK33: =VLOOKUP(X29,Data!$W$2:$BG$33,8,FALSE) -> 30 | AL33: =VLOOKUP(X29,Data!$W$2:$BG$33,14,FALSE) -> 16 | AM33: =VLOOKUP(X29,Data!$W$2:$BG$33,20,FALSE) -> 0 | AN33: =VLOOKUP(X29,Data!$W$2:$BG$33,26,FALSE) -> 0 | AO33: =VLOOKUP(X29,Data!$W$2:$BG$33,32,FALSE) -> 0 | AS33: 0 | AT33: =VLOOKUP(AR28,Data!$W$2:$BG$33,2,FALSE) -> 36 | AU33: =VLOOKUP(AR28,Data!$W$2:$BG$33,8,FALSE) -> 46 | AV33: =VLOOKUP(AR28,Data!$W$2:$BG$33,14,FALSE) -> 21 | AW33: =VLOOKUP(AR28,Data!$W$2:$BG$33,20,FALSE) -> 1 | AX33: =VLOOKUP(AR28,Data!$W$2:$BG$33,26,FALSE) -> 1 | AY33: =VLOOKUP(AR28,Data!$W$2:$BG$33,32,FALSE) -> 0 | BC33: 0 | BD33: =VLOOKUP(AR29,Data!$W$2:$BG$33,2,FALSE) -> 17 | BE33: =VLOOKUP(AR29,Data!$W$2:$BG$33,8,FALSE) -> 8 | BF33: =VLOOKUP(AR29,Data!$W$2:$BG$33,14,FALSE) -> 6 | BG33: =VLOOKUP(AR29,Data!$W$2:$BG$33,20,FALSE) -> 0 | BH33: =VLOOKUP(AR29,Data!$W$2:$BG$33,26,FALSE) -> 0 | BI33: =VLOOKUP(AR29,Data!$W$2:$BG$33,32,FALSE) -> 0
E34: 1 | F34: =VLOOKUP(D28,Data!$W$2:$BG$33,3,FALSE) -> 7 | G34: =VLOOKUP(D28,Data!$W$2:$BG$33,9,FALSE) -> 32 | H34: =VLOOKUP(D28,Data!$W$2:$BG$33,15,FALSE) -> 146 | I34: =VLOOKUP(D28,Data!$W$2:$BG$33,21,FALSE) -> 193 | J34: =VLOOKUP(D28,Data!$W$2:$BG$33,27,FALSE) -> 19 | K34: =VLOOKUP(D28,Data!$W$2:$BG$33,33,FALSE) -> 1 | O34: 1 | P34: =VLOOKUP(D29,Data!$W$2:$BG$33,3,FALSE) -> 15 | Q34: =VLOOKUP(D29,Data!$W$2:$BG$33,9,FALSE) -> 107 | R34: =VLOOKUP(D29,Data!$W$2:$BG$33,15,FALSE) -> 310 | S34: =VLOOKUP(D29,Data!$W$2:$BG$33,21,FALSE) -> 109 | T34: =VLOOKUP(D29,Data!$W$2:$BG$33,27,FALSE) -> 5 | U34: =VLOOKUP(D29,Data!$W$2:$BG$33,33,FALSE) -> 0 | Y34: 1 | Z34: =VLOOKUP(X28,Data!$W$2:$BG$33,3,FALSE) -> 218 | AA34: =VLOOKUP(X28,Data!$W$2:$BG$33,9,FALSE) -> 117 | AB34: =VLOOKUP(X28,Data!$W$2:$BG$33,15,FALSE) -> 36 | AC34: =VLOOKUP(X28,Data!$W$2:$BG$33,21,FALSE) -> 3 | AD34: =VLOOKUP(X28,Data!$W$2:$BG$33,27,FALSE) -> 0 | AE34: =VLOOKUP(X28,Data!$W$2:$BG$33,33,FALSE) -> 1 | AI34: 1 | AJ34: =VLOOKUP(X29,Data!$W$2:$BG$33,3,FALSE) -> 67 | AK34: =VLOOKUP(X29,Data!$W$2:$BG$33,9,FALSE) -> 235 | AL34: =VLOOKUP(X29,Data!$W$2:$BG$33,15,FALSE) -> 76 | AM34: =VLOOKUP(X29,Data!$W$2:$BG$33,21,FALSE) -> 11 | AN34: =VLOOKUP(X29,Data!$W$2:$BG$33,27,FALSE) -> 0 | AO34: =VLOOKUP(X29,Data!$W$2:$BG$33,33,FALSE) -> 1 | AS34: 1 | AT34: =VLOOKUP(AR28,Data!$W$2:$BG$33,3,FALSE) -> 98 | AU34: =VLOOKUP(AR28,Data!$W$2:$BG$33,9,FALSE) -> 210 | AV34: =VLOOKUP(AR28,Data!$W$2:$BG$33,15,FALSE) -> 83 | AW34: =VLOOKUP(AR28,Data!$W$2:$BG$33,21,FALSE) -> 9 | AX34: =VLOOKUP(AR28,Data!$W$2:$BG$33,27,FALSE) -> 1 | AY34: =VLOOKUP(AR28,Data!$W$2:$BG$33,33,FALSE) -> 0 | BC34: 1 | BD34: =VLOOKUP(AR29,Data!$W$2:$BG$33,3,FALSE) -> 117 | BE34: =VLOOKUP(AR29,Data!$W$2:$BG$33,9,FALSE) -> 69 | BF34: =VLOOKUP(AR29,Data!$W$2:$BG$33,15,FALSE) -> 10 | BG34: =VLOOKUP(AR29,Data!$W$2:$BG$33,21,FALSE) -> 3 | BH34: =VLOOKUP(AR29,Data!$W$2:$BG$33,27,FALSE) -> 0 | BI34: =VLOOKUP(AR29,Data!$W$2:$BG$33,33,FALSE) -> 1
E35: 2 | F35: =VLOOKUP(D28,Data!$W$2:$BG$33,4,FALSE) -> 3 | G35: =VLOOKUP(D28,Data!$W$2:$BG$33,10,FALSE) -> 7 | H35: =VLOOKUP(D28,Data!$W$2:$BG$33,16,FALSE) -> 17 | I35: =VLOOKUP(D28,Data!$W$2:$BG$33,22,FALSE) -> 15 | J35: =VLOOKUP(D28,Data!$W$2:$BG$33,28,FALSE) -> 3 | K35: =VLOOKUP(D28,Data!$W$2:$BG$33,34,FALSE) -> 1 | O35: 2 | P35: =VLOOKUP(D29,Data!$W$2:$BG$33,4,FALSE) -> 2 | Q35: =VLOOKUP(D29,Data!$W$2:$BG$33,10,FALSE) -> 32 | R35: =VLOOKUP(D29,Data!$W$2:$BG$33,16,FALSE) -> 94 | S35: =VLOOKUP(D29,Data!$W$2:$BG$33,22,FALSE) -> 58 | T35: =VLOOKUP(D29,Data!$W$2:$BG$33,28,FALSE) -> 4 | U35: =VLOOKUP(D29,Data!$W$2:$BG$33,34,FALSE) -> 0 | Y35: 2 | Z35: =VLOOKUP(X28,Data!$W$2:$BG$33,4,FALSE) -> 230 | AA35: =VLOOKUP(X28,Data!$W$2:$BG$33,10,FALSE) -> 226 | AB35: =VLOOKUP(X28,Data!$W$2:$BG$33,16,FALSE) -> 38 | AC35: =VLOOKUP(X28,Data!$W$2:$BG$33,22,FALSE) -> 1 | AD35: =VLOOKUP(X28,Data!$W$2:$BG$33,28,FALSE) -> 0 | AE35: =VLOOKUP(X28,Data!$W$2:$BG$33,34,FALSE) -> 0 | AI35: 2 | AJ35: =VLOOKUP(X29,Data!$W$2:$BG$33,4,FALSE) -> 39 | AK35: =VLOOKUP(X29,Data!$W$2:$BG$33,10,FALSE) -> 208 | AL35: =VLOOKUP(X29,Data!$W$2:$BG$33,16,FALSE) -> 263 | AM35: =VLOOKUP(X29,Data!$W$2:$BG$33,22,FALSE) -> 27 | AN35: =VLOOKUP(X29,Data!$W$2:$BG$33,28,FALSE) -> 1 | AO35: =VLOOKUP(X29,Data!$W$2:$BG$33,34,FALSE) -> 1 | AS35: 2 | AT35: =VLOOKUP(AR28,Data!$W$2:$BG$33,4,FALSE) -> 81 | AU35: =VLOOKUP(AR28,Data!$W$2:$BG$33,10,FALSE) -> 248 | AV35: =VLOOKUP(AR28,Data!$W$2:$BG$33,16,FALSE) -> 104 | AW35: =VLOOKUP(AR28,Data!$W$2:$BG$33,22,FALSE) -> 8 | AX35: =VLOOKUP(AR28,Data!$W$2:$BG$33,28,FALSE) -> 3 | AY35: =VLOOKUP(AR28,Data!$W$2:$BG$33,34,FALSE) -> 0 | BC35: 2 | BD35: =VLOOKUP(AR29,Data!$W$2:$BG$33,4,FALSE) -> 322 | BE35: =VLOOKUP(AR29,Data!$W$2:$BG$33,10,FALSE) -> 135 | BF35: =VLOOKUP(AR29,Data!$W$2:$BG$33,16,FALSE) -> 10 | BG35: =VLOOKUP(AR29,Data!$W$2:$BG$33,22,FALSE) -> 2 | BH35: =VLOOKUP(AR29,Data!$W$2:$BG$33,28,FALSE) -> 0 | BI35: =VLOOKUP(AR29,Data!$W$2:$BG$33,34,FALSE) -> 0
E36: 3 | F36: =VLOOKUP(D28,Data!$W$2:$BG$33,5,FALSE) -> 1 | G36: =VLOOKUP(D28,Data!$W$2:$BG$33,11,FALSE) -> 0 | H36: =VLOOKUP(D28,Data!$W$2:$BG$33,17,FALSE) -> 4 | I36: =VLOOKUP(D28,Data!$W$2:$BG$33,23,FALSE) -> 1 | J36: =VLOOKUP(D28,Data!$W$2:$BG$33,29,FALSE) -> 0 | K36: =VLOOKUP(D28,Data!$W$2:$BG$33,35,FALSE) -> 0 | O36: 3 | P36: =VLOOKUP(D29,Data!$W$2:$BG$33,5,FALSE) -> 0 | Q36: =VLOOKUP(D29,Data!$W$2:$BG$33,11,FALSE) -> 7 | R36: =VLOOKUP(D29,Data!$W$2:$BG$33,17,FALSE) -> 9 | S36: =VLOOKUP(D29,Data!$W$2:$BG$33,23,FALSE) -> 7 | T36: =VLOOKUP(D29,Data!$W$2:$BG$33,29,FALSE) -> 0 | U36: =VLOOKUP(D29,Data!$W$2:$BG$33,35,FALSE) -> 0 | Y36: 3 | Z36: =VLOOKUP(X28,Data!$W$2:$BG$33,5,FALSE) -> 52 | AA36: =VLOOKUP(X28,Data!$W$2:$BG$33,11,FALSE) -> 66 | AB36: =VLOOKUP(X28,Data!$W$2:$BG$33,17,FALSE) -> 12 | AC36: =VLOOKUP(X28,Data!$W$2:$BG$33,23,FALSE) -> 0 | AD36: =VLOOKUP(X28,Data!$W$2:$BG$33,29,FALSE) -> 0 | AE36: =VLOOKUP(X28,Data!$W$2:$BG$33,35,FALSE) -> 0 | AI36: 3 | AJ36: =VLOOKUP(X29,Data!$W$2:$BG$33,5,FALSE) -> 3 | AK36: =VLOOKUP(X29,Data!$W$2:$BG$33,11,FALSE) -> 34 | AL36: =VLOOKUP(X29,Data!$W$2:$BG$33,17,FALSE) -> 60 | AM36: =VLOOKUP(X29,Data!$W$2:$BG$33,23,FALSE) -> 7 | AN36: =VLOOKUP(X29,Data!$W$2:$BG$33,29,FALSE) -> 1 | AO36: =VLOOKUP(X29,Data!$W$2:$BG$33,35,FALSE) -> 0 | AS36: 3 | AT36: =VLOOKUP(AR28,Data!$W$2:$BG$33,5,FALSE) -> 14 | AU36: =VLOOKUP(AR28,Data!$W$2:$BG$33,11,FALSE) -> 91 | AV36: =VLOOKUP(AR28,Data!$W$2:$BG$33,17,FALSE) -> 42 | AW36: =VLOOKUP(AR28,Data!$W$2:$BG$33,23,FALSE) -> 5 | AX36: =VLOOKUP(AR28,Data!$W$2:$BG$33,29,FALSE) -> 0 | AY36: =VLOOKUP(AR28,Data!$W$2:$BG$33,35,FALSE) -> 0 | BC36: 3 | BD36: =VLOOKUP(AR29,Data!$W$2:$BG$33,5,FALSE) -> 176 | BE36: =VLOOKUP(AR29,Data!$W$2:$BG$33,11,FALSE) -> 138 | BF36: =VLOOKUP(AR29,Data!$W$2:$BG$33,17,FALSE) -> 13 | BG36: =VLOOKUP(AR29,Data!$W$2:$BG$33,23,FALSE) -> 0 | BH36: =VLOOKUP(AR29,Data!$W$2:$BG$33,29,FALSE) -> 1 | BI36: =VLOOKUP(AR29,Data!$W$2:$BG$33,35,FALSE) -> 0
E37: 4 | F37: =VLOOKUP(D28,Data!$W$2:$BG$33,6,FALSE) -> 0 | G37: =VLOOKUP(D28,Data!$W$2:$BG$33,12,FALSE) -> 0 | H37: =VLOOKUP(D28,Data!$W$2:$BG$33,18,FALSE) -> 0 | I37: =VLOOKUP(D28,Data!$W$2:$BG$33,24,FALSE) -> 1 | J37: =VLOOKUP(D28,Data!$W$2:$BG$33,30,FALSE) -> 1 | K37: =VLOOKUP(D28,Data!$W$2:$BG$33,36,FALSE) -> 0 | O37: 4 | P37: =VLOOKUP(D29,Data!$W$2:$BG$33,6,FALSE) -> 0 | Q37: =VLOOKUP(D29,Data!$W$2:$BG$33,12,FALSE) -> 0 | R37: =VLOOKUP(D29,Data!$W$2:$BG$33,18,FALSE) -> 0 | S37: =VLOOKUP(D29,Data!$W$2:$BG$33,24,FALSE) -> 1 | T37: =VLOOKUP(D29,Data!$W$2:$BG$33,30,FALSE) -> 0 | U37: =VLOOKUP(D29,Data!$W$2:$BG$33,36,FALSE) -> 0 | Y37: 4 | Z37: =VLOOKUP(X28,Data!$W$2:$BG$33,6,FALSE) -> 3 | AA37: =VLOOKUP(X28,Data!$W$2:$BG$33,12,FALSE) -> 8 | AB37: =VLOOKUP(X28,Data!$W$2:$BG$33,18,FALSE) -> 4 | AC37: =VLOOKUP(X28,Data!$W$2:$BG$33,24,FALSE) -> 0 | AD37: =VLOOKUP(X28,Data!$W$2:$BG$33,30,FALSE) -> 1 | AE37: =VLOOKUP(X28,Data!$W$2:$BG$33,36,FALSE) -> 0 | AI37: 4 | AJ37: =VLOOKUP(X29,Data!$W$2:$BG$33,6,FALSE) -> 2 | AK37: =VLOOKUP(X29,Data!$W$2:$BG$33,12,FALSE) -> 1 | AL37: =VLOOKUP(X29,Data!$W$2:$BG$33,18,FALSE) -> 5 | AM37: =VLOOKUP(X29,Data!$W$2:$BG$33,24,FALSE) -> 1 | AN37: =VLOOKUP(X29,Data!$W$2:$BG$33,30,FALSE) -> 1 | AO37: =VLOOKUP(X29,Data!$W$2:$BG$33,36,FALSE) -> 0 | AS37: 4 | AT37: =VLOOKUP(AR28,Data!$W$2:$BG$33,6,FALSE) -> 1 | AU37: =VLOOKUP(AR28,Data!$W$2:$BG$33,12,FALSE) -> 4 | AV37: =VLOOKUP(AR28,Data!$W$2:$BG$33,18,FALSE) -> 8 | AW37: =VLOOKUP(AR28,Data!$W$2:$BG$33,24,FALSE) -> 2 | AX37: =VLOOKUP(AR28,Data!$W$2:$BG$33,30,FALSE) -> 0 | AY37: =VLOOKUP(AR28,Data!$W$2:$BG$33,36,FALSE) -> 1 | BC37: 4 | BD37: =VLOOKUP(AR29,Data!$W$2:$BG$33,6,FALSE) -> 43 | BE37: =VLOOKUP(AR29,Data!$W$2:$BG$33,12,FALSE) -> 35 | BF37: =VLOOKUP(AR29,Data!$W$2:$BG$33,18,FALSE) -> 6 | BG37: =VLOOKUP(AR29,Data!$W$2:$BG$33,24,FALSE) -> 1 | BH37: =VLOOKUP(AR29,Data!$W$2:$BG$33,30,FALSE) -> 0 | BI37: =VLOOKUP(AR29,Data!$W$2:$BG$33,36,FALSE) -> 0
E38: 4+ | F38: =VLOOKUP(D28,Data!$W$2:$BG$33,7,FALSE) -> 1 | G38: =VLOOKUP(D28,Data!$W$2:$BG$33,13,FALSE) -> 0 | H38: =VLOOKUP(D28,Data!$W$2:$BG$33,19,FALSE) -> 0 | I38: =VLOOKUP(D28,Data!$W$2:$BG$33,25,FALSE) -> 0 | J38: =VLOOKUP(D28,Data!$W$2:$BG$33,31,FALSE) -> 0 | K38: =VLOOKUP(D28,Data!$W$2:$BG$33,37,FALSE) -> 0 | O38: 4+ | P38: =VLOOKUP(D29,Data!$W$2:$BG$33,7,FALSE) -> 0 | Q38: =VLOOKUP(D29,Data!$W$2:$BG$33,13,FALSE) -> 0 | R38: =VLOOKUP(D29,Data!$W$2:$BG$33,19,FALSE) -> 0 | S38: =VLOOKUP(D29,Data!$W$2:$BG$33,25,FALSE) -> 0 | T38: =VLOOKUP(D29,Data!$W$2:$BG$33,31,FALSE) -> 1 | U38: =VLOOKUP(D29,Data!$W$2:$BG$33,37,FALSE) -> 0 | Y38: 4+ | Z38: =VLOOKUP(X28,Data!$W$2:$BG$33,7,FALSE) -> 4 | AA38: =VLOOKUP(X28,Data!$W$2:$BG$33,13,FALSE) -> 1 | AB38: =VLOOKUP(X28,Data!$W$2:$BG$33,19,FALSE) -> 0 | AC38: =VLOOKUP(X28,Data!$W$2:$BG$33,25,FALSE) -> 0 | AD38: =VLOOKUP(X28,Data!$W$2:$BG$33,31,FALSE) -> 1 | AE38: =VLOOKUP(X28,Data!$W$2:$BG$33,37,FALSE) -> 0 | AI38: 4+ | AJ38: =VLOOKUP(X29,Data!$W$2:$BG$33,7,FALSE) -> 0 | AK38: =VLOOKUP(X29,Data!$W$2:$BG$33,13,FALSE) -> 0 | AL38: =VLOOKUP(X29,Data!$W$2:$BG$33,19,FALSE) -> 0 | AM38: =VLOOKUP(X29,Data!$W$2:$BG$33,25,FALSE) -> 0 | AN38: =VLOOKUP(X29,Data!$W$2:$BG$33,31,FALSE) -> 1 | AO38: =VLOOKUP(X29,Data!$W$2:$BG$33,37,FALSE) -> 0 | AS38: 4+ | AT38: =VLOOKUP(AR28,Data!$W$2:$BG$33,7,FALSE) -> 0 | AU38: =VLOOKUP(AR28,Data!$W$2:$BG$33,13,FALSE) -> 1 | AV38: =VLOOKUP(AR28,Data!$W$2:$BG$33,19,FALSE) -> 1 | AW38: =VLOOKUP(AR28,Data!$W$2:$BG$33,25,FALSE) -> 0 | AX38: =VLOOKUP(AR28,Data!$W$2:$BG$33,31,FALSE) -> 0 | AY38: =VLOOKUP(AR28,Data!$W$2:$BG$33,37,FALSE) -> 0 | BC38: 4+ | BD38: =VLOOKUP(AR29,Data!$W$2:$BG$33,7,FALSE) -> 3 | BE38: =VLOOKUP(AR29,Data!$W$2:$BG$33,13,FALSE) -> 3 | BF38: =VLOOKUP(AR29,Data!$W$2:$BG$33,19,FALSE) -> 0 | BG38: =VLOOKUP(AR29,Data!$W$2:$BG$33,25,FALSE) -> 0 | BH38: =VLOOKUP(AR29,Data!$W$2:$BG$33,31,FALSE) -> 0 | BI38: =VLOOKUP(AR29,Data!$W$2:$BG$33,37,FALSE) -> 1 | BL38: =SUM(E32:BI38)-120 -> 6430
E40: Groupe C
D42: 13 | E42: =VLOOKUP(D42,Data!$B$2:$J$33,7,FALSE) -> 2012-06-10T18:00:00 | X42: 15 | Y42: =VLOOKUP(X42,Data!$B$2:$J$33,7,FALSE) -> 2012-06-14T18:00:00 | AR42: 17 | AS42: =VLOOKUP(AR42,Data!$B$2:$J$33,7,FALSE) -> 2012-06-18T20:45:00
D44: 13 | E44: =VLOOKUP(D44,Data!$B$2:$J$33,5,FALSE) -> Espagne | H44: vs | I44: =VLOOKUP(D44,Data!$B$2:$J$33,6,FALSE) -> Italie | M44: 1 | O44: =VLOOKUP(D45,Data!$B$2:$J$33,5,FALSE) -> Irlande | R44: vs | S44: =VLOOKUP(D45,Data!$B$2:$J$33,6,FALSE) -> Croatie | X44: 15 | Y44: =VLOOKUP(X44,Data!$B$2:$J$33,5,FALSE) -> Italie | AB44: vs | AC44: =VLOOKUP(X44,Data!$B$2:$J$33,6,FALSE) -> Croatie | AI44: =VLOOKUP(X45,Data!$B$2:$J$33,5,FALSE) -> Espagne | AL44: vs | AM44: =VLOOKUP(X45,Data!$B$2:$J$33,6,FALSE) -> Irlande | AR44: 17 | AS44: =VLOOKUP(AR44,Data!$B$2:$J$33,5,FALSE) -> Croatie | AV44: vs | AW44: =VLOOKUP(AR44,Data!$B$2:$J$33,6,FALSE) -> Espagne | BC44: =VLOOKUP(AR45,Data!$B$2:$J$33,5,FALSE) -> Italie | BF44: vs | BG44: =VLOOKUP(AR45,Data!$B$2:$J$33,6,FALSE) -> Irlande
D45: 14 | E45: =VLOOKUP(D44,Data!$B$2:$J$33,2,FALSE) -> 1 | H45: =H13 -> à | I45: =VLOOKUP(D44,Data!$B$2:$J$33,3,FALSE) -> 1 | O45: =VLOOKUP(D45,Data!$B$2:$J$33,2,FALSE) -> 1 | R45: =H13 -> à | S45: =VLOOKUP(D45,Data!$B$2:$J$33,3,FALSE) -> 3 | X45: 16 | Y45: =VLOOKUP(X44,Data!$B$2:$J$33,2,FALSE) -> 1 | AB45: =H13 -> à | AC45: =VLOOKUP(X44,Data!$B$2:$J$33,3,FALSE) -> 1 | AI45: =VLOOKUP(X45,Data!$B$2:$J$33,2,FALSE) -> 4 | AL45: =H13 -> à | AM45: =VLOOKUP(X45,Data!$B$2:$J$33,3,FALSE) -> 0 | AR45: 18 | AS45: =VLOOKUP(AR44,Data!$B$2:$J$33,2,FALSE) -> 0 | AV45: =H13 -> à | AW45: =VLOOKUP(AR44,Data!$B$2:$J$33,3,FALSE) -> 1 | BC45: =VLOOKUP(AR45,Data!$B$2:$J$33,2,FALSE) -> 2 | BF45: =H13 -> à | BG45: =VLOOKUP(AR45,Data!$B$2:$J$33,3,FALSE) -> 0
E46: =ROUND((SUM(G49:G54)*G48+SUM(H49:H54)*H48+SUM(I49:I54)*I48+SUM(J49:J54)*J48+SUM(K49:K54)*5)/IF(SUM(F49:K54)=0,1,SUM(F49:K54)),2) -> 1.75 | I46: =ROUND((SUM(F50:K50)*E50+SUM(F51:K51)*E51+SUM(F52:K52)*E52+SUM(F53:K53)*E53++SUM(F54:K54)*5)/IF(SUM(F49:K54)=0,1,SUM(F49:K54)),2) -> 0.75 | O46: =ROUND((SUM(Q49:Q54)*Q48+SUM(R49:R54)*R48+SUM(S49:S54)*S48+SUM(T49:T54)*T48+SUM(U49:U54)*5)/IF(SUM(P49:U54)=0,1,SUM(P49:U54)),2) -> 0.69 | S46: =ROUND((SUM(P50:U50)*O50+SUM(P51:U51)*O51+SUM(P52:U52)*O52+SUM(P53:U53)*O53++SUM(P54:U54)*5)/IF(SUM(P49:U54)=0,1,SUM(P49:U54)),2) -> 1.19 | Y46: =ROUND((SUM(AA49:AA54)*AA48+SUM(AB49:AB54)*AB48+SUM(AC49:AC54)*AC48+SUM(AD49:AD54)*AD48+SUM(AE49:AE54)*5)/IF(SUM(Z49:AE54)=0,1,SUM(Z49:AE54)),2) -> 1.36 | AC46: =ROUND((SUM(Z50:AE50)*Y50+SUM(Z51:AE51)*Y51+SUM(Z52:AE52)*Y52+SUM(Z53:AE53)*Y53++SUM(Z54:AE54)*5)/IF(SUM(Z49:AE54)=0,1,SUM(Z49:AE54)),2) -> 0.81 | AI46: =ROUND((SUM(AK49:AK54)*AK48+SUM(AL49:AL54)*AL48+SUM(AM49:AM54)*AM48+SUM(AN49:AN54)*AN48+SUM(AO49:AO54)*5)/IF(SUM(AJ49:AO54)=0,1,SUM(AJ49:AO54)),2) -> 2.51 | AM46: =ROUND((SUM(AJ50:AO50)*AI50+SUM(AJ51:AO51)*AI51+SUM(AJ52:AO52)*AI52+SUM(AJ53:AO53)*AI53++SUM(AJ54:AO54)*5)/IF(SUM(AJ49:AO54)=0,1,SUM(AJ49:AO54)),2) -> 0.29 | AS46: =ROUND((SUM(AU49:AU54)*AU48+SUM(AV49:AV54)*AV48+SUM(AW49:AW54)*AW48+SUM(AX49:AX54)*AX48+SUM(AY49:AY54)*5)/IF(SUM(AT49:AY54)=0,1,SUM(AT49:AY54)),2) -> 0.62 | AW46: =ROUND((SUM(AT50:AY50)*AS50+SUM(AT51:AY51)*AS51+SUM(AT52:AY52)*AS52+SUM(AT53:AY53)*AS53++SUM(AT54:AY54)*5)/IF(SUM(AT49:AY54)=0,1,SUM(AT49:AY54)),2) -> 2.02 | BC46: =ROUND((SUM(BE49:BE54)*BE48+SUM(BF49:BF54)*BF48+SUM(BG49:BG54)*BG48+SUM(BH49:BH54)*BH48+SUM(BI49:BI54)*5)/IF(SUM(BD49:BI54)=0,1,SUM(BD49:BI54)),2) -> 1.56 | BG46: =ROUND((SUM(BD50:BI50)*BC50+SUM(BD51:BI51)*BC51+SUM(BD52:BI52)*BC52+SUM(BD53:BI53)*BC53++SUM(BD54:BI54)*5)/IF(SUM(BD49:BI54)=0,1,SUM(BD49:BI54)),2) -> 0.49
E47: =E44 -> Espagne | O47: =O44 -> Irlande | Y47: =Y44 -> Italie | AI47: =AI44 -> Espagne | AS47: =AS44 -> Croatie | BC47: =BC44 -> Italie
C48: =I44 -> Italie | F48: 0 | G48: 1 | H48: 2 | I48: 3 | J48: 4 | K48: 4+ | N48: =S44 -> Croatie | P48: 0 | Q48: 1 | R48: 2 | S48: 3 | T48: 4 | U48: 4+ | W48: =AC44 -> Croatie | Z48: 0 | AA48: 1 | AB48: 2 | AC48: 3 | AD48: 4 | AE48: 4+ | AH48: =AM44 -> Irlande | AJ48: 0 | AK48: 1 | AL48: 2 | AM48: 3 | AN48: 4 | AO48: 4+ | AQ48: =AW44 -> Espagne | AT48: 0 | AU48: 1 | AV48: 2 | AW48: 3 | AX48: 4 | AY48: 4+ | BB48: =BG44 -> Irlande | BD48: 0 | BE48: 1 | BF48: 2 | BG48: 3 | BH48: 4 | BI48: 4+
E49: 0 | F49: =VLOOKUP(D44,Data!$W$2:$BG$33,2,FALSE) -> 51 | G49: =VLOOKUP(D44,Data!$W$2:$BG$33,8,FALSE) -> 123 | H49: =VLOOKUP(D44,Data!$W$2:$BG$33,14,FALSE) -> 174 | I49: =VLOOKUP(D44,Data!$W$2:$BG$33,20,FALSE) -> 23 | J49: =VLOOKUP(D44,Data!$W$2:$BG$33,26,FALSE) -> 2 | K49: =VLOOKUP(D44,Data!$W$2:$BG$33,32,FALSE) -> 0 | O49: 0 | P49: =VLOOKUP(D45,Data!$W$2:$BG$33,2,FALSE) -> 93 | Q49: =VLOOKUP(D45,Data!$W$2:$BG$33,8,FALSE) -> 90 | R49: =VLOOKUP(D45,Data!$W$2:$BG$33,14,FALSE) -> 21 | S49: =VLOOKUP(D45,Data!$W$2:$BG$33,20,FALSE) -> 2 | T49: =VLOOKUP(D45,Data!$W$2:$BG$33,26,FALSE) -> 1 | U49: =VLOOKUP(D45,Data!$W$2:$BG$33,32,FALSE) -> 0 | Y49: 0 | Z49: =VLOOKUP(X44,Data!$W$2:$BG$33,2,FALSE) -> 62 | AA49: =VLOOKUP(X44,Data!$W$2:$BG$33,8,FALSE) -> 212 | AB49: =VLOOKUP(X44,Data!$W$2:$BG$33,14,FALSE) -> 86 | AC49: =VLOOKUP(X44,Data!$W$2:$BG$33,20,FALSE) -> 18 | AD49: =VLOOKUP(X44,Data!$W$2:$BG$33,26,FALSE) -> 0 | AE49: =VLOOKUP(X44,Data!$W$2:$BG$33,32,FALSE) -> 0 | AI49: 0 | AJ49: =VLOOKUP(X45,Data!$W$2:$BG$33,2,FALSE) -> 4 | AK49: =VLOOKUP(X45,Data!$W$2:$BG$33,8,FALSE) -> 91 | AL49: =VLOOKUP(X45,Data!$W$2:$BG$33,14,FALSE) -> 345 | AM49: =VLOOKUP(X45,Data!$W$2:$BG$33,20,FALSE) -> 291 | AN49: =VLOOKUP(X45,Data!$W$2:$BG$33,26,FALSE) -> 76 | AO49: =VLOOKUP(X45,Data!$W$2:$BG$33,32,FALSE) -> 9 | AS49: 0 | AT49: =VLOOKUP(AR44,Data!$W$2:$BG$33,2,FALSE) -> 22 | AU49: =VLOOKUP(AR44,Data!$W$2:$BG$33,8,FALSE) -> 8 | AV49: =VLOOKUP(AR44,Data!$W$2:$BG$33,14,FALSE) -> 2 | AW49: =VLOOKUP(AR44,Data!$W$2:$BG$33,20,FALSE) -> 0 | AX49: =VLOOKUP(AR44,Data!$W$2:$BG$33,26,FALSE) -> 0 | AY49: =VLOOKUP(AR44,Data!$W$2:$BG$33,32,FALSE) -> 0 | BC49: 0 | BD49: =VLOOKUP(AR45,Data!$W$2:$BG$33,2,FALSE) -> 48 | BE49: =VLOOKUP(AR45,Data!$W$2:$BG$33,8,FALSE) -> 279 | BF49: =VLOOKUP(AR45,Data!$W$2:$BG$33,14,FALSE) -> 271 | BG49: =VLOOKUP(AR45,Data!$W$2:$BG$33,20,FALSE) -> 45 | BH49: =VLOOKUP(AR45,Data!$W$2:$BG$33,26,FALSE) -> 1 | BI49: =VLOOKUP(AR45,Data!$W$2:$BG$33,32,FALSE) -> 0
E50: 1 | F50: =VLOOKUP(D44,Data!$W$2:$BG$33,3,FALSE) -> 24 | G50: =VLOOKUP(D44,Data!$W$2:$BG$33,9,FALSE) -> 121 | H50: =VLOOKUP(D44,Data!$W$2:$BG$33,15,FALSE) -> 260 | I50: =VLOOKUP(D44,Data!$W$2:$BG$33,21,FALSE) -> 94 | J50: =VLOOKUP(D44,Data!$W$2:$BG$33,27,FALSE) -> 7 | K50: =VLOOKUP(D44,Data!$W$2:$BG$33,33,FALSE) -> 0 | O50: 1 | P50: =VLOOKUP(D45,Data!$W$2:$BG$33,3,FALSE) -> 212 | Q50: =VLOOKUP(D45,Data!$W$2:$BG$33,9,FALSE) -> 186 | R50: =VLOOKUP(D45,Data!$W$2:$BG$33,15,FALSE) -> 45 | S50: =VLOOKUP(D45,Data!$W$2:$BG$33,21,FALSE) -> 1 | T50: =VLOOKUP(D45,Data!$W$2:$BG$33,27,FALSE) -> 0 | U50: =VLOOKUP(D45,Data!$W$2:$BG$33,33,FALSE) -> 0 | Y50: 1 | Z50: =VLOOKUP(X44,Data!$W$2:$BG$33,3,FALSE) -> 47 | AA50: =VLOOKUP(X44,Data!$W$2:$BG$33,9,FALSE) -> 262 | AB50: =VLOOKUP(X44,Data!$W$2:$BG$33,15,FALSE) -> 235 | AC50: =VLOOKUP(X44,Data!$W$2:$BG$33,21,FALSE) -> 31 | AD50: =VLOOKUP(X44,Data!$W$2:$BG$33,27,FALSE) -> 3 | AE50: =VLOOKUP(X44,Data!$W$2:$BG$33,33,FALSE) -> 0 | AI50: 1 | AJ50: =VLOOKUP(X45,Data!$W$2:$BG$33,3,FALSE) -> 3 | AK50: =VLOOKUP(X45,Data!$W$2:$BG$33,9,FALSE) -> 17 | AL50: =VLOOKUP(X45,Data!$W$2:$BG$33,15,FALSE) -> 80 | AM50: =VLOOKUP(X45,Data!$W$2:$BG$33,21,FALSE) -> 126 | AN50: =VLOOKUP(X45,Data!$W$2:$BG$33,27,FALSE) -> 45 | AO50: =VLOOKUP(X45,Data!$W$2:$BG$33,33,FALSE) -> 1 | AS50: 1 | AT50: =VLOOKUP(AR44,Data!$W$2:$BG$33,3,FALSE) -> 134 | AU50: =VLOOKUP(AR44,Data!$W$2:$BG$33,9,FALSE) -> 89 | AV50: =VLOOKUP(AR44,Data!$W$2:$BG$33,15,FALSE) -> 8 | AW50: =VLOOKUP(AR44,Data!$W$2:$BG$33,21,FALSE) -> 1 | AX50: =VLOOKUP(AR44,Data!$W$2:$BG$33,27,FALSE) -> 0 | AY50: =VLOOKUP(AR44,Data!$W$2:$BG$33,33,FALSE) -> 0 | BC50: 1 | BD50: =VLOOKUP(AR45,Data!$W$2:$BG$33,3,FALSE) -> 26 | BE50: =VLOOKUP(AR45,Data!$W$2:$BG$33,9,FALSE) -> 135 | BF50: =VLOOKUP(AR45,Data!$W$2:$BG$33,15,FALSE) -> 178 | BG50: =VLOOKUP(AR45,Data!$W$2:$BG$33,21,FALSE) -> 37 | BH50: =VLOOKUP(AR45,Data!$W$2:$BG$33,27,FALSE) -> 1 | BI50: =VLOOKUP(AR45,Data!$W$2:$BG$33,33,FALSE) -> 1
E51: 2 | F51: =VLOOKUP(D44,Data!$W$2:$BG$33,4,FALSE) -> 1 | G51: =VLOOKUP(D44,Data!$W$2:$BG$33,10,FALSE) -> 23 | H51: =VLOOKUP(D44,Data!$W$2:$BG$33,16,FALSE) -> 42 | I51: =VLOOKUP(D44,Data!$W$2:$BG$33,22,FALSE) -> 33 | J51: =VLOOKUP(D44,Data!$W$2:$BG$33,28,FALSE) -> 2 | K51: =VLOOKUP(D44,Data!$W$2:$BG$33,34,FALSE) -> 0 | O51: 2 | P51: =VLOOKUP(D45,Data!$W$2:$BG$33,4,FALSE) -> 117 | Q51: =VLOOKUP(D45,Data!$W$2:$BG$33,10,FALSE) -> 133 | R51: =VLOOKUP(D45,Data!$W$2:$BG$33,16,FALSE) -> 30 | S51: =VLOOKUP(D45,Data!$W$2:$BG$33,22,FALSE) -> 3 | T51: =VLOOKUP(D45,Data!$W$2:$BG$33,28,FALSE) -> 1 | U51: =VLOOKUP(D45,Data!$W$2:$BG$33,34,FALSE) -> 0 | Y51: 2 | Z51: =VLOOKUP(X44,Data!$W$2:$BG$33,4,FALSE) -> 11 | AA51: =VLOOKUP(X44,Data!$W$2:$BG$33,10,FALSE) -> 53 | AB51: =VLOOKUP(X44,Data!$W$2:$BG$33,16,FALSE) -> 59 | AC51: =VLOOKUP(X44,Data!$W$2:$BG$33,22,FALSE) -> 10 | AD51: =VLOOKUP(X44,Data!$W$2:$BG$33,28,FALSE) -> 0 | AE51: =VLOOKUP(X44,Data!$W$2:$BG$33,34,FALSE) -> 0 | AI51: 2 | AJ51: =VLOOKUP(X45,Data!$W$2:$BG$33,4,FALSE) -> 0 | AK51: =VLOOKUP(X45,Data!$W$2:$BG$33,10,FALSE) -> 7 | AL51: =VLOOKUP(X45,Data!$W$2:$BG$33,16,FALSE) -> 3 | AM51: =VLOOKUP(X45,Data!$W$2:$BG$33,22,FALSE) -> 3 | AN51: =VLOOKUP(X45,Data!$W$2:$BG$33,28,FALSE) -> 2 | AO51: =VLOOKUP(X45,Data!$W$2:$BG$33,34,FALSE) -> 0 | AS51: 2 | AT51: =VLOOKUP(AR44,Data!$W$2:$BG$33,4,FALSE) -> 239 | AU51: =VLOOKUP(AR44,Data!$W$2:$BG$33,10,FALSE) -> 286 | AV51: =VLOOKUP(AR44,Data!$W$2:$BG$33,16,FALSE) -> 28 | AW51: =VLOOKUP(AR44,Data!$W$2:$BG$33,22,FALSE) -> 2 | AX51: =VLOOKUP(AR44,Data!$W$2:$BG$33,28,FALSE) -> 0 | AY51: =VLOOKUP(AR44,Data!$W$2:$BG$33,34,FALSE) -> 0 | BC51: 2 | BD51: =VLOOKUP(AR45,Data!$W$2:$BG$33,4,FALSE) -> 1 | BE51: =VLOOKUP(AR45,Data!$W$2:$BG$33,10,FALSE) -> 18 | BF51: =VLOOKUP(AR45,Data!$W$2:$BG$33,16,FALSE) -> 35 | BG51: =VLOOKUP(AR45,Data!$W$2:$BG$33,22,FALSE) -> 13 | BH51: =VLOOKUP(AR45,Data!$W$2:$BG$33,28,FALSE) -> 0 | BI51: =VLOOKUP(AR45,Data!$W$2:$BG$33,34,FALSE) -> 1
E52: 3 | F52: =VLOOKUP(D44,Data!$W$2:$BG$33,5,FALSE) -> 0 | G52: =VLOOKUP(D44,Data!$W$2:$BG$33,11,FALSE) -> 2 | H52: =VLOOKUP(D44,Data!$W$2:$BG$33,17,FALSE) -> 4 | I52: =VLOOKUP(D44,Data!$W$2:$BG$33,23,FALSE) -> 0 | J52: =VLOOKUP(D44,Data!$W$2:$BG$33,29,FALSE) -> 1 | K52: =VLOOKUP(D44,Data!$W$2:$BG$33,35,FALSE) -> 0 | O52: 3 | P52: =VLOOKUP(D45,Data!$W$2:$BG$33,5,FALSE) -> 12 | Q52: =VLOOKUP(D45,Data!$W$2:$BG$33,11,FALSE) -> 32 | R52: =VLOOKUP(D45,Data!$W$2:$BG$33,17,FALSE) -> 5 | S52: =VLOOKUP(D45,Data!$W$2:$BG$33,23,FALSE) -> 1 | T52: =VLOOKUP(D45,Data!$W$2:$BG$33,29,FALSE) -> 0 | U52: =VLOOKUP(D45,Data!$W$2:$BG$33,35,FALSE) -> 1 | Y52: 3 | Z52: =VLOOKUP(X44,Data!$W$2:$BG$33,5,FALSE) -> 0 | AA52: =VLOOKUP(X44,Data!$W$2:$BG$33,11,FALSE) -> 5 | AB52: =VLOOKUP(X44,Data!$W$2:$BG$33,17,FALSE) -> 4 | AC52: =VLOOKUP(X44,Data!$W$2:$BG$33,23,FALSE) -> 0 | AD52: =VLOOKUP(X44,Data!$W$2:$BG$33,29,FALSE) -> 0 | AE52: =VLOOKUP(X44,Data!$W$2:$BG$33,35,FALSE) -> 0 | AI52: 3 | AJ52: =VLOOKUP(X45,Data!$W$2:$BG$33,5,FALSE) -> 0 | AK52: =VLOOKUP(X45,Data!$W$2:$BG$33,11,FALSE) -> 1 | AL52: =VLOOKUP(X45,Data!$W$2:$BG$33,17,FALSE) -> 2 | AM52: =VLOOKUP(X45,Data!$W$2:$BG$33,23,FALSE) -> 0 | AN52: =VLOOKUP(X45,Data!$W$2:$BG$33,29,FALSE) -> 1 | AO52: =VLOOKUP(X45,Data!$W$2:$BG$33,35,FALSE) -> 0 | AS52: 3 | AT52: =VLOOKUP(AR44,Data!$W$2:$BG$33,5,FALSE) -> 76 | AU52: =VLOOKUP(AR44,Data!$W$2:$BG$33,11,FALSE) -> 134 | AV52: =VLOOKUP(AR44,Data!$W$2:$BG$33,17,FALSE) -> 22 | AW52: =VLOOKUP(AR44,Data!$W$2:$BG$33,23,FALSE) -> 0 | AX52: =VLOOKUP(AR44,Data!$W$2:$BG$33,29,FALSE) -> 0 | AY52: =VLOOKUP(AR44,Data!$W$2:$BG$33,35,FALSE) -> 2 | BC52: 3 | BD52: =VLOOKUP(AR45,Data!$W$2:$BG$33,5,FALSE) -> 1 | BE52: =VLOOKUP(AR45,Data!$W$2:$BG$33,11,FALSE) -> 1 | BF52: =VLOOKUP(AR45,Data!$W$2:$BG$33,17,FALSE) -> 3 | BG52: =VLOOKUP(AR45,Data!$W$2:$BG$33,23,FALSE) -> 0 | BH52: =VLOOKUP(AR45,Data!$W$2:$BG$33,29,FALSE) -> 1 | BI52: =VLOOKUP(AR45,Data!$W$2:$BG$33,35,FALSE) -> 0
E53: 4 | F53: =VLOOKUP(D44,Data!$W$2:$BG$33,6,FALSE) -> 0 | G53: =VLOOKUP(D44,Data!$W$2:$BG$33,12,FALSE) -> 0 | H53: =VLOOKUP(D44,Data!$W$2:$BG$33,18,FALSE) -> 0 | I53: =VLOOKUP(D44,Data!$W$2:$BG$33,24,FALSE) -> 2 | J53: =VLOOKUP(D44,Data!$W$2:$BG$33,30,FALSE) -> 0 | K53: =VLOOKUP(D44,Data!$W$2:$BG$33,36,FALSE) -> 0 | O53: 4 | P53: =VLOOKUP(D45,Data!$W$2:$BG$33,6,FALSE) -> 1 | Q53: =VLOOKUP(D45,Data!$W$2:$BG$33,12,FALSE) -> 1 | R53: =VLOOKUP(D45,Data!$W$2:$BG$33,18,FALSE) -> 0 | S53: =VLOOKUP(D45,Data!$W$2:$BG$33,24,FALSE) -> 0 | T53: =VLOOKUP(D45,Data!$W$2:$BG$33,30,FALSE) -> 0 | U53: =VLOOKUP(D45,Data!$W$2:$BG$33,36,FALSE) -> 0 | Y53: 4 | Z53: =VLOOKUP(X44,Data!$W$2:$BG$33,6,FALSE) -> 0 | AA53: =VLOOKUP(X44,Data!$W$2:$BG$33,12,FALSE) -> 0 | AB53: =VLOOKUP(X44,Data!$W$2:$BG$33,18,FALSE) -> 2 | AC53: =VLOOKUP(X44,Data!$W$2:$BG$33,24,FALSE) -> 0 | AD53: =VLOOKUP(X44,Data!$W$2:$BG$33,30,FALSE) -> 0 | AE53: =VLOOKUP(X44,Data!$W$2:$BG$33,36,FALSE) -> 0 | AI53: 4 | AJ53: =VLOOKUP(X45,Data!$W$2:$BG$33,6,FALSE) -> 0 | AK53: =VLOOKUP(X45,Data!$W$2:$BG$33,12,FALSE) -> 0 | AL53: =VLOOKUP(X45,Data!$W$2:$BG$33,18,FALSE) -> 0 | AM53: =VLOOKUP(X45,Data!$W$2:$BG$33,24,FALSE) -> 0 | AN53: =VLOOKUP(X45,Data!$W$2:$BG$33,30,FALSE) -> 0 | AO53: =VLOOKUP(X45,Data!$W$2:$BG$33,36,FALSE) -> 0 | AS53: 4 | AT53: =VLOOKUP(AR44,Data!$W$2:$BG$33,6,FALSE) -> 20 | AU53: =VLOOKUP(AR44,Data!$W$2:$BG$33,12,FALSE) -> 17 | AV53: =VLOOKUP(AR44,Data!$W$2:$BG$33,18,FALSE) -> 2 | AW53: =VLOOKUP(AR44,Data!$W$2:$BG$33,24,FALSE) -> 0 | AX53: =VLOOKUP(AR44,Data!$W$2:$BG$33,30,FALSE) -> 0 | AY53: =VLOOKUP(AR44,Data!$W$2:$BG$33,36,FALSE) -> 0 | BC53: 4 | BD53: =VLOOKUP(AR45,Data!$W$2:$BG$33,6,FALSE) -> 0 | BE53: =VLOOKUP(AR45,Data!$W$2:$BG$33,12,FALSE) -> 0 | BF53: =VLOOKUP(AR45,Data!$W$2:$BG$33,18,FALSE) -> 0 | BG53: =VLOOKUP(AR45,Data!$W$2:$BG$33,24,FALSE) -> 0 | BH53: =VLOOKUP(AR45,Data!$W$2:$BG$33,30,FALSE) -> 0 | BI53: =VLOOKUP(AR45,Data!$W$2:$BG$33,36,FALSE) -> 0
E54: 4+ | F54: =VLOOKUP(D44,Data!$W$2:$BG$33,7,FALSE) -> 0 | G54: =VLOOKUP(D44,Data!$W$2:$BG$33,13,FALSE) -> 0 | H54: =VLOOKUP(D44,Data!$W$2:$BG$33,19,FALSE) -> 0 | I54: =VLOOKUP(D44,Data!$W$2:$BG$33,25,FALSE) -> 0 | J54: =VLOOKUP(D44,Data!$W$2:$BG$33,31,FALSE) -> 1 | K54: =VLOOKUP(D44,Data!$W$2:$BG$33,37,FALSE) -> 0 | O54: 4+ | P54: =VLOOKUP(D45,Data!$W$2:$BG$33,7,FALSE) -> 1 | Q54: =VLOOKUP(D45,Data!$W$2:$BG$33,13,FALSE) -> 0 | R54: =VLOOKUP(D45,Data!$W$2:$BG$33,19,FALSE) -> 0 | S54: =VLOOKUP(D45,Data!$W$2:$BG$33,25,FALSE) -> 0 | T54: =VLOOKUP(D45,Data!$W$2:$BG$33,31,FALSE) -> 0 | U54: =VLOOKUP(D45,Data!$W$2:$BG$33,37,FALSE) -> 0 | Y54: 4+ | Z54: =VLOOKUP(X44,Data!$W$2:$BG$33,7,FALSE) -> 0 | AA54: =VLOOKUP(X44,Data!$W$2:$BG$33,13,FALSE) -> 1 | AB54: =VLOOKUP(X44,Data!$W$2:$BG$33,19,FALSE) -> 1 | AC54: =VLOOKUP(X44,Data!$W$2:$BG$33,25,FALSE) -> 0 | AD54: =VLOOKUP(X44,Data!$W$2:$BG$33,31,FALSE) -> 1 | AE54: =VLOOKUP(X44,Data!$W$2:$BG$33,37,FALSE) -> 0 | AI54: 4+ | AJ54: =VLOOKUP(X45,Data!$W$2:$BG$33,7,FALSE) -> 0 | AK54: =VLOOKUP(X45,Data!$W$2:$BG$33,13,FALSE) -> 0 | AL54: =VLOOKUP(X45,Data!$W$2:$BG$33,19,FALSE) -> 0 | AM54: =VLOOKUP(X45,Data!$W$2:$BG$33,25,FALSE) -> 0 | AN54: =VLOOKUP(X45,Data!$W$2:$BG$33,31,FALSE) -> 1 | AO54: =VLOOKUP(X45,Data!$W$2:$BG$33,37,FALSE) -> 0 | AS54: 4+ | AT54: =VLOOKUP(AR44,Data!$W$2:$BG$33,7,FALSE) -> 2 | AU54: =VLOOKUP(AR44,Data!$W$2:$BG$33,13,FALSE) -> 1 | AV54: =VLOOKUP(AR44,Data!$W$2:$BG$33,19,FALSE) -> 0 | AW54: =VLOOKUP(AR44,Data!$W$2:$BG$33,25,FALSE) -> 0 | AX54: =VLOOKUP(AR44,Data!$W$2:$BG$33,31,FALSE) -> 0 | AY54: =VLOOKUP(AR44,Data!$W$2:$BG$33,37,FALSE) -> 0 | BC54: 4+ | BD54: =VLOOKUP(AR45,Data!$W$2:$BG$33,7,FALSE) -> 0 | BE54: =VLOOKUP(AR45,Data!$W$2:$BG$33,13,FALSE) -> 0 | BF54: =VLOOKUP(AR45,Data!$W$2:$BG$33,19,FALSE) -> 0 | BG54: =VLOOKUP(AR45,Data!$W$2:$BG$33,25,FALSE) -> 0 | BH54: =VLOOKUP(AR45,Data!$W$2:$BG$33,31,FALSE) -> 0 | BI54: =VLOOKUP(AR45,Data!$W$2:$BG$33,37,FALSE) -> 0 | BL54: =SUM(E48:BI54)-120 -> 6381
E56: Groupe D
D58: 19 | E58: =VLOOKUP(D58,Data!$B$2:$J$33,7,FALSE) -> 2012-06-11T18:00:00 | X58: 21 | Y58: =VLOOKUP(X58,Data!$B$2:$J$33,7,FALSE) -> 2012-06-15T18:00:00 | AR58: 23 | AS58: =VLOOKUP(AR58,Data!$B$2:$J$33,7,FALSE) -> 2012-06-19T20:45:00
D60: 19 | E60: =VLOOKUP(D60,Data!$B$2:$J$33,5,FALSE) -> France | H60: vs | I60: =VLOOKUP(D60,Data!$B$2:$J$33,6,FALSE) -> Angleterre | O60: =VLOOKUP(D61,Data!$B$2:$J$33,5,FALSE) -> Ukraine | R60: vs | S60: =VLOOKUP(D61,Data!$B$2:$J$33,6,FALSE) -> Suède | X60: 21 | Y60: =VLOOKUP(X60,Data!$B$2:$J$33,5,FALSE) -> Ukraine | AB60: vs | AC60: =VLOOKUP(X60,Data!$B$2:$J$33,6,FALSE) -> France | AI60: =VLOOKUP(X61,Data!$B$2:$J$33,5,FALSE) -> Suède | AL60: vs | AM60: =VLOOKUP(X61,Data!$B$2:$J$33,6,FALSE) -> Angleterre | AR60: 23 | AS60: =VLOOKUP(AR60,Data!$B$2:$J$33,5,FALSE) -> Suède | AV60: vs | AW60: =VLOOKUP(AR60,Data!$B$2:$J$33,6,FALSE) -> France | BC60: =VLOOKUP(AR61,Data!$B$2:$J$33,5,FALSE) -> Angleterre | BF60: vs | BG60: =VLOOKUP(AR61,Data!$B$2:$J$33,6,FALSE) -> Ukraine
D61: 20 | E61: =VLOOKUP(D60,Data!$B$2:$J$33,2,FALSE) -> 1 | H61: =H13 -> à | I61: =VLOOKUP(D60,Data!$B$2:$J$33,3,FALSE) -> 1 | O61: =VLOOKUP(D61,Data!$B$2:$J$33,2,FALSE) -> 2 | R61: =H13 -> à | S61: =VLOOKUP(D61,Data!$B$2:$J$33,3,FALSE) -> 1 | X61: 22 | Y61: =VLOOKUP(X60,Data!$B$2:$J$33,2,FALSE) -> 0 | AB61: =H13 -> à | AC61: =VLOOKUP(X60,Data!$B$2:$J$33,3,FALSE) -> 2 | AI61: =VLOOKUP(X61,Data!$B$2:$J$33,2,FALSE) -> 2 | AL61: =H13 -> à | AM61: =VLOOKUP(X61,Data!$B$2:$J$33,3,FALSE) -> 3 | AR61: 24 | AS61: =VLOOKUP(AR60,Data!$B$2:$J$33,2,FALSE) ->  | AV61: =H13 -> à | AW61: =VLOOKUP(AR60,Data!$B$2:$J$33,3,FALSE) ->  | BC61: =VLOOKUP(AR61,Data!$B$2:$J$33,2,FALSE) ->  | BF61: =H13 -> à | BG61: =VLOOKUP(AR61,Data!$B$2:$J$33,3,FALSE) -> 
E62: =ROUND((SUM(G65:G70)*G64+SUM(H65:H70)*H64+SUM(I65:I70)*I64+SUM(J65:J70)*J64+SUM(K65:K70)*5)/IF(SUM(F65:K70)=0,1,SUM(F65:K70)),2) -> 1.54 | I62: =ROUND((SUM(F66:K66)*E66+SUM(F67:K67)*E67+SUM(F68:K68)*E68+SUM(F69:K69)*E69++SUM(F70:K70)*5)/IF(SUM(F65:K70)=0,1,SUM(F65:K70)),2) -> 0.83 | O62: =ROUND((SUM(Q65:Q70)*Q64+SUM(R65:R70)*R64+SUM(S65:S70)*S64+SUM(T65:T70)*T64+SUM(U65:U70)*5)/IF(SUM(P65:U70)=0,1,SUM(P65:U70)),2) -> 0.85 | S62: =ROUND((SUM(P66:U66)*O66+SUM(P67:U67)*O67+SUM(P68:U68)*O68+SUM(P69:U69)*O69++SUM(P70:U70)*5)/IF(SUM(P65:U70)=0,1,SUM(P65:U70)),2) -> 1.18 | Y62: =ROUND((SUM(AA65:AA70)*AA64+SUM(AB65:AB70)*AB64+SUM(AC65:AC70)*AC64+SUM(AD65:AD70)*AD64+SUM(AE65:AE70)*5)/IF(SUM(Z65:AE70)=0,1,SUM(Z65:AE70)),2) -> 0.53 | AC62: =ROUND((SUM(Z66:AE66)*Y66+SUM(Z67:AE67)*Y67+SUM(Z68:AE68)*Y68+SUM(Z69:AE69)*Y69++SUM(Z70:AE70)*5)/IF(SUM(Z65:AE70)=0,1,SUM(Z65:AE70)),2) -> 1.75 | AI62: =ROUND((SUM(AK65:AK70)*AK64+SUM(AL65:AL70)*AL64+SUM(AM65:AM70)*AM64+SUM(AN65:AN70)*AN64+SUM(AO65:AO70)*5)/IF(SUM(AJ65:AO70)=0,1,SUM(AJ65:AO70)),2) -> 0.87 | AM62: =ROUND((SUM(AJ66:AO66)*AI66+SUM(AJ67:AO67)*AI67+SUM(AJ68:AO68)*AI68+SUM(AJ69:AO69)*AI69++SUM(AJ70:AO70)*5)/IF(SUM(AJ65:AO70)=0,1,SUM(AJ65:AO70)),2) -> 1.48 | AS62: =ROUND((SUM(AU65:AU70)*AU64+SUM(AV65:AV70)*AV64+SUM(AW65:AW70)*AW64+SUM(AX65:AX70)*AX64+SUM(AY65:AY70)*5)/IF(SUM(AT65:AY70)=0,1,SUM(AT65:AY70)),2) -> 0.79 | AW62: =ROUND((SUM(AT66:AY66)*AS66+SUM(AT67:AY67)*AS67+SUM(AT68:AY68)*AS68+SUM(AT69:AY69)*AS69++SUM(AT70:AY70)*5)/IF(SUM(AT65:AY70)=0,1,SUM(AT65:AY70)),2) -> 1.58 | BC62: =ROUND((SUM(BE65:BE70)*BE64+SUM(BF65:BF70)*BF64+SUM(BG65:BG70)*BG64+SUM(BH65:BH70)*BH64+SUM(BI65:BI70)*5)/IF(SUM(BD65:BI70)=0,1,SUM(BD65:BI70)),2) -> 1.67 | BG62: =ROUND((SUM(BD66:BI66)*BC66+SUM(BD67:BI67)*BC67+SUM(BD68:BI68)*BC68+SUM(BD69:BI69)*BC69++SUM(BD70:BI70)*5)/IF(SUM(BD65:BI70)=0,1,SUM(BD65:BI70)),2) -> 0.6
O63: =O60 -> Ukraine | Y63: =Y60 -> Ukraine | AI63: =AI60 -> Suède | AS63: =AS60 -> Suède | BC63: =BC60 -> Angleterre
C64: =I60 -> Angleterre | F64: 0 | G64: 1 | H64: 2 | I64: 3 | J64: 4 | K64: 4+ | N64: =S60 -> Suède | P64: 0 | Q64: 1 | R64: 2 | S64: 3 | T64: 4 | U64: 4+ | W64: =AC60 -> France | Z64: 0 | AA64: 1 | AB64: 2 | AC64: 3 | AD64: 4 | AE64: 4+ | AH64: =AM60 -> Angleterre | AJ64: 0 | AK64: 1 | AL64: 2 | AM64: 3 | AN64: 4 | AO64: 4+ | AQ64: =AW60 -> France | AT64: 0 | AU64: 1 | AV64: 2 | AW64: 3 | AX64: 4 | AY64: 4+ | BB64: =BG60 -> Ukraine | BD64: 0 | BE64: 1 | BF64: 2 | BG64: 3 | BH64: 4 | BI64: 4+
E65: 0 | F65: =VLOOKUP(D60,Data!$W$2:$BG$33,2,FALSE) -> 40 | G65: =VLOOKUP(D60,Data!$W$2:$BG$33,8,FALSE) -> 150 | H65: =VLOOKUP(D60,Data!$W$2:$BG$33,14,FALSE) -> 154 | I65: =VLOOKUP(D60,Data!$W$2:$BG$33,20,FALSE) -> 6 | J65: =VLOOKUP(D60,Data!$W$2:$BG$33,26,FALSE) -> 0 | K65: =VLOOKUP(D60,Data!$W$2:$BG$33,32,FALSE) -> 1 | O65: 0 | P65: =VLOOKUP(D61,Data!$W$2:$BG$33,2,FALSE) -> 67 | Q65: =VLOOKUP(D61,Data!$W$2:$BG$33,8,FALSE) -> 109 | R65: =VLOOKUP(D61,Data!$W$2:$BG$33,14,FALSE) -> 38 | S65: =VLOOKUP(D61,Data!$W$2:$BG$33,20,FALSE) -> 2 | T65: =VLOOKUP(D61,Data!$W$2:$BG$33,26,FALSE) -> 0 | U65: =VLOOKUP(D61,Data!$W$2:$BG$33,32,FALSE) -> 0 | Y65: 0 | Z65: =VLOOKUP(X60,Data!$W$2:$BG$33,2,FALSE) -> 31 | AA65: =VLOOKUP(X60,Data!$W$2:$BG$33,8,FALSE) -> 9 | AB65: =VLOOKUP(X60,Data!$W$2:$BG$33,14,FALSE) -> 5 | AC65: =VLOOKUP(X60,Data!$W$2:$BG$33,20,FALSE) -> 1 | AD65: =VLOOKUP(X60,Data!$W$2:$BG$33,26,FALSE) -> 0 | AE65: =VLOOKUP(X60,Data!$W$2:$BG$33,32,FALSE) -> 0 | AI65: 0 | AJ65: =VLOOKUP(X61,Data!$W$2:$BG$33,2,FALSE) -> 40 | AK65: =VLOOKUP(X61,Data!$W$2:$BG$33,8,FALSE) -> 51 | AL65: =VLOOKUP(X61,Data!$W$2:$BG$33,14,FALSE) -> 19 | AM65: =VLOOKUP(X61,Data!$W$2:$BG$33,20,FALSE) -> 2 | AN65: =VLOOKUP(X61,Data!$W$2:$BG$33,26,FALSE) -> 0 | AO65: =VLOOKUP(X61,Data!$W$2:$BG$33,32,FALSE) -> 0 | AS65: 0 | AT65: =VLOOKUP(AR60,Data!$W$2:$BG$33,2,FALSE) -> 40 | AU65: =VLOOKUP(AR60,Data!$W$2:$BG$33,8,FALSE) -> 27 | AV65: =VLOOKUP(AR60,Data!$W$2:$BG$33,14,FALSE) -> 7 | AW65: =VLOOKUP(AR60,Data!$W$2:$BG$33,20,FALSE) -> 0 | AX65: =VLOOKUP(AR60,Data!$W$2:$BG$33,26,FALSE) -> 1 | AY65: =VLOOKUP(AR60,Data!$W$2:$BG$33,32,FALSE) -> 0 | BC65: 0 | BD65: =VLOOKUP(AR61,Data!$W$2:$BG$33,2,FALSE) -> 33 | BE65: =VLOOKUP(AR61,Data!$W$2:$BG$33,8,FALSE) -> 234 | BF65: =VLOOKUP(AR61,Data!$W$2:$BG$33,14,FALSE) -> 243 | BG65: =VLOOKUP(AR61,Data!$W$2:$BG$33,20,FALSE) -> 60 | BH65: =VLOOKUP(AR61,Data!$W$2:$BG$33,26,FALSE) -> 2 | BI65: =VLOOKUP(AR61,Data!$W$2:$BG$33,32,FALSE) -> 0
E66: 1 | F66: =VLOOKUP(D60,Data!$W$2:$BG$33,3,FALSE) -> 28 | G66: =VLOOKUP(D60,Data!$W$2:$BG$33,9,FALSE) -> 187 | H66: =VLOOKUP(D60,Data!$W$2:$BG$33,15,FALSE) -> 315 | I66: =VLOOKUP(D60,Data!$W$2:$BG$33,21,FALSE) -> 37 | J66: =VLOOKUP(D60,Data!$W$2:$BG$33,27,FALSE) -> 2 | K66: =VLOOKUP(D60,Data!$W$2:$BG$33,33,FALSE) -> 0 | O66: 1 | P66: =VLOOKUP(D61,Data!$W$2:$BG$33,3,FALSE) -> 152 | Q66: =VLOOKUP(D61,Data!$W$2:$BG$33,9,FALSE) -> 284 | R66: =VLOOKUP(D61,Data!$W$2:$BG$33,15,FALSE) -> 74 | S66: =VLOOKUP(D61,Data!$W$2:$BG$33,21,FALSE) -> 5 | T66: =VLOOKUP(D61,Data!$W$2:$BG$33,27,FALSE) -> 1 | U66: =VLOOKUP(D61,Data!$W$2:$BG$33,33,FALSE) -> 0 | Y66: 1 | Z66: =VLOOKUP(X60,Data!$W$2:$BG$33,3,FALSE) -> 231 | AA66: =VLOOKUP(X60,Data!$W$2:$BG$33,9,FALSE) -> 131 | AB66: =VLOOKUP(X60,Data!$W$2:$BG$33,15,FALSE) -> 13 | AC66: =VLOOKUP(X60,Data!$W$2:$BG$33,21,FALSE) -> 1 | AD66: =VLOOKUP(X60,Data!$W$2:$BG$33,27,FALSE) -> 0 | AE66: =VLOOKUP(X60,Data!$W$2:$BG$33,33,FALSE) -> 1 | AI66: 1 | AJ66: =VLOOKUP(X61,Data!$W$2:$BG$33,3,FALSE) -> 168 | AK66: =VLOOKUP(X61,Data!$W$2:$BG$33,9,FALSE) -> 216 | AL66: =VLOOKUP(X61,Data!$W$2:$BG$33,15,FALSE) -> 73 | AM66: =VLOOKUP(X61,Data!$W$2:$BG$33,21,FALSE) -> 2 | AN66: =VLOOKUP(X61,Data!$W$2:$BG$33,27,FALSE) -> 1 | AO66: =VLOOKUP(X61,Data!$W$2:$BG$33,33,FALSE) -> 0 | AS66: 1 | AT66: =VLOOKUP(AR60,Data!$W$2:$BG$33,3,FALSE) -> 176 | AU66: =VLOOKUP(AR60,Data!$W$2:$BG$33,9,FALSE) -> 262 | AV66: =VLOOKUP(AR60,Data!$W$2:$BG$33,15,FALSE) -> 20 | AW66: =VLOOKUP(AR60,Data!$W$2:$BG$33,21,FALSE) -> 3 | AX66: =VLOOKUP(AR60,Data!$W$2:$BG$33,27,FALSE) -> 1 | AY66: =VLOOKUP(AR60,Data!$W$2:$BG$33,33,FALSE) -> 0 | BC66: 1 | BD66: =VLOOKUP(AR61,Data!$W$2:$BG$33,3,FALSE) -> 24 | BE66: =VLOOKUP(AR61,Data!$W$2:$BG$33,9,FALSE) -> 121 | BF66: =VLOOKUP(AR61,Data!$W$2:$BG$33,15,FALSE) -> 183 | BG66: =VLOOKUP(AR61,Data!$W$2:$BG$33,21,FALSE) -> 76 | BH66: =VLOOKUP(AR61,Data!$W$2:$BG$33,27,FALSE) -> 5 | BI66: =VLOOKUP(AR61,Data!$W$2:$BG$33,33,FALSE) -> 2
E67: 2 | F67: =VLOOKUP(D60,Data!$W$2:$BG$33,4,FALSE) -> 16 | G67: =VLOOKUP(D60,Data!$W$2:$BG$33,10,FALSE) -> 52 | H67: =VLOOKUP(D60,Data!$W$2:$BG$33,16,FALSE) -> 48 | I67: =VLOOKUP(D60,Data!$W$2:$BG$33,22,FALSE) -> 11 | J67: =VLOOKUP(D60,Data!$W$2:$BG$33,28,FALSE) -> 3 | K67: =VLOOKUP(D60,Data!$W$2:$BG$33,34,FALSE) -> 0 | O67: 2 | P67: =VLOOKUP(D61,Data!$W$2:$BG$33,4,FALSE) -> 104 | Q67: =VLOOKUP(D61,Data!$W$2:$BG$33,10,FALSE) -> 146 | R67: =VLOOKUP(D61,Data!$W$2:$BG$33,16,FALSE) -> 28 | S67: =VLOOKUP(D61,Data!$W$2:$BG$33,22,FALSE) -> 4 | T67: =VLOOKUP(D61,Data!$W$2:$BG$33,28,FALSE) -> 0 | U67: =VLOOKUP(D61,Data!$W$2:$BG$33,34,FALSE) -> 1 | Y67: 2 | Z67: =VLOOKUP(X60,Data!$W$2:$BG$33,4,FALSE) -> 271 | AA67: =VLOOKUP(X60,Data!$W$2:$BG$33,10,FALSE) -> 216 | AB67: =VLOOKUP(X60,Data!$W$2:$BG$33,16,FALSE) -> 20 | AC67: =VLOOKUP(X60,Data!$W$2:$BG$33,22,FALSE) -> 0 | AD67: =VLOOKUP(X60,Data!$W$2:$BG$33,28,FALSE) -> 0 | AE67: =VLOOKUP(X60,Data!$W$2:$BG$33,34,FALSE) -> 1 | AI67: 2 | AJ67: =VLOOKUP(X61,Data!$W$2:$BG$33,4,FALSE) -> 138 | AK67: =VLOOKUP(X61,Data!$W$2:$BG$33,10,FALSE) -> 225 | AL67: =VLOOKUP(X61,Data!$W$2:$BG$33,16,FALSE) -> 80 | AM67: =VLOOKUP(X61,Data!$W$2:$BG$33,22,FALSE) -> 4 | AN67: =VLOOKUP(X61,Data!$W$2:$BG$33,28,FALSE) -> 1 | AO67: =VLOOKUP(X61,Data!$W$2:$BG$33,34,FALSE) -> 0 | AS67: 2 | AT67: =VLOOKUP(AR60,Data!$W$2:$BG$33,4,FALSE) -> 118 | AU67: =VLOOKUP(AR60,Data!$W$2:$BG$33,10,FALSE) -> 254 | AV67: =VLOOKUP(AR60,Data!$W$2:$BG$33,16,FALSE) -> 53 | AW67: =VLOOKUP(AR60,Data!$W$2:$BG$33,22,FALSE) -> 1 | AX67: =VLOOKUP(AR60,Data!$W$2:$BG$33,28,FALSE) -> 0 | AY67: =VLOOKUP(AR60,Data!$W$2:$BG$33,34,FALSE) -> 0 | BC67: 2 | BD67: =VLOOKUP(AR61,Data!$W$2:$BG$33,4,FALSE) -> 11 | BE67: =VLOOKUP(AR61,Data!$W$2:$BG$33,10,FALSE) -> 41 | BF67: =VLOOKUP(AR61,Data!$W$2:$BG$33,16,FALSE) -> 41 | BG67: =VLOOKUP(AR61,Data!$W$2:$BG$33,22,FALSE) -> 10 | BH67: =VLOOKUP(AR61,Data!$W$2:$BG$33,28,FALSE) -> 1 | BI67: =VLOOKUP(AR61,Data!$W$2:$BG$33,34,FALSE) -> 0
E68: 3 | F68: =VLOOKUP(D60,Data!$W$2:$BG$33,5,FALSE) -> 1 | G68: =VLOOKUP(D60,Data!$W$2:$BG$33,11,FALSE) -> 3 | H68: =VLOOKUP(D60,Data!$W$2:$BG$33,17,FALSE) -> 2 | I68: =VLOOKUP(D60,Data!$W$2:$BG$33,23,FALSE) -> 3 | J68: =VLOOKUP(D60,Data!$W$2:$BG$33,29,FALSE) -> 0 | K68: =VLOOKUP(D60,Data!$W$2:$BG$33,35,FALSE) -> 0 | O68: 3 | P68: =VLOOKUP(D61,Data!$W$2:$BG$33,5,FALSE) -> 13 | Q68: =VLOOKUP(D61,Data!$W$2:$BG$33,11,FALSE) -> 34 | R68: =VLOOKUP(D61,Data!$W$2:$BG$33,17,FALSE) -> 7 | S68: =VLOOKUP(D61,Data!$W$2:$BG$33,23,FALSE) -> 0 | T68: =VLOOKUP(D61,Data!$W$2:$BG$33,29,FALSE) -> 0 | U68: =VLOOKUP(D61,Data!$W$2:$BG$33,35,FALSE) -> 0 | Y68: 3 | Z68: =VLOOKUP(X60,Data!$W$2:$BG$33,5,FALSE) -> 60 | AA68: =VLOOKUP(X60,Data!$W$2:$BG$33,11,FALSE) -> 104 | AB68: =VLOOKUP(X60,Data!$W$2:$BG$33,17,FALSE) -> 14 | AC68: =VLOOKUP(X60,Data!$W$2:$BG$33,23,FALSE) -> 0 | AD68: =VLOOKUP(X60,Data!$W$2:$BG$33,29,FALSE) -> 0 | AE68: =VLOOKUP(X60,Data!$W$2:$BG$33,35,FALSE) -> 1 | AI68: 3 | AJ68: =VLOOKUP(X61,Data!$W$2:$BG$33,5,FALSE) -> 19 | AK68: =VLOOKUP(X61,Data!$W$2:$BG$33,11,FALSE) -> 51 | AL68: =VLOOKUP(X61,Data!$W$2:$BG$33,17,FALSE) -> 18 | AM68: =VLOOKUP(X61,Data!$W$2:$BG$33,23,FALSE) -> 2 | AN68: =VLOOKUP(X61,Data!$W$2:$BG$33,29,FALSE) -> 0 | AO68: =VLOOKUP(X61,Data!$W$2:$BG$33,35,FALSE) -> 0 | AS68: 3 | AT68: =VLOOKUP(AR60,Data!$W$2:$BG$33,5,FALSE) -> 18 | AU68: =VLOOKUP(AR60,Data!$W$2:$BG$33,11,FALSE) -> 87 | AV68: =VLOOKUP(AR60,Data!$W$2:$BG$33,17,FALSE) -> 24 | AW68: =VLOOKUP(AR60,Data!$W$2:$BG$33,23,FALSE) -> 2 | AX68: =VLOOKUP(AR60,Data!$W$2:$BG$33,29,FALSE) -> 0 | AY68: =VLOOKUP(AR60,Data!$W$2:$BG$33,35,FALSE) -> 0 | BC68: 3 | BD68: =VLOOKUP(AR61,Data!$W$2:$BG$33,5,FALSE) -> 1 | BE68: =VLOOKUP(AR61,Data!$W$2:$BG$33,11,FALSE) -> 6 | BF68: =VLOOKUP(AR61,Data!$W$2:$BG$33,17,FALSE) -> 4 | BG68: =VLOOKUP(AR61,Data!$W$2:$BG$33,23,FALSE) -> 0 | BH68: =VLOOKUP(AR61,Data!$W$2:$BG$33,29,FALSE) -> 2 | BI68: =VLOOKUP(AR61,Data!$W$2:$BG$33,35,FALSE) -> 0
E69: 4 | F69: =VLOOKUP(D60,Data!$W$2:$BG$33,6,FALSE) -> 0 | G69: =VLOOKUP(D60,Data!$W$2:$BG$33,12,FALSE) -> 2 | H69: =VLOOKUP(D60,Data!$W$2:$BG$33,18,FALSE) -> 2 | I69: =VLOOKUP(D60,Data!$W$2:$BG$33,24,FALSE) -> 1 | J69: =VLOOKUP(D60,Data!$W$2:$BG$33,30,FALSE) -> 0 | K69: =VLOOKUP(D60,Data!$W$2:$BG$33,36,FALSE) -> 0 | O69: 4 | P69: =VLOOKUP(D61,Data!$W$2:$BG$33,6,FALSE) -> 1 | Q69: =VLOOKUP(D61,Data!$W$2:$BG$33,12,FALSE) -> 2 | R69: =VLOOKUP(D61,Data!$W$2:$BG$33,18,FALSE) -> 0 | S69: =VLOOKUP(D61,Data!$W$2:$BG$33,24,FALSE) -> 0 | T69: =VLOOKUP(D61,Data!$W$2:$BG$33,30,FALSE) -> 0 | U69: =VLOOKUP(D61,Data!$W$2:$BG$33,36,FALSE) -> 0 | Y69: 4 | Z69: =VLOOKUP(X60,Data!$W$2:$BG$33,6,FALSE) -> 1 | AA69: =VLOOKUP(X60,Data!$W$2:$BG$33,12,FALSE) -> 4 | AB69: =VLOOKUP(X60,Data!$W$2:$BG$33,18,FALSE) -> 0 | AC69: =VLOOKUP(X60,Data!$W$2:$BG$33,24,FALSE) -> 0 | AD69: =VLOOKUP(X60,Data!$W$2:$BG$33,30,FALSE) -> 0 | AE69: =VLOOKUP(X60,Data!$W$2:$BG$33,36,FALSE) -> 0 | AI69: 4 | AJ69: =VLOOKUP(X61,Data!$W$2:$BG$33,6,FALSE) -> 0 | AK69: =VLOOKUP(X61,Data!$W$2:$BG$33,12,FALSE) -> 1 | AL69: =VLOOKUP(X61,Data!$W$2:$BG$33,18,FALSE) -> 4 | AM69: =VLOOKUP(X61,Data!$W$2:$BG$33,24,FALSE) -> 0 | AN69: =VLOOKUP(X61,Data!$W$2:$BG$33,30,FALSE) -> 0 | AO69: =VLOOKUP(X61,Data!$W$2:$BG$33,36,FALSE) -> 1 | AS69: 4 | AT69: =VLOOKUP(AR60,Data!$W$2:$BG$33,6,FALSE) -> 1 | AU69: =VLOOKUP(AR60,Data!$W$2:$BG$33,12,FALSE) -> 3 | AV69: =VLOOKUP(AR60,Data!$W$2:$BG$33,18,FALSE) -> 3 | AW69: =VLOOKUP(AR60,Data!$W$2:$BG$33,24,FALSE) -> 0 | AX69: =VLOOKUP(AR60,Data!$W$2:$BG$33,30,FALSE) -> 0 | AY69: =VLOOKUP(AR60,Data!$W$2:$BG$33,36,FALSE) -> 0 | BC69: 4 | BD69: =VLOOKUP(AR61,Data!$W$2:$BG$33,6,FALSE) -> 0 | BE69: =VLOOKUP(AR61,Data!$W$2:$BG$33,12,FALSE) -> 0 | BF69: =VLOOKUP(AR61,Data!$W$2:$BG$33,18,FALSE) -> 0 | BG69: =VLOOKUP(AR61,Data!$W$2:$BG$33,24,FALSE) -> 0 | BH69: =VLOOKUP(AR61,Data!$W$2:$BG$33,30,FALSE) -> 0 | BI69: =VLOOKUP(AR61,Data!$W$2:$BG$33,36,FALSE) -> 0
E70: 4+ | F70: =VLOOKUP(D60,Data!$W$2:$BG$33,7,FALSE) -> 0 | G70: =VLOOKUP(D60,Data!$W$2:$BG$33,13,FALSE) -> 0 | H70: =VLOOKUP(D60,Data!$W$2:$BG$33,19,FALSE) -> 0 | I70: =VLOOKUP(D60,Data!$W$2:$BG$33,25,FALSE) -> 0 | J70: =VLOOKUP(D60,Data!$W$2:$BG$33,31,FALSE) -> 0 | K70: =VLOOKUP(D60,Data!$W$2:$BG$33,37,FALSE) -> 1 | O70: 4+ | P70: =VLOOKUP(D61,Data!$W$2:$BG$33,7,FALSE) -> 0 | Q70: =VLOOKUP(D61,Data!$W$2:$BG$33,13,FALSE) -> 0 | R70: =VLOOKUP(D61,Data!$W$2:$BG$33,19,FALSE) -> 0 | S70: =VLOOKUP(D61,Data!$W$2:$BG$33,25,FALSE) -> 0 | T70: =VLOOKUP(D61,Data!$W$2:$BG$33,31,FALSE) -> 0 | U70: =VLOOKUP(D61,Data!$W$2:$BG$33,37,FALSE) -> 1 | Y70: 4+ | Z70: =VLOOKUP(X60,Data!$W$2:$BG$33,7,FALSE) -> 0 | AA70: =VLOOKUP(X60,Data!$W$2:$BG$33,13,FALSE) -> 0 | AB70: =VLOOKUP(X60,Data!$W$2:$BG$33,19,FALSE) -> 0 | AC70: =VLOOKUP(X60,Data!$W$2:$BG$33,25,FALSE) -> 0 | AD70: =VLOOKUP(X60,Data!$W$2:$BG$33,31,FALSE) -> 0 | AE70: =VLOOKUP(X60,Data!$W$2:$BG$33,37,FALSE) -> 0 | AI70: 4+ | AJ70: =VLOOKUP(X61,Data!$W$2:$BG$33,7,FALSE) -> 0 | AK70: =VLOOKUP(X61,Data!$W$2:$BG$33,13,FALSE) -> 0 | AL70: =VLOOKUP(X61,Data!$W$2:$BG$33,19,FALSE) -> 0 | AM70: =VLOOKUP(X61,Data!$W$2:$BG$33,25,FALSE) -> 0 | AN70: =VLOOKUP(X61,Data!$W$2:$BG$33,31,FALSE) -> 0 | AO70: =VLOOKUP(X61,Data!$W$2:$BG$33,37,FALSE) -> 0 | AS70: 4+ | AT70: =VLOOKUP(AR60,Data!$W$2:$BG$33,7,FALSE) -> 1 | AU70: =VLOOKUP(AR60,Data!$W$2:$BG$33,13,FALSE) -> 0 | AV70: =VLOOKUP(AR60,Data!$W$2:$BG$33,19,FALSE) -> 0 | AW70: =VLOOKUP(AR60,Data!$W$2:$BG$33,25,FALSE) -> 0 | AX70: =VLOOKUP(AR60,Data!$W$2:$BG$33,31,FALSE) -> 0 | AY70: =VLOOKUP(AR60,Data!$W$2:$BG$33,37,FALSE) -> 0 | BC70: 4+ | BD70: =VLOOKUP(AR61,Data!$W$2:$BG$33,7,FALSE) -> 0 | BE70: =VLOOKUP(AR61,Data!$W$2:$BG$33,13,FALSE) -> 0 | BF70: =VLOOKUP(AR61,Data!$W$2:$BG$33,19,FALSE) -> 0 | BG70: =VLOOKUP(AR61,Data!$W$2:$BG$33,25,FALSE) -> 0 | BH70: =VLOOKUP(AR61,Data!$W$2:$BG$33,31,FALSE) -> 0 | BI70: =VLOOKUP(AR61,Data!$W$2:$BG$33,37,FALSE) -> 0 | BL70: =SUM(E64:BI70)-120 -> 6571
E72: =VLOOKUP(D76,Data!$B$2:$J$33,4,FALSE) -> [1/4] 1er Poule A vs. 2eme Poule B | O72: =VLOOKUP(D77,Data!$B$2:$J$33,4,FALSE) -> [1/4] 1er Poule C vs. 2eme Poule D | Y72: =VLOOKUP(X76,Data!$B$2:$J$33,4,FALSE) -> [1/4] 1er Poule B vs. 2eme Poule A | AI72: =VLOOKUP(X77,Data!$B$2:$J$33,4,FALSE) -> [1/4] 1er Poule D vs. 2eme Poule C
E74: =VLOOKUP(D76,Data!$B$2:$J$33,7,FALSE) -> 2012-06-21T20:45:00 | O74: =VLOOKUP(D77,Data!$B$2:$J$33,7,FALSE) -> 2012-06-22T20:45:00 | Y74: =VLOOKUP(X76,Data!$B$2:$J$33,7,FALSE) -> 2012-06-23T20:45:00 | AI74: =VLOOKUP(X77,Data!$B$2:$J$33,7,FALSE) -> 2012-06-24T20:45:00
D76: 25 | E76: =IF(ISBLANK(VLOOKUP(D76,Data!$B$2:$J$33,5,FALSE)),"",VLOOKUP(D76,Data!$B$2:$J$33,5,FALSE)) -> Rép.Tchèque | H76: vs | I76: =IF(ISBLANK(VLOOKUP(D76,Data!$B$2:$J$33,6,FALSE)),"",VLOOKUP(D76,Data!$B$2:$J$33,6,FALSE)) -> Portugal | O76: =IF(ISBLANK(VLOOKUP(D77,Data!$B$2:$J$33,5,FALSE)),"",VLOOKUP(D77,Data!$B$2:$J$33,5,FALSE)) -> Allemagne | R76: vs | S76: =IF(ISBLANK(VLOOKUP(D77,Data!$B$2:$J$33,6,FALSE)),"",VLOOKUP(D77,Data!$B$2:$J$33,6,FALSE)) -> Grèce | X76: 27 | Y76: =IF(ISBLANK(VLOOKUP(X77,Data!$B$2:$J$33,5,FALSE)),"",VLOOKUP(X76,Data!$B$2:$J$33,5,FALSE)) -> Espagne | AB76: vs | AC76: =IF(ISBLANK(VLOOKUP(X76,Data!$B$2:$J$33,6,FALSE)),"",VLOOKUP(X76,Data!$B$2:$J$33,6,FALSE)) -> Angleterre | AI76: =IF(ISBLANK(VLOOKUP(X77,Data!$B$2:$J$33,5,FALSE)),"",VLOOKUP(X77,Data!$B$2:$J$33,5,FALSE)) -> France | AL76: vs | AM76: =IF(ISBLANK(VLOOKUP(X77,Data!$B$2:$J$33,6,FALSE)),"",VLOOKUP(X77,Data!$B$2:$J$33,6,FALSE)) -> Italie
D77: 26 | E77: =VLOOKUP(D76,Data!$B$2:$J$33,2,FALSE) ->  | H77: =H13 -> à | I77: =VLOOKUP(D76,Data!$B$2:$J$33,3,FALSE) ->  | O77: =VLOOKUP(D77,Data!$B$2:$J$33,2,FALSE) ->  | R77: =H13 -> à | S77: =VLOOKUP(D77,Data!$B$2:$J$33,3,FALSE) ->  | X77: 28 | Y77: =VLOOKUP(X76,Data!$B$2:$J$33,2,FALSE) ->  | AB77: =H13 -> à | AC77: =VLOOKUP(X76,Data!$B$2:$J$33,3,FALSE) ->  | AI77: =VLOOKUP(X77,Data!$B$2:$J$33,2,FALSE) ->  | AL77: =H13 -> à | AM77: =VLOOKUP(X77,Data!$B$2:$J$33,3,FALSE) -> 
E78: =ROUND((SUM(G81:G86)*G80+SUM(H81:H86)*H80+SUM(I81:I86)*I80+SUM(J81:J86)*J80+SUM(K81:K86)*5)/IF(SUM(F81:K86)=0,1,SUM(F81:K86)),2) -> 0.85 | I78: =ROUND((SUM(F82:K82)*E82+SUM(F83:K83)*E83+SUM(F84:K84)*E84+SUM(F85:K85)*E85++SUM(F86:K86)*5)/IF(SUM(F81:K86)=0,1,SUM(F81:K86)),2) -> 1.98 | O78: =ROUND((SUM(Q81:Q86)*Q80+SUM(R81:R86)*R80+SUM(S81:S86)*S80+SUM(T81:T86)*T80+SUM(U81:U86)*5)/IF(SUM(P81:U86)=0,1,SUM(P81:U86)),2) -> 2.4 | S78: =ROUND((SUM(P82:U82)*O82+SUM(P83:U83)*O83+SUM(P84:U84)*O84+SUM(P85:U85)*O85++SUM(P86:U86)*5)/IF(SUM(P81:U86)=0,1,SUM(P81:U86)),2) -> 0.5 | Y78: =ROUND((SUM(AA81:AA86)*AA80+SUM(AB81:AB86)*AB80+SUM(AC81:AC86)*AC80+SUM(AD81:AD86)*AD80+SUM(AE81:AE86)*5)/IF(SUM(Z81:AE86)=0,1,SUM(Z81:AE86)),2) -> 2.03 | AC78: =ROUND((SUM(Z82:AE82)*Y82+SUM(Z83:AE83)*Y83+SUM(Z84:AE84)*Y84+SUM(Z85:AE85)*Y85++SUM(Z86:AE86)*5)/IF(SUM(Z81:AE86)=0,1,SUM(Z81:AE86)),2) -> 0.83 | AI78: =ROUND((SUM(AK81:AK86)*AK80+SUM(AL81:AL86)*AL80+SUM(AM81:AM86)*AM80+SUM(AN81:AN86)*AN80+SUM(AO81:AO86)*5)/IF(SUM(AJ81:AO86)=0,1,SUM(AJ81:AO86)),2) -> 1.5 | AM78: =ROUND((SUM(AJ82:AO82)*AI82+SUM(AJ83:AO83)*AI83+SUM(AJ84:AO84)*AI84+SUM(AJ85:AO85)*AI85++SUM(AJ86:AO86)*5)/IF(SUM(AJ81:AO86)=0,1,SUM(AJ81:AO86)),2) -> 0.81
E79: =E76 -> Rép.Tchèque | O79: =O76 -> Allemagne | Y79: =Y76 -> Espagne | AI79: =AI76 -> France
C80: =I76 -> Portugal | F80: 0 | G80: 1 | H80: 2 | I80: 3 | J80: 4 | K80: 4+ | N80: =S76 -> Grèce | P80: 0 | Q80: 1 | R80: 2 | S80: 3 | T80: 4 | U80: 4+ | W80: =AC76 -> Angleterre | Z80: 0 | AA80: 1 | AB80: 2 | AC80: 3 | AD80: 4 | AE80: 4+ | AH80: =AM76 -> Italie | AJ80: 0 | AK80: 1 | AL80: 2 | AM80: 3 | AN80: 4 | AO80: 4+
E81: 0 | F81: =VLOOKUP(D76,Data!$W$2:$BG$33,2,FALSE) -> 6 | G81: =VLOOKUP(D76,Data!$W$2:$BG$33,8,FALSE) -> 19 | H81: =VLOOKUP(D76,Data!$W$2:$BG$33,14,FALSE) -> 14 | I81: =VLOOKUP(D76,Data!$W$2:$BG$33,20,FALSE) -> 0 | J81: =VLOOKUP(D76,Data!$W$2:$BG$33,26,FALSE) -> 0 | K81: =VLOOKUP(D76,Data!$W$2:$BG$33,32,FALSE) -> 0 | O81: 0 | P81: =VLOOKUP(D77,Data!$W$2:$BG$33,2,FALSE) -> 2 | Q81: =VLOOKUP(D77,Data!$W$2:$BG$33,8,FALSE) -> 54 | R81: =VLOOKUP(D77,Data!$W$2:$BG$33,14,FALSE) -> 269 | S81: =VLOOKUP(D77,Data!$W$2:$BG$33,20,FALSE) -> 131 | T81: =VLOOKUP(D77,Data!$W$2:$BG$33,26,FALSE) -> 22 | U81: =VLOOKUP(D77,Data!$W$2:$BG$33,32,FALSE) -> 4 | Y81: 0 | Z81: =VLOOKUP(X76,Data!$W$2:$BG$33,2,FALSE) -> 19 | AA81: =VLOOKUP(X76,Data!$W$2:$BG$33,8,FALSE) -> 85 | AB81: =VLOOKUP(X76,Data!$W$2:$BG$33,14,FALSE) -> 145 | AC81: =VLOOKUP(X76,Data!$W$2:$BG$33,20,FALSE) -> 39 | AD81: =VLOOKUP(X76,Data!$W$2:$BG$33,26,FALSE) -> 6 | AE81: =VLOOKUP(X76,Data!$W$2:$BG$33,32,FALSE) -> 0 | AI81: 0 | AJ81: =VLOOKUP(X77,Data!$W$2:$BG$33,2,FALSE) -> 32 | AK81: =VLOOKUP(X77,Data!$W$2:$BG$33,8,FALSE) -> 174 | AL81: =VLOOKUP(X77,Data!$W$2:$BG$33,14,FALSE) -> 93 | AM81: =VLOOKUP(X77,Data!$W$2:$BG$33,20,FALSE) -> 7 | AN81: =VLOOKUP(X77,Data!$W$2:$BG$33,26,FALSE) -> 1 | AO81: =VLOOKUP(X77,Data!$W$2:$BG$33,32,FALSE) -> 2
E82: 1 | F82: =VLOOKUP(D76,Data!$W$2:$BG$33,3,FALSE) -> 77 | G82: =VLOOKUP(D76,Data!$W$2:$BG$33,9,FALSE) -> 33 | H82: =VLOOKUP(D76,Data!$W$2:$BG$33,15,FALSE) -> 41 | I82: =VLOOKUP(D76,Data!$W$2:$BG$33,21,FALSE) -> 3 | J82: =VLOOKUP(D76,Data!$W$2:$BG$33,27,FALSE) -> 1 | K82: =VLOOKUP(D76,Data!$W$2:$BG$33,33,FALSE) -> 0 | O82: 1 | P82: =VLOOKUP(D77,Data!$W$2:$BG$33,3,FALSE) -> 4 | Q82: =VLOOKUP(D77,Data!$W$2:$BG$33,9,FALSE) -> 12 | R82: =VLOOKUP(D77,Data!$W$2:$BG$33,15,FALSE) -> 120 | S82: =VLOOKUP(D77,Data!$W$2:$BG$33,21,FALSE) -> 178 | T82: =VLOOKUP(D77,Data!$W$2:$BG$33,27,FALSE) -> 18 | U82: =VLOOKUP(D77,Data!$W$2:$BG$33,33,FALSE) -> 1 | Y82: 1 | Z82: =VLOOKUP(X76,Data!$W$2:$BG$33,3,FALSE) -> 17 | AA82: =VLOOKUP(X76,Data!$W$2:$BG$33,9,FALSE) -> 57 | AB82: =VLOOKUP(X76,Data!$W$2:$BG$33,15,FALSE) -> 218 | AC82: =VLOOKUP(X76,Data!$W$2:$BG$33,21,FALSE) -> 146 | AD82: =VLOOKUP(X76,Data!$W$2:$BG$33,27,FALSE) -> 10 | AE82: =VLOOKUP(X76,Data!$W$2:$BG$33,33,FALSE) -> 0 | AI82: 1 | AJ82: =VLOOKUP(X77,Data!$W$2:$BG$33,3,FALSE) -> 38 | AK82: =VLOOKUP(X77,Data!$W$2:$BG$33,9,FALSE) -> 118 | AL82: =VLOOKUP(X77,Data!$W$2:$BG$33,15,FALSE) -> 229 | AM82: =VLOOKUP(X77,Data!$W$2:$BG$33,21,FALSE) -> 39 | AN82: =VLOOKUP(X77,Data!$W$2:$BG$33,27,FALSE) -> 2 | AO82: =VLOOKUP(X77,Data!$W$2:$BG$33,33,FALSE) -> 0
E83: 2 | F83: =VLOOKUP(D76,Data!$W$2:$BG$33,4,FALSE) -> 164 | G83: =VLOOKUP(D76,Data!$W$2:$BG$33,10,FALSE) -> 266 | H83: =VLOOKUP(D76,Data!$W$2:$BG$33,16,FALSE) -> 33 | I83: =VLOOKUP(D76,Data!$W$2:$BG$33,22,FALSE) -> 7 | J83: =VLOOKUP(D76,Data!$W$2:$BG$33,28,FALSE) -> 0 | K83: =VLOOKUP(D76,Data!$W$2:$BG$33,34,FALSE) -> 0 | O83: 2 | P83: =VLOOKUP(D77,Data!$W$2:$BG$33,4,FALSE) -> 0 | Q83: =VLOOKUP(D77,Data!$W$2:$BG$33,10,FALSE) -> 7 | R83: =VLOOKUP(D77,Data!$W$2:$BG$33,16,FALSE) -> 9 | S83: =VLOOKUP(D77,Data!$W$2:$BG$33,22,FALSE) -> 24 | T83: =VLOOKUP(D77,Data!$W$2:$BG$33,28,FALSE) -> 4 | U83: =VLOOKUP(D77,Data!$W$2:$BG$33,34,FALSE) -> 0 | Y83: 2 | Z83: =VLOOKUP(X76,Data!$W$2:$BG$33,4,FALSE) -> 2 | AA83: =VLOOKUP(X76,Data!$W$2:$BG$33,10,FALSE) -> 32 | AB83: =VLOOKUP(X76,Data!$W$2:$BG$33,16,FALSE) -> 24 | AC83: =VLOOKUP(X76,Data!$W$2:$BG$33,22,FALSE) -> 32 | AD83: =VLOOKUP(X76,Data!$W$2:$BG$33,28,FALSE) -> 7 | AE83: =VLOOKUP(X76,Data!$W$2:$BG$33,34,FALSE) -> 3 | AI83: 2 | AJ83: =VLOOKUP(X77,Data!$W$2:$BG$33,4,FALSE) -> 14 | AK83: =VLOOKUP(X77,Data!$W$2:$BG$33,10,FALSE) -> 51 | AL83: =VLOOKUP(X77,Data!$W$2:$BG$33,16,FALSE) -> 30 | AM83: =VLOOKUP(X77,Data!$W$2:$BG$33,22,FALSE) -> 16 | AN83: =VLOOKUP(X77,Data!$W$2:$BG$33,28,FALSE) -> 1 | AO83: =VLOOKUP(X77,Data!$W$2:$BG$33,34,FALSE) -> 1
E84: 3 | F84: =VLOOKUP(D76,Data!$W$2:$BG$33,5,FALSE) -> 28 | G84: =VLOOKUP(D76,Data!$W$2:$BG$33,11,FALSE) -> 124 | H84: =VLOOKUP(D76,Data!$W$2:$BG$33,17,FALSE) -> 31 | I84: =VLOOKUP(D76,Data!$W$2:$BG$33,23,FALSE) -> 0 | J84: =VLOOKUP(D76,Data!$W$2:$BG$33,29,FALSE) -> 0 | K84: =VLOOKUP(D76,Data!$W$2:$BG$33,35,FALSE) -> 0 | O84: 3 | P84: =VLOOKUP(D77,Data!$W$2:$BG$33,5,FALSE) -> 1 | Q84: =VLOOKUP(D77,Data!$W$2:$BG$33,11,FALSE) -> 1 | R84: =VLOOKUP(D77,Data!$W$2:$BG$33,17,FALSE) -> 0 | S84: =VLOOKUP(D77,Data!$W$2:$BG$33,23,FALSE) -> 1 | T84: =VLOOKUP(D77,Data!$W$2:$BG$33,29,FALSE) -> 0 | U84: =VLOOKUP(D77,Data!$W$2:$BG$33,35,FALSE) -> 0 | Y84: 3 | Z84: =VLOOKUP(X76,Data!$W$2:$BG$33,5,FALSE) -> 1 | AA84: =VLOOKUP(X76,Data!$W$2:$BG$33,11,FALSE) -> 3 | AB84: =VLOOKUP(X76,Data!$W$2:$BG$33,17,FALSE) -> 11 | AC84: =VLOOKUP(X76,Data!$W$2:$BG$33,23,FALSE) -> 1 | AD84: =VLOOKUP(X76,Data!$W$2:$BG$33,29,FALSE) -> 0 | AE84: =VLOOKUP(X76,Data!$W$2:$BG$33,35,FALSE) -> 0 | AI84: 3 | AJ84: =VLOOKUP(X77,Data!$W$2:$BG$33,5,FALSE) -> 0 | AK84: =VLOOKUP(X77,Data!$W$2:$BG$33,11,FALSE) -> 7 | AL84: =VLOOKUP(X77,Data!$W$2:$BG$33,17,FALSE) -> 3 | AM84: =VLOOKUP(X77,Data!$W$2:$BG$33,23,FALSE) -> 1 | AN84: =VLOOKUP(X77,Data!$W$2:$BG$33,29,FALSE) -> 2 | AO84: =VLOOKUP(X77,Data!$W$2:$BG$33,35,FALSE) -> 0
E85: 4 | F85: =VLOOKUP(D76,Data!$W$2:$BG$33,6,FALSE) -> 1 | G85: =VLOOKUP(D76,Data!$W$2:$BG$33,12,FALSE) -> 9 | H85: =VLOOKUP(D76,Data!$W$2:$BG$33,18,FALSE) -> 5 | I85: =VLOOKUP(D76,Data!$W$2:$BG$33,24,FALSE) -> 0 | J85: =VLOOKUP(D76,Data!$W$2:$BG$33,30,FALSE) -> 0 | K85: =VLOOKUP(D76,Data!$W$2:$BG$33,36,FALSE) -> 0 | O85: 4 | P85: =VLOOKUP(D77,Data!$W$2:$BG$33,6,FALSE) -> 0 | Q85: =VLOOKUP(D77,Data!$W$2:$BG$33,12,FALSE) -> 0 | R85: =VLOOKUP(D77,Data!$W$2:$BG$33,18,FALSE) -> 0 | S85: =VLOOKUP(D77,Data!$W$2:$BG$33,24,FALSE) -> 0 | T85: =VLOOKUP(D77,Data!$W$2:$BG$33,30,FALSE) -> 0 | U85: =VLOOKUP(D77,Data!$W$2:$BG$33,36,FALSE) -> 0 | Y85: 4 | Z85: =VLOOKUP(X76,Data!$W$2:$BG$33,6,FALSE) -> 1 | AA85: =VLOOKUP(X76,Data!$W$2:$BG$33,12,FALSE) -> 0 | AB85: =VLOOKUP(X76,Data!$W$2:$BG$33,18,FALSE) -> 0 | AC85: =VLOOKUP(X76,Data!$W$2:$BG$33,24,FALSE) -> 0 | AD85: =VLOOKUP(X76,Data!$W$2:$BG$33,30,FALSE) -> 1 | AE85: =VLOOKUP(X76,Data!$W$2:$BG$33,36,FALSE) -> 1 | AI85: 4 | AJ85: =VLOOKUP(X77,Data!$W$2:$BG$33,6,FALSE) -> 1 | AK85: =VLOOKUP(X77,Data!$W$2:$BG$33,12,FALSE) -> 0 | AL85: =VLOOKUP(X77,Data!$W$2:$BG$33,18,FALSE) -> 0 | AM85: =VLOOKUP(X77,Data!$W$2:$BG$33,24,FALSE) -> 0 | AN85: =VLOOKUP(X77,Data!$W$2:$BG$33,30,FALSE) -> 1 | AO85: =VLOOKUP(X77,Data!$W$2:$BG$33,36,FALSE) -> 0
E86: 4+ | F86: =VLOOKUP(D76,Data!$W$2:$BG$33,7,FALSE) -> 0 | G86: =VLOOKUP(D76,Data!$W$2:$BG$33,13,FALSE) -> 2 | H86: =VLOOKUP(D76,Data!$W$2:$BG$33,19,FALSE) -> 0 | I86: =VLOOKUP(D76,Data!$W$2:$BG$33,25,FALSE) -> 0 | J86: =VLOOKUP(D76,Data!$W$2:$BG$33,31,FALSE) -> 0 | K86: =VLOOKUP(D76,Data!$W$2:$BG$33,37,FALSE) -> 0 | O86: 4+ | P86: =VLOOKUP(D77,Data!$W$2:$BG$33,7,FALSE) -> 0 | Q86: =VLOOKUP(D77,Data!$W$2:$BG$33,13,FALSE) -> 0 | R86: =VLOOKUP(D77,Data!$W$2:$BG$33,19,FALSE) -> 0 | S86: =VLOOKUP(D77,Data!$W$2:$BG$33,25,FALSE) -> 0 | T86: =VLOOKUP(D77,Data!$W$2:$BG$33,31,FALSE) -> 0 | U86: =VLOOKUP(D77,Data!$W$2:$BG$33,37,FALSE) -> 0 | Y86: 4+ | Z86: =VLOOKUP(X76,Data!$W$2:$BG$33,7,FALSE) -> 0 | AA86: =VLOOKUP(X76,Data!$W$2:$BG$33,13,FALSE) -> 0 | AB86: =VLOOKUP(X76,Data!$W$2:$BG$33,19,FALSE) -> 0 | AC86: =VLOOKUP(X76,Data!$W$2:$BG$33,25,FALSE) -> 1 | AD86: =VLOOKUP(X76,Data!$W$2:$BG$33,31,FALSE) -> 0 | AE86: =VLOOKUP(X76,Data!$W$2:$BG$33,37,FALSE) -> 0 | AI86: 4+ | AJ86: =VLOOKUP(X77,Data!$W$2:$BG$33,7,FALSE) -> 0 | AK86: =VLOOKUP(X77,Data!$W$2:$BG$33,13,FALSE) -> 0 | AL86: =VLOOKUP(X77,Data!$W$2:$BG$33,19,FALSE) -> 0 | AM86: =VLOOKUP(X77,Data!$W$2:$BG$33,25,FALSE) -> 0 | AN86: =VLOOKUP(X77,Data!$W$2:$BG$33,31,FALSE) -> 0 | AO86: =VLOOKUP(X77,Data!$W$2:$BG$33,37,FALSE) -> 0
BL87: =SUM(E80:BI86)-80 -> 3451
E88: =VLOOKUP(D92,Data!$B$2:$J$33,4,FALSE) -> [1/2] 1er Quarts 1 vs. 1er Quarts 2 | O88: =VLOOKUP(D93,Data!$B$2:$J$33,4,FALSE) -> [1/2] 1er Quarts 3 vs. 1er Quarts 4
E90: =VLOOKUP(D92,Data!$B$2:$J$33,7,FALSE) -> 2012-06-27T20:45:00 | O90: =VLOOKUP(D93,Data!$B$2:$J$33,7,FALSE) -> 2012-06-28T20:45:00
D92: 29 | E92: =IF(ISBLANK(VLOOKUP(D92,Data!$B$2:$J$33,5,FALSE)),"",VLOOKUP(D92,Data!$B$2:$J$33,5,FALSE)) -> - | H92: vs | I92: =IF(ISBLANK(VLOOKUP(D92,Data!$B$2:$J$33,6,FALSE)),"",VLOOKUP(D92,Data!$B$2:$J$33,6,FALSE)) -> - | O92: =IF(ISBLANK(VLOOKUP(D93,Data!$B$2:$J$33,5,FALSE)),"",VLOOKUP(D93,Data!$B$2:$J$33,5,FALSE)) -> - | R92: vs | S92: =IF(ISBLANK(VLOOKUP(D93,Data!$B$2:$J$33,6,FALSE)),"",VLOOKUP(D93,Data!$B$2:$J$33,6,FALSE)) -> -
D93: 30 | E93: =VLOOKUP(D92,Data!$B$2:$J$33,2,FALSE) ->  | H93: =H13 -> à | I93: =VLOOKUP(D92,Data!$B$2:$J$33,3,FALSE) ->  | O93: =VLOOKUP(D93,Data!$B$2:$J$33,2,FALSE) ->  | R93: =H13 -> à | S93: =VLOOKUP(D93,Data!$B$2:$J$33,3,FALSE) -> 
E94: =ROUND((SUM(G97:G102)*G96+SUM(H97:H102)*H96+SUM(I97:I102)*I96+SUM(J97:J102)*J96+SUM(K97:K102)*5)/IF(SUM(F97:K102)=0,1,SUM(F97:K102)),2) -> 1.22 | I94: =ROUND((SUM(F98:K98)*E98+SUM(F99:K99)*E99+SUM(F100:K100)*E100+SUM(F101:K101)*E101++SUM(F102:K102)*5)/IF(SUM(F97:K102)=0,1,SUM(F97:K102)),2) -> 1.69 | O94: =ROUND((SUM(Q97:Q102)*Q96+SUM(R97:R102)*R96+SUM(S97:S102)*S96+SUM(T97:T102)*T96+SUM(U97:U102)*5)/IF(SUM(P97:U102)=0,1,SUM(P97:U102)),2) -> 1.5 | S94: =ROUND((SUM(P98:U98)*O98+SUM(P99:U99)*O99+SUM(P100:U100)*O100+SUM(P101:U101)*O101++SUM(P102:U102)*5)/IF(SUM(P97:U102)=0,1,SUM(P97:U102)),2) -> 1.17
E95: =E92 -> - | O95: =O92 -> -
C96: =I92 -> - | F96: 0 | G96: 1 | H96: 2 | I96: 3 | J96: 4 | K96: 4+ | N96: =S92 -> - | P96: 0 | Q96: 1 | R96: 2 | S96: 3 | T96: 4 | U96: 4+
E97: 0 | F97: =VLOOKUP(D92,Data!$W$2:$BG$33,2,FALSE) -> 15 | G97: =VLOOKUP(D92,Data!$W$2:$BG$33,8,FALSE) -> 36 | H97: =VLOOKUP(D92,Data!$W$2:$BG$33,14,FALSE) -> 22 | I97: =VLOOKUP(D92,Data!$W$2:$BG$33,20,FALSE) -> 2 | J97: =VLOOKUP(D92,Data!$W$2:$BG$33,26,FALSE) -> 0 | K97: =VLOOKUP(D92,Data!$W$2:$BG$33,32,FALSE) -> 0 | O97: 0 | P97: =VLOOKUP(D93,Data!$W$2:$BG$33,2,FALSE) -> 16 | Q97: =VLOOKUP(D93,Data!$W$2:$BG$33,8,FALSE) -> 92 | R97: =VLOOKUP(D93,Data!$W$2:$BG$33,14,FALSE) -> 81 | S97: =VLOOKUP(D93,Data!$W$2:$BG$33,20,FALSE) -> 16 | T97: =VLOOKUP(D93,Data!$W$2:$BG$33,26,FALSE) -> 0 | U97: =VLOOKUP(D93,Data!$W$2:$BG$33,32,FALSE) -> 0
E98: 1 | F98: =VLOOKUP(D92,Data!$W$2:$BG$33,3,FALSE) -> 89 | G98: =VLOOKUP(D92,Data!$W$2:$BG$33,9,FALSE) -> 70 | H98: =VLOOKUP(D92,Data!$W$2:$BG$33,15,FALSE) -> 104 | I98: =VLOOKUP(D92,Data!$W$2:$BG$33,21,FALSE) -> 8 | J98: =VLOOKUP(D92,Data!$W$2:$BG$33,27,FALSE) -> 0 | K98: =VLOOKUP(D92,Data!$W$2:$BG$33,33,FALSE) -> 0 | O98: 1 | P98: =VLOOKUP(D93,Data!$W$2:$BG$33,3,FALSE) -> 79 | Q98: =VLOOKUP(D93,Data!$W$2:$BG$33,9,FALSE) -> 66 | R98: =VLOOKUP(D93,Data!$W$2:$BG$33,15,FALSE) -> 179 | S98: =VLOOKUP(D93,Data!$W$2:$BG$33,21,FALSE) -> 43 | T98: =VLOOKUP(D93,Data!$W$2:$BG$33,27,FALSE) -> 2 | U98: =VLOOKUP(D93,Data!$W$2:$BG$33,33,FALSE) -> 0
E99: 2 | F99: =VLOOKUP(D92,Data!$W$2:$BG$33,4,FALSE) -> 59 | G99: =VLOOKUP(D92,Data!$W$2:$BG$33,10,FALSE) -> 207 | H99: =VLOOKUP(D92,Data!$W$2:$BG$33,16,FALSE) -> 74 | I99: =VLOOKUP(D92,Data!$W$2:$BG$33,22,FALSE) -> 17 | J99: =VLOOKUP(D92,Data!$W$2:$BG$33,28,FALSE) -> 1 | K99: =VLOOKUP(D92,Data!$W$2:$BG$33,34,FALSE) -> 0 | O99: 2 | P99: =VLOOKUP(D93,Data!$W$2:$BG$33,4,FALSE) -> 17 | Q99: =VLOOKUP(D93,Data!$W$2:$BG$33,10,FALSE) -> 110 | R99: =VLOOKUP(D93,Data!$W$2:$BG$33,16,FALSE) -> 44 | S99: =VLOOKUP(D93,Data!$W$2:$BG$33,22,FALSE) -> 26 | T99: =VLOOKUP(D93,Data!$W$2:$BG$33,28,FALSE) -> 1 | U99: =VLOOKUP(D93,Data!$W$2:$BG$33,34,FALSE) -> 0
E100: 3 | F100: =VLOOKUP(D92,Data!$W$2:$BG$33,5,FALSE) -> 4 | G100: =VLOOKUP(D92,Data!$W$2:$BG$33,11,FALSE) -> 42 | H100: =VLOOKUP(D92,Data!$W$2:$BG$33,17,FALSE) -> 80 | I100: =VLOOKUP(D92,Data!$W$2:$BG$33,23,FALSE) -> 2 | J100: =VLOOKUP(D92,Data!$W$2:$BG$33,29,FALSE) -> 1 | K100: =VLOOKUP(D92,Data!$W$2:$BG$33,35,FALSE) -> 0 | O100: 3 | P100: =VLOOKUP(D93,Data!$W$2:$BG$33,5,FALSE) -> 1 | Q100: =VLOOKUP(D93,Data!$W$2:$BG$33,11,FALSE) -> 22 | R100: =VLOOKUP(D93,Data!$W$2:$BG$33,17,FALSE) -> 41 | S100: =VLOOKUP(D93,Data!$W$2:$BG$33,23,FALSE) -> 4 | T100: =VLOOKUP(D93,Data!$W$2:$BG$33,29,FALSE) -> 1 | U100: =VLOOKUP(D93,Data!$W$2:$BG$33,35,FALSE) -> 0
E101: 4 | F101: =VLOOKUP(D92,Data!$W$2:$BG$33,6,FALSE) -> 4 | G101: =VLOOKUP(D92,Data!$W$2:$BG$33,12,FALSE) -> 0 | H101: =VLOOKUP(D92,Data!$W$2:$BG$33,18,FALSE) -> 4 | I101: =VLOOKUP(D92,Data!$W$2:$BG$33,24,FALSE) -> 3 | J101: =VLOOKUP(D92,Data!$W$2:$BG$33,30,FALSE) -> 0 | K101: =VLOOKUP(D92,Data!$W$2:$BG$33,36,FALSE) -> 1 | O101: 4 | P101: =VLOOKUP(D93,Data!$W$2:$BG$33,6,FALSE) -> 2 | Q101: =VLOOKUP(D93,Data!$W$2:$BG$33,12,FALSE) -> 0 | R101: =VLOOKUP(D93,Data!$W$2:$BG$33,18,FALSE) -> 0 | S101: =VLOOKUP(D93,Data!$W$2:$BG$33,24,FALSE) -> 2 | T101: =VLOOKUP(D93,Data!$W$2:$BG$33,30,FALSE) -> 0 | U101: =VLOOKUP(D93,Data!$W$2:$BG$33,36,FALSE) -> 0
E102: 4+ | F102: =VLOOKUP(D92,Data!$W$2:$BG$33,7,FALSE) -> 0 | G102: =VLOOKUP(D92,Data!$W$2:$BG$33,13,FALSE) -> 0 | H102: =VLOOKUP(D92,Data!$W$2:$BG$33,19,FALSE) -> 0 | I102: =VLOOKUP(D92,Data!$W$2:$BG$33,25,FALSE) -> 1 | J102: =VLOOKUP(D92,Data!$W$2:$BG$33,31,FALSE) -> 0 | K102: =VLOOKUP(D92,Data!$W$2:$BG$33,37,FALSE) -> 0 | O102: 4+ | P102: =VLOOKUP(D93,Data!$W$2:$BG$33,7,FALSE) -> 0 | Q102: =VLOOKUP(D93,Data!$W$2:$BG$33,13,FALSE) -> 0 | R102: =VLOOKUP(D93,Data!$W$2:$BG$33,19,FALSE) -> 0 | S102: =VLOOKUP(D93,Data!$W$2:$BG$33,25,FALSE) -> 0 | T102: =VLOOKUP(D93,Data!$W$2:$BG$33,31,FALSE) -> 0 | U102: =VLOOKUP(D93,Data!$W$2:$BG$33,37,FALSE) -> 0 | BL102: =SUM(E96:BI102)-40 -> 1691
E104: =VLOOKUP(D109,Data!$B$2:$J$33,4,FALSE) -> Finale
E106: =VLOOKUP(D109,Data!$B$2:$J$33,7,FALSE) -> 2012-07-01T20:45:00
D108: 32 | E108: =IF(ISBLANK(VLOOKUP(D109,Data!$B$2:$J$33,5,FALSE)),"",VLOOKUP(D109,Data!$B$2:$J$33,5,FALSE)) -> - | H108: vs | I108: =IF(ISBLANK(VLOOKUP(D109,Data!$B$2:$J$33,6,FALSE)),"",VLOOKUP(D109,Data!$B$2:$J$33,6,FALSE)) -> -
D109: 32 | E109: =VLOOKUP(D109,Data!$B$2:$J$33,2,FALSE) ->  | H109: =H13 -> à | I109: =VLOOKUP(D109,Data!$B$2:$J$33,3,FALSE) -> 
E110: =ROUND((SUM(G113:G118)*G112+SUM(H113:H118)*H112+SUM(I113:I118)*I112+SUM(J113:J118)*J112+SUM(K113:K118)*5)/IF(SUM(F113:K118)=0,1,SUM(F113:K118)),2) -> 1.27 | I110: =ROUND((SUM(F114:K114)*E114+SUM(F115:K115)*E115+SUM(F116:K116)*E116+SUM(F117:K117)*E117++SUM(F118:K118)*5)/IF(SUM(F113:K118)=0,1,SUM(F113:K118)),2) -> 1.35
E111: =E108 -> -
D112: =I108 -> - | F112: 0 | G112: 1 | H112: 2 | I112: 3 | J112: 4 | K112: 4+
E113: 0 | F113: =VLOOKUP(D108,Data!$W$2:$BG$33,2,FALSE) -> 13 | G113: =VLOOKUP(D108,Data!$W$2:$BG$33,8,FALSE) -> 96 | H113: =VLOOKUP(D108,Data!$W$2:$BG$33,14,FALSE) -> 48 | I113: =VLOOKUP(D108,Data!$W$2:$BG$33,20,FALSE) -> 7 | J113: =VLOOKUP(D108,Data!$W$2:$BG$33,26,FALSE) -> 0 | K113: =VLOOKUP(D108,Data!$W$2:$BG$33,32,FALSE) -> 1
E114: 1 | F114: =VLOOKUP(D108,Data!$W$2:$BG$33,3,FALSE) -> 81 | G114: =VLOOKUP(D108,Data!$W$2:$BG$33,9,FALSE) -> 44 | H114: =VLOOKUP(D108,Data!$W$2:$BG$33,15,FALSE) -> 146 | I114: =VLOOKUP(D108,Data!$W$2:$BG$33,21,FALSE) -> 26 | J114: =VLOOKUP(D108,Data!$W$2:$BG$33,27,FALSE) -> 1 | K114: =VLOOKUP(D108,Data!$W$2:$BG$33,33,FALSE) -> 0
E115: 2 | F115: =VLOOKUP(D108,Data!$W$2:$BG$33,4,FALSE) -> 50 | G115: =VLOOKUP(D108,Data!$W$2:$BG$33,10,FALSE) -> 185 | H115: =VLOOKUP(D108,Data!$W$2:$BG$33,16,FALSE) -> 18 | I115: =VLOOKUP(D108,Data!$W$2:$BG$33,22,FALSE) -> 24 | J115: =VLOOKUP(D108,Data!$W$2:$BG$33,28,FALSE) -> 1 | K115: =VLOOKUP(D108,Data!$W$2:$BG$33,34,FALSE) -> 0
E116: 3 | F116: =VLOOKUP(D108,Data!$W$2:$BG$33,5,FALSE) -> 13 | G116: =VLOOKUP(D108,Data!$W$2:$BG$33,11,FALSE) -> 29 | H116: =VLOOKUP(D108,Data!$W$2:$BG$33,17,FALSE) -> 26 | I116: =VLOOKUP(D108,Data!$W$2:$BG$33,23,FALSE) -> 3 | J116: =VLOOKUP(D108,Data!$W$2:$BG$33,29,FALSE) -> 1 | K116: =VLOOKUP(D108,Data!$W$2:$BG$33,35,FALSE) -> 0
E117: 4 | F117: =VLOOKUP(D108,Data!$W$2:$BG$33,6,FALSE) -> 1 | G117: =VLOOKUP(D108,Data!$W$2:$BG$33,12,FALSE) -> 2 | H117: =VLOOKUP(D108,Data!$W$2:$BG$33,18,FALSE) -> 2 | I117: =VLOOKUP(D108,Data!$W$2:$BG$33,24,FALSE) -> 0 | J117: =VLOOKUP(D108,Data!$W$2:$BG$33,30,FALSE) -> 1 | K117: =VLOOKUP(D108,Data!$W$2:$BG$33,36,FALSE) -> 0
E118: 4+ | F118: =VLOOKUP(D108,Data!$W$2:$BG$33,7,FALSE) -> 0 | G118: =VLOOKUP(D108,Data!$W$2:$BG$33,13,FALSE) -> 0 | H118: =VLOOKUP(D108,Data!$W$2:$BG$33,19,FALSE) -> 1 | I118: =VLOOKUP(D108,Data!$W$2:$BG$33,25,FALSE) -> 0 | J118: =VLOOKUP(D108,Data!$W$2:$BG$33,31,FALSE) -> 2 | K118: =VLOOKUP(D108,Data!$W$2:$BG$33,37,FALSE) -> 0 | BL118: =SUM(E112:BI118)-20 -> 822

Sheet Data
A1: 9A99BCB6-BD58-4412-9424-C26C4ADA32D7 | B1: GameId | C1: Score Team 1 | D1: Score Team 2 | E1: GameName | F1: Team1 | G1: Team2 | H1: GameTime | I1: Penalities Team 1 | J1: Penalities Team 2 | M1: GameId | N1: Score Team 1 | O1: Score Team 2 | P1: Penalty Team 1 | Q1: Penalty Team 2 | S1: TeamId | T1: Name | W1: GameId | X1: 0x0 | Y1: 0x1 | Z1: 0x2 | AA1: 0x3 | AB1: 0x4 | AC1: 0x4+ | AD1: 1x0 | AE1: 1x1 | AF1: 1x2 | AG1: 1x3 | AH1: 1x4 | AI1: 1x4+ | AJ1: 2x0 | AK1: 2x1 | AL1: 2x2 | AM1: 2x3 | AN1: 2x4 | AO1: 2x4+ | AP1: 3x0 | AQ1: 3x1 | AR1: 3x2 | AS1: 3x3 | AT1: 3x4 | AU1: 3x4+ | AV1: 4x0 | AW1: 4x1 | AX1: 4x2 | AY1: 4x3 | AZ1: 4x4 | BA1: 4x4+ | BB1: 4+x0 | BC1: 4+x1 | BD1: 4+x2 | BE1: 4+x3 | BF1: 4+x4 | BG1: 4+x4+
B2: 1 | C2: =IF(ISBLANK(Scores!E7),"",Scores!E7) -> 1 | D2: =IF(ISBLANK(Scores!F7),"",Scores!F7) -> 1 | E2: [Poule A] Equipe 1 vs. Equipe 2 | F2: =Scores!D7 -> Pologne | G2: =Scores!G7 -> Grèce | H2: 2012-06-08T18:00:00 | I2: 0 | J2: 0 | M2: 1 | N2: 1 | O2: 0 | P2: 0 | Q2: 0 | S2: 1 | T2: Pologne | W2: 1 | X2: 47 | Y2: 50 | Z2: 19 | AA2: 1 | AB2: 0 | AC2: 0 | AD2: 331 | AE2: 156 | AF2: 52 | AG2: 3 | AH2: 0 | AI2: 2 | AJ2: 140 | AK2: 172 | AL2: 13 | AM2: 3 | AN2: 0 | AO2: 1 | AP2: 11 | AQ2: 11 | AR2: 4 | AS2: 1 | AT2: 1 | AU2: 1 | AV2: 1 | AW2: 3 | AX2: 2 | AY2: 0 | AZ2: 0 | BA2: 0 | BB2: 3 | BC2: 0 | BD2: 0 | BE2: 0 | BF2: 0 | BG2: 0
B3: 2 | C3: =IF(ISBLANK(Scores!E8),"",Scores!E8) -> 4 | D3: =IF(ISBLANK(Scores!F8),"",Scores!F8) -> 1 | E3: [Poule A] Equipe 3 vs. Equipe 4 | F3: =Scores!D8 -> Russie | G3: =Scores!G8 -> Rép.Tchèque | H3: 2012-06-08T20:45:00 | I3: 0 | J3: 0 | M3: 2 | N3: 1 | O3: 1 | P3: 0 | Q3: 0 | S3: 2 | T3: Grèce | W3: 2 | X3: 22 | Y3: 55 | Z3: 53 | AA3: 4 | AB3: 0 | AC3: 0 | AD3: 130 | AE3: 190 | AF3: 98 | AG3: 9 | AH3: 0 | AI3: 0 | AJ3: 96 | AK3: 205 | AL3: 49 | AM3: 8 | AN3: 0 | AO3: 0 | AP3: 10 | AQ3: 40 | AR3: 15 | AS3: 3 | AT3: 1 | AU3: 0 | AV3: 0 | AW3: 8 | AX3: 0 | AY3: 0 | AZ3: 0 | BA3: 0 | BB3: 1 | BC3: 0 | BD3: 0 | BE3: 0 | BF3: 1 | BG3: 2
A4: LCID : | B4: 3 | C4: =IF(ISBLANK(Scores!F10),"",Scores!F10) -> 1 | D4: =IF(ISBLANK(Scores!E10),"",Scores!E10) -> 2 | E4: [Poule A] Equipe 2 vs. Equipe 4 | F4: =Scores!G7 -> Grèce | G4: =Scores!G8 -> Rép.Tchèque | H4: 2012-06-12T18:00:00 | I4: 0 | J4: 0 | M4: 3 | N4: 0 | O4: 2 | P4: 0 | Q4: 0 | S4: 3 | T4: Russie | W4: 3 | X4: 90 | Y4: 220 | Z4: 214 | AA4: 30 | AB4: 5 | AC4: 1 | AD4: 74 | AE4: 140 | AF4: 136 | AG4: 55 | AH4: 1 | AI4: 0 | AJ4: 22 | AK4: 41 | AL4: 41 | AM4: 6 | AN4: 1 | AO4: 0 | AP4: 6 | AQ4: 8 | AR4: 5 | AS4: 0 | AT4: 1 | AU4: 1 | AV4: 2 | AW4: 1 | AX4: 0 | AY4: 1 | AZ4: 0 | BA4: 1 | BB4: 0 | BC4: 1 | BD4: 0 | BE4: 0 | BF4: 0 | BG4: 0
A5: 1036 | B5: 4 | C5: =IF(ISBLANK(Scores!E9),"",Scores!E9) -> 1 | D5: =IF(ISBLANK(Scores!F9),"",Scores!F9) -> 1 | E5: [Poule A] Equipe 1 vs. Equipe 3 | F5: =Scores!D7 -> Pologne | G5: =Scores!D8 -> Russie | H5: 2012-06-12T20:45:00 | I5: 0 | J5: 0 | M5: 4 | N5: 1 | O5: 2 | P5: 0 | Q5: 0 | S5: 4 | T5: Rép.Tchèque | W5: 4 | X5: 93 | Y5: 139 | Z5: 127 | AA5: 18 | AB5: 1 | AC5: 0 | AD5: 85 | AE5: 282 | AF5: 164 | AG5: 50 | AH5: 1 | AI5: 0 | AJ5: 19 | AK5: 59 | AL5: 49 | AM5: 11 | AN5: 0 | AO5: 0 | AP5: 2 | AQ5: 9 | AR5: 4 | AS5: 0 | AT5: 0 | AU5: 0 | AV5: 0 | AW5: 1 | AX5: 1 | AY5: 0 | AZ5: 1 | BA5: 0 | BB5: 0 | BC5: 0 | BD5: 0 | BE5: 0 | BF5: 0 | BG5: 1
B6: 5 | C6: =IF(ISBLANK(Scores!E12),"",Scores!E12) -> 1 | D6: =IF(ISBLANK(Scores!F12),"",Scores!F12) -> 0 | E6: [Poule A] Equipe 2 vs. Equipe 3 | F6: =Scores!G7 -> Grèce | G6: =Scores!D8 -> Russie | H6: 2012-06-16T20:45:00 | I6: 0 | J6: 0 | M6: 5 | N6: 0 | O6: 2 | P6: 0 | Q6: 0 | S6: 5 | T6: Pays-Bas | W6: 5 | X6: 71 | Y6: 160 | Z6: 233 | AA6: 88 | AB6: 8 | AC6: 2 | AD6: 68 | AE6: 136 | AF6: 159 | AG6: 83 | AH6: 8 | AI6: 0 | AJ6: 24 | AK6: 33 | AL6: 29 | AM6: 13 | AN6: 0 | AO6: 1 | AP6: 3 | AQ6: 6 | AR6: 2 | AS6: 0 | AT6: 0 | AU6: 0 | AV6: 3 | AW6: 1 | AX6: 1 | AY6: 1 | AZ6: 0 | BA6: 0 | BB6: 1 | BC6: 3 | BD6: 0 | BE6: 0 | BF6: 1 | BG6: 2
B7: 6 | C7: =IF(ISBLANK(Scores!E11),"",Scores!E11) -> 1 | D7: =IF(ISBLANK(Scores!F11),"",Scores!F11) -> 0 | E7: [Poule A] Equipe 4 vs. Equipe 1 | F7: =Scores!G8 -> Rép.Tchèque | G7: =Scores!D7 -> Pologne | H7: 2012-06-16T20:45:00 | I7: 0 | J7: 0 | M7: 6 | N7: 1 | O7: 1 | P7: 0 | Q7: 0 | S7: 6 | T7: Danemark | W7: 6 | X7: 95 | Y7: 104 | Z7: 54 | AA7: 2 | AB7: 0 | AC7: 0 | AD7: 134 | AE7: 272 | AF7: 117 | AG7: 22 | AH7: 1 | AI7: 1 | AJ7: 63 | AK7: 131 | AL7: 77 | AM7: 10 | AN7: 0 | AO7: 0 | AP7: 18 | AQ7: 24 | AR7: 6 | AS7: 1 | AT7: 0 | AU7: 0 | AV7: 1 | AW7: 0 | AX7: 3 | AY7: 0 | AZ7: 0 | BA7: 0 | BB7: 0 | BC7: 0 | BD7: 1 | BE7: 0 | BF7: 0 | BG7: 2
B8: 7 | C8: =IF(ISBLANK(Scores!E15),"",Scores!E15) -> 0 | D8: =IF(ISBLANK(Scores!F15),"",Scores!F15) -> 1 | E8: [Poule B] Equipe 1 vs. Equipe 2 | F8: =Scores!D15 -> Pays-Bas | G8: =Scores!G15 -> Danemark | H8: 2012-06-09T18:00:00 | I8: 0 | J8: 0 | M8: 7 | N8: 2 | O8: 0 | P8: 0 | Q8: 0 | S8: 7 | T8: Allemagne | W8: 7 | X8: 10 | Y8: 7 | Z8: 3 | AA8: 1 | AB8: 0 | AC8: 1 | AD8: 61 | AE8: 32 | AF8: 7 | AG8: 0 | AH8: 0 | AI8: 0 | AJ8: 308 | AK8: 146 | AL8: 17 | AM8: 4 | AN8: 0 | AO8: 0 | AP8: 126 | AQ8: 193 | AR8: 15 | AS8: 1 | AT8: 1 | AU8: 0 | AV8: 19 | AW8: 19 | AX8: 3 | AY8: 0 | AZ8: 1 | BA8: 0 | BB8: 3 | BC8: 1 | BD8: 1 | BE8: 0 | BF8: 0 | BG8: 0
B9: 8 | C9: =IF(ISBLANK(Scores!E16),"",Scores!E16) -> 1 | D9: =IF(ISBLANK(Scores!F16),"",Scores!F16) -> 0 | E9: [Poule B] Equipe 3 vs. Equipe 4 | F9: =Scores!D16 -> Allemagne | G9: =Scores!G16 -> Portugal | H9: 2012-06-09T20:45:00 | I9: 0 | J9: 0 | M9: 8 | N9: 0 | O9: 0 | P9: 0 | Q9: 0 | S9: 8 | T9: Portugal | W9: 8 | X9: 18 | Y9: 15 | Z9: 2 | AA9: 0 | AB9: 0 | AC9: 0 | AD9: 83 | AE9: 107 | AF9: 32 | AG9: 7 | AH9: 0 | AI9: 0 | AJ9: 107 | AK9: 310 | AL9: 94 | AM9: 9 | AN9: 0 | AO9: 0 | AP9: 17 | AQ9: 109 | AR9: 58 | AS9: 7 | AT9: 1 | AU9: 0 | AV9: 3 | AW9: 5 | AX9: 4 | AY9: 0 | AZ9: 0 | BA9: 1 | BB9: 0 | BC9: 0 | BD9: 0 | BE9: 0 | BF9: 0 | BG9: 0
B10: 9 | C10: =IF(ISBLANK(Scores!F18),"",Scores!F18) -> 2 | D10: =IF(ISBLANK(Scores!E18),"",Scores!E18) -> 3 | E10: [Poule B] Equipe 2 vs. Equipe 4 | F10: =Scores!G15 -> Danemark | G10: =Scores!G16 -> Portugal | H10: 2012-06-13T18:00:00 | I10: 0 | J10: 0 | M10: 9 | N10: 1 | O10: 1 | P10: 0 | Q10: 0 | S10: 9 | T10: Espagne | W10: 9 | X10: 36 | Y10: 218 | Z10: 230 | AA10: 52 | AB10: 3 | AC10: 4 | AD10: 43 | AE10: 117 | AF10: 226 | AG10: 66 | AH10: 8 | AI10: 1 | AJ10: 6 | AK10: 36 | AL10: 38 | AM10: 12 | AN10: 4 | AO10: 0 | AP10: 0 | AQ10: 3 | AR10: 1 | AS10: 0 | AT10: 0 | AU10: 0 | AV10: 1 | AW10: 0 | AX10: 0 | AY10: 0 | AZ10: 1 | BA10: 1 | BB10: 0 | BC10: 1 | BD10: 0 | BE10: 0 | BF10: 0 | BG10: 0
B11: 10 | C11: =IF(ISBLANK(Scores!E17),"",Scores!E17) -> 1 | D11: =IF(ISBLANK(Scores!F17),"",Scores!F17) -> 2 | E11: [Poule B] Equipe 1 vs. Equipe 3 | F11: =Scores!D15 -> Pays-Bas | G11: =Scores!D16 -> Allemagne | H11: 2012-06-13T20:45:00 | I11: 0 | J11: 0 | M11: 10 | N11: 1 | O11: 1 | P11: 0 | Q11: 0 | S11: 10 | T11: Italie | W11: 10 | X11: 22 | Y11: 67 | Z11: 39 | AA11: 3 | AB11: 2 | AC11: 0 | AD11: 30 | AE11: 235 | AF11: 208 | AG11: 34 | AH11: 1 | AI11: 0 | AJ11: 16 | AK11: 76 | AL11: 263 | AM11: 60 | AN11: 5 | AO11: 0 | AP11: 0 | AQ11: 11 | AR11: 27 | AS11: 7 | AT11: 1 | AU11: 0 | AV11: 0 | AW11: 0 | AX11: 1 | AY11: 1 | AZ11: 1 | BA11: 1 | BB11: 0 | BC11: 1 | BD11: 1 | BE11: 0 | BF11: 0 | BG11: 0
B12: 11 | C12: =IF(ISBLANK(Scores!E19),"",Scores!E19) -> 2 | D12: =IF(ISBLANK(Scores!F19),"",Scores!F19) -> 1 | E12: [Poule B] Equipe 4 vs. Equipe 1 | F12: =Scores!G16 -> Portugal | G12: =Scores!D15 -> Pays-Bas | H12: 2012-06-17T20:45:00 | I12: 0 | J12: 0 | M12: 11 | N12: 0 | O12: 2 | P12: 0 | Q12: 0 | S12: 11 | T12: Irlande | W12: 11 | X12: 36 | Y12: 98 | Z12: 81 | AA12: 14 | AB12: 1 | AC12: 0 | AD12: 46 | AE12: 210 | AF12: 248 | AG12: 91 | AH12: 4 | AI12: 1 | AJ12: 21 | AK12: 83 | AL12: 104 | AM12: 42 | AN12: 8 | AO12: 1 | AP12: 1 | AQ12: 9 | AR12: 8 | AS12: 5 | AT12: 2 | AU12: 0 | AV12: 1 | AW12: 1 | AX12: 3 | AY12: 0 | AZ12: 0 | BA12: 0 | BB12: 0 | BC12: 0 | BD12: 0 | BE12: 0 | BF12: 1 | BG12: 0
B13: 12 | C13: =IF(ISBLANK(Scores!E20),"",Scores!E20) -> 1 | D13: =IF(ISBLANK(Scores!F20),"",Scores!F20) -> 2 | E13: [Poule B] Equipe 2 vs. Equipe 3 | F13: =Scores!D20 -> Danemark | G13: =Scores!G20 -> Allemagne | H13: 2012-06-17T20:45:00 | I13: 0 | J13: 0 | M13: 12 | N13: 0 | O13: 1 | P13: 0 | Q13: 0 | S13: 12 | T13: Croatie | W13: 12 | X13: 17 | Y13: 117 | Z13: 322 | AA13: 176 | AB13: 43 | AC13: 3 | AD13: 8 | AE13: 69 | AF13: 135 | AG13: 138 | AH13: 35 | AI13: 3 | AJ13: 6 | AK13: 10 | AL13: 10 | AM13: 13 | AN13: 6 | AO13: 0 | AP13: 0 | AQ13: 3 | AR13: 2 | AS13: 0 | AT13: 1 | AU13: 0 | AV13: 0 | AW13: 0 | AX13: 0 | AY13: 1 | AZ13: 0 | BA13: 0 | BB13: 0 | BC13: 1 | BD13: 0 | BE13: 0 | BF13: 0 | BG13: 1
B14: 13 | C14: =IF(ISBLANK(Scores!E23),"",Scores!E23) -> 1 | D14: =IF(ISBLANK(Scores!F23),"",Scores!F23) -> 1 | E14: [Poule C] Equipe 1 vs. Equipe 2 | F14: =Scores!D23 -> Espagne | G14: =Scores!G23 -> Italie | H14: 2012-06-10T18:00:00 | I14: 0 | J14: 0 | M14: 13 | N14: 1 | O14: 1 | P14: 0 | Q14: 0 | S14: 13 | T14: Ukraine | W14: 13 | X14: 51 | Y14: 24 | Z14: 1 | AA14: 0 | AB14: 0 | AC14: 0 | AD14: 123 | AE14: 121 | AF14: 23 | AG14: 2 | AH14: 0 | AI14: 0 | AJ14: 174 | AK14: 260 | AL14: 42 | AM14: 4 | AN14: 0 | AO14: 0 | AP14: 23 | AQ14: 94 | AR14: 33 | AS14: 0 | AT14: 2 | AU14: 0 | AV14: 2 | AW14: 7 | AX14: 2 | AY14: 1 | AZ14: 0 | BA14: 1 | BB14: 0 | BC14: 0 | BD14: 0 | BE14: 0 | BF14: 0 | BG14: 0
B15: 14 | C15: =IF(ISBLANK(Scores!E24),"",Scores!E24) -> 1 | D15: =IF(ISBLANK(Scores!F24),"",Scores!F24) -> 3 | E15: [Poule C] Equipe 3 vs. Equipe 4 | F15: =Scores!D24 -> Irlande | G15: =Scores!G24 -> Croatie | H15: 2012-06-10T20:45:00 | I15: 0 | J15: 0 | M15: 14 | N15: 1 | O15: 1 | P15: 0 | Q15: 0 | S15: 14 | T15: Suède | W15: 14 | X15: 93 | Y15: 212 | Z15: 117 | AA15: 12 | AB15: 1 | AC15: 1 | AD15: 90 | AE15: 186 | AF15: 133 | AG15: 32 | AH15: 1 | AI15: 0 | AJ15: 21 | AK15: 45 | AL15: 30 | AM15: 5 | AN15: 0 | AO15: 0 | AP15: 2 | AQ15: 1 | AR15: 3 | AS15: 1 | AT15: 0 | AU15: 0 | AV15: 1 | AW15: 0 | AX15: 1 | AY15: 0 | AZ15: 0 | BA15: 0 | BB15: 0 | BC15: 0 | BD15: 0 | BE15: 1 | BF15: 0 | BG15: 0
B16: 15 | C16: =IF(ISBLANK(Scores!F26),"",Scores!F26) -> 1 | D16: =IF(ISBLANK(Scores!E26),"",Scores!E26) -> 1 | E16: [Poule C] Equipe 2 vs. Equipe 4 | F16: =Scores!G23 -> Italie | G16: =Scores!G24 -> Croatie | H16: 2012-06-14T18:00:00 | I16: 0 | J16: 0 | M16: 15 | N16: 0 | O16: 1 | P16: 0 | Q16: 0 | S16: 15 | T16: France | W16: 15 | X16: 62 | Y16: 47 | Z16: 11 | AA16: 0 | AB16: 0 | AC16: 0 | AD16: 212 | AE16: 262 | AF16: 53 | AG16: 5 | AH16: 0 | AI16: 1 | AJ16: 86 | AK16: 235 | AL16: 59 | AM16: 4 | AN16: 2 | AO16: 1 | AP16: 18 | AQ16: 31 | AR16: 10 | AS16: 0 | AT16: 0 | AU16: 0 | AV16: 0 | AW16: 3 | AX16: 0 | AY16: 0 | AZ16: 0 | BA16: 1 | BB16: 0 | BC16: 0 | BD16: 0 | BE16: 0 | BF16: 0 | BG16: 0
B17: 16 | C17: =IF(ISBLANK(Scores!E25),"",Scores!E25) -> 4 | D17: =IF(ISBLANK(Scores!F25),"",Scores!F25) -> 0 | E17: [Poule C] Equipe 1 vs. Equipe 3 | F17: =Scores!D23 -> Espagne | G17: =Scores!D24 -> Irlande | H17: 2012-06-14T20:45:00 | I17: 0 | J17: 0 | M17: 16 | N17: 1 | O17: 1 | P17: 0 | Q17: 0 | S17: 16 | T17: Angleterre | W17: 16 | X17: 4 | Y17: 3 | Z17: 0 | AA17: 0 | AB17: 0 | AC17: 0 | AD17: 91 | AE17: 17 | AF17: 7 | AG17: 1 | AH17: 0 | AI17: 0 | AJ17: 345 | AK17: 80 | AL17: 3 | AM17: 2 | AN17: 0 | AO17: 0 | AP17: 291 | AQ17: 126 | AR17: 3 | AS17: 0 | AT17: 0 | AU17: 0 | AV17: 76 | AW17: 45 | AX17: 2 | AY17: 1 | AZ17: 0 | BA17: 1 | BB17: 9 | BC17: 1 | BD17: 0 | BE17: 0 | BF17: 0 | BG17: 0
B18: 17 | C18: =IF(ISBLANK(Scores!E27),"",Scores!E27) -> 0 | D18: =IF(ISBLANK(Scores!F27),"",Scores!F27) -> 1 | E18: [Poule C] Equipe 4 vs. Equipe 1 | F18: =Scores!D27 -> Croatie | G18: =Scores!G27 -> Espagne | H18: 2012-06-18T20:45:00 | I18: 0 | J18: 0 | M18: 17 | N18: 0 | O18: 1 | P18: 0 | Q18: 0 | W18: 17 | X18: 22 | Y18: 134 | Z18: 239 | AA18: 76 | AB18: 20 | AC18: 2 | AD18: 8 | AE18: 89 | AF18: 286 | AG18: 134 | AH18: 17 | AI18: 1 | AJ18: 2 | AK18: 8 | AL18: 28 | AM18: 22 | AN18: 2 | AO18: 0 | AP18: 0 | AQ18: 1 | AR18: 2 | AS18: 0 | AT18: 0 | AU18: 0 | AV18: 0 | AW18: 0 | AX18: 0 | AY18: 0 | AZ18: 0 | BA18: 0 | BB18: 0 | BC18: 0 | BD18: 0 | BE18: 2 | BF18: 0 | BG18: 0
B19: 18 | C19: =IF(ISBLANK(Scores!E28),"",Scores!E28) -> 2 | D19: =IF(ISBLANK(Scores!F28),"",Scores!F28) -> 0 | E19: [Poule C] Equipe 2 vs. Equipe 3 | F19: =Scores!D28 -> Italie | G19: =Scores!G28 -> Irlande | H19: 2012-06-18T20:45:00 | I19: 0 | J19: 0 | M19: 18 | N19: 1 | O19: 1 | P19: 0 | Q19: 0 | W19: 18 | X19: 48 | Y19: 26 | Z19: 1 | AA19: 1 | AB19: 0 | AC19: 0 | AD19: 279 | AE19: 135 | AF19: 18 | AG19: 1 | AH19: 0 | AI19: 0 | AJ19: 271 | AK19: 178 | AL19: 35 | AM19: 3 | AN19: 0 | AO19: 0 | AP19: 45 | AQ19: 37 | AR19: 13 | AS19: 0 | AT19: 0 | AU19: 0 | AV19: 1 | AW19: 1 | AX19: 0 | AY19: 1 | AZ19: 0 | BA19: 0 | BB19: 0 | BC19: 1 | BD19: 1 | BE19: 0 | BF19: 0 | BG19: 0
B20: 19 | C20: =IF(ISBLANK(Scores!E31),"",Scores!E31) -> 1 | D20: =IF(ISBLANK(Scores!F31),"",Scores!F31) -> 1 | E20: [Poule D] Equipe 3 vs. Equipe 4 | F20: =Scores!D31 -> France | G20: =Scores!G31 -> Angleterre | H20: 2012-06-11T18:00:00 | I20: 0 | J20: 0 | M20: 19 | N20: 3 | O20: 0 | P20: 0 | Q20: 0 | W20: 19 | X20: 40 | Y20: 28 | Z20: 16 | AA20: 1 | AB20: 0 | AC20: 0 | AD20: 150 | AE20: 187 | AF20: 52 | AG20: 3 | AH20: 2 | AI20: 0 | AJ20: 154 | AK20: 315 | AL20: 48 | AM20: 2 | AN20: 2 | AO20: 0 | AP20: 6 | AQ20: 37 | AR20: 11 | AS20: 3 | AT20: 1 | AU20: 0 | AV20: 0 | AW20: 2 | AX20: 3 | AY20: 0 | AZ20: 0 | BA20: 0 | BB20: 1 | BC20: 0 | BD20: 0 | BE20: 0 | BF20: 0 | BG20: 1
B21: 20 | C21: =IF(ISBLANK(Scores!E32),"",Scores!E32) -> 2 | D21: =IF(ISBLANK(Scores!F32),"",Scores!F32) -> 1 | E21: [Poule D] Equipe 1 vs. Equipe 2 | F21: =Scores!D32 -> Ukraine | G21: =Scores!G32 -> Suède | H21: 2012-06-11T20:45:00 | I21: 0 | J21: 0 | M21: 20 | N21: 1 | O21: 1 | P21: 0 | Q21: 0 | S21: Success | T21: 6 | W21: 20 | X21: 67 | Y21: 152 | Z21: 104 | AA21: 13 | AB21: 1 | AC21: 0 | AD21: 109 | AE21: 284 | AF21: 146 | AG21: 34 | AH21: 2 | AI21: 0 | AJ21: 38 | AK21: 74 | AL21: 28 | AM21: 7 | AN21: 0 | AO21: 0 | AP21: 2 | AQ21: 5 | AR21: 4 | AS21: 0 | AT21: 0 | AU21: 0 | AV21: 0 | AW21: 1 | AX21: 0 | AY21: 0 | AZ21: 0 | BA21: 0 | BB21: 0 | BC21: 0 | BD21: 1 | BE21: 0 | BF21: 0 | BG21: 1
B22: 21 | C22: =IF(ISBLANK(Scores!F33),"",Scores!F33) -> 0 | D22: =IF(ISBLANK(Scores!E33),"",Scores!E33) -> 2 | E22: [Poule D] Equipe 1 vs. Equipe 3 | F22: =Scores!G33 -> Ukraine | G22: =Scores!D33 -> France | H22: 2012-06-15T18:00:00 | I22: 0 | J22: 0 | M22: 21 | N22: 0 | O22: 1 | P22: 0 | Q22: 0 | S22: Rank | T22: 367 | W22: 21 | X22: 31 | Y22: 231 | Z22: 271 | AA22: 60 | AB22: 1 | AC22: 0 | AD22: 9 | AE22: 131 | AF22: 216 | AG22: 104 | AH22: 4 | AI22: 0 | AJ22: 5 | AK22: 13 | AL22: 20 | AM22: 14 | AN22: 0 | AO22: 0 | AP22: 1 | AQ22: 1 | AR22: 0 | AS22: 0 | AT22: 0 | AU22: 0 | AV22: 0 | AW22: 0 | AX22: 0 | AY22: 0 | AZ22: 0 | BA22: 0 | BB22: 0 | BC22: 1 | BD22: 1 | BE22: 1 | BF22: 0 | BG22: 0
B23: 22 | C23: =IF(ISBLANK(Scores!E34),"",Scores!E34) -> 2 | D23: =IF(ISBLANK(Scores!F34),"",Scores!F34) -> 3 | E23: [Poule D] Equipe 2 vs. Equipe 4 | F23: =Scores!D34 -> Suède | G23: =Scores!G34 -> Angleterre | H23: 2012-06-15T20:45:00 | I23: 0 | J23: 0 | M23: 22 | N23: 1 | O23: 1 | P23: 0 | Q23: 0 | S23: Total | T23: 2757 | W23: 22 | X23: 40 | Y23: 168 | Z23: 138 | AA23: 19 | AB23: 0 | AC23: 0 | AD23: 51 | AE23: 216 | AF23: 225 | AG23: 51 | AH23: 1 | AI23: 0 | AJ23: 19 | AK23: 73 | AL23: 80 | AM23: 18 | AN23: 4 | AO23: 0 | AP23: 2 | AQ23: 2 | AR23: 4 | AS23: 2 | AT23: 0 | AU23: 0 | AV23: 0 | AW23: 1 | AX23: 1 | AY23: 0 | AZ23: 0 | BA23: 0 | BB23: 0 | BC23: 0 | BD23: 0 | BE23: 0 | BF23: 1 | BG23: 0
B24: 23 | C24: =IF(ISBLANK(Scores!E35),"",Scores!E35) ->  | D24: =IF(ISBLANK(Scores!F35),"",Scores!F35) ->  | E24: [Poule D] Equipe 2 vs. Equipe 3 | F24: =Scores!D35 -> Suède | G24: =Scores!G35 -> France | H24: 2012-06-19T20:45:00 | I24: 0 | J24: 0 | M24: 23 | N24: 1 | O24: 1 | P24: 0 | Q24: 0 | W24: 23 | X24: 40 | Y24: 176 | Z24: 118 | AA24: 18 | AB24: 1 | AC24: 1 | AD24: 27 | AE24: 262 | AF24: 254 | AG24: 87 | AH24: 3 | AI24: 0 | AJ24: 7 | AK24: 20 | AL24: 53 | AM24: 24 | AN24: 3 | AO24: 0 | AP24: 0 | AQ24: 3 | AR24: 1 | AS24: 2 | AT24: 0 | AU24: 0 | AV24: 1 | AW24: 1 | AX24: 0 | AY24: 0 | AZ24: 0 | BA24: 0 | BB24: 0 | BC24: 0 | BD24: 0 | BE24: 0 | BF24: 0 | BG24: 0
B25: 24 | C25: =IF(ISBLANK(Scores!E36),"",Scores!E36) ->  | D25: =IF(ISBLANK(Scores!F36),"",Scores!F36) ->  | E25: [Poule D] Equipe 4 vs. Equipe 1 | F25: =Scores!D36 -> Angleterre | G25: =Scores!G36 -> Ukraine | H25: 2012-06-19T20:45:00 | I25: 0 | J25: 0 | M25: 24 | N25: 1 | O25: 1 | P25: 0 | Q25: 0 | W25: 24 | X25: 33 | Y25: 24 | Z25: 11 | AA25: 1 | AB25: 0 | AC25: 0 | AD25: 234 | AE25: 121 | AF25: 41 | AG25: 6 | AH25: 0 | AI25: 0 | AJ25: 243 | AK25: 183 | AL25: 41 | AM25: 4 | AN25: 0 | AO25: 0 | AP25: 60 | AQ25: 76 | AR25: 10 | AS25: 0 | AT25: 0 | AU25: 0 | AV25: 2 | AW25: 5 | AX25: 1 | AY25: 2 | AZ25: 0 | BA25: 0 | BB25: 0 | BC25: 2 | BD25: 0 | BE25: 0 | BF25: 0 | BG25: 0
B26: 25 | C26: =IF(ISBLANK(Scores!V7),"",Scores!V7) ->  | D26: =IF(ISBLANK(Scores!V8),"",Scores!V8) ->  | E26: [1/4] 1er Poule A vs. 2eme Poule B | F26: =Scores!U7 -> Rép.Tchèque | G26: =Scores!U8 -> Portugal | H26: 2012-06-21T20:45:00 | I26: =IF(ISBLANK(Scores!W7),0,Scores!W7) -> 0 | J26: =IF(ISBLANK(Scores!W8),0,Scores!W8) -> 0 | M26: 25 | N26: 1 | O26: 2 | P26: 0 | Q26: 0 | S26: Translation | W26: 25 | X26: 6 | Y26: 77 | Z26: 164 | AA26: 28 | AB26: 1 | AC26: 0 | AD26: 19 | AE26: 33 | AF26: 266 | AG26: 124 | AH26: 9 | AI26: 2 | AJ26: 14 | AK26: 41 | AL26: 33 | AM26: 31 | AN26: 5 | AO26: 0 | AP26: 0 | AQ26: 3 | AR26: 7 | AS26: 0 | AT26: 0 | AU26: 0 | AV26: 0 | AW26: 1 | AX26: 0 | AY26: 0 | AZ26: 0 | BA26: 0 | BB26: 0 | BC26: 0 | BD26: 0 | BE26: 0 | BF26: 0 | BG26: 0
B27: 26 | C27: =IF(ISBLANK(Scores!V9),"",Scores!V9) ->  | D27: =IF(ISBLANK(Scores!V10),"",Scores!V10) ->  | E27: [1/4] 1er Poule C vs. 2eme Poule D | F27: =Scores!U9 -> Allemagne | G27: =Scores!U10 -> Grèce | H27: 2012-06-22T20:45:00 | I27: =IF(ISBLANK(Scores!W9),0,Scores!W9) -> 0 | J27: =IF(ISBLANK(Scores!W10),0,Scores!W10) -> 0 | M27: 26 | N27: 2 | O27: 0 | P27: 0 | Q27: 0 | S27: 1 | T27: TIRAGE AU SORT | W27: 26 | X27: 2 | Y27: 4 | Z27: 0 | AA27: 1 | AB27: 0 | AC27: 0 | AD27: 54 | AE27: 12 | AF27: 7 | AG27: 1 | AH27: 0 | AI27: 0 | AJ27: 269 | AK27: 120 | AL27: 9 | AM27: 0 | AN27: 0 | AO27: 0 | AP27: 131 | AQ27: 178 | AR27: 24 | AS27: 1 | AT27: 0 | AU27: 0 | AV27: 22 | AW27: 18 | AX27: 4 | AY27: 0 | AZ27: 0 | BA27: 0 | BB27: 4 | BC27: 1 | BD27: 0 | BE27: 0 | BF27: 0 | BG27: 0
B28: 27 | C28: =IF(ISBLANK(Scores!V11),"",Scores!V11) ->  | D28: =IF(ISBLANK(Scores!V12),"",Scores!V12) ->  | E28: [1/4] 1er Poule B vs. 2eme Poule A | F28: =Scores!U11 -> Espagne | G28: =Scores!U12 -> Angleterre | H28: 2012-06-23T20:45:00 | I28: =IF(ISBLANK(Scores!W11),0,Scores!W11) -> 0 | J28: =IF(ISBLANK(Scores!W12),0,Scores!W12) -> 0 | M28: 27 | N28: 2 | O28: 0 | P28: 0 | Q28: 0 | S28: 2 | T28: Get Rank | W28: 27 | X28: 19 | Y28: 17 | Z28: 2 | AA28: 1 | AB28: 1 | AC28: 0 | AD28: 85 | AE28: 57 | AF28: 32 | AG28: 3 | AH28: 0 | AI28: 0 | AJ28: 145 | AK28: 218 | AL28: 24 | AM28: 11 | AN28: 0 | AO28: 0 | AP28: 39 | AQ28: 146 | AR28: 32 | AS28: 1 | AT28: 0 | AU28: 1 | AV28: 6 | AW28: 10 | AX28: 7 | AY28: 0 | AZ28: 1 | BA28: 0 | BB28: 0 | BC28: 0 | BD28: 3 | BE28: 0 | BF28: 1 | BG28: 0
B29: 28 | C29: =IF(ISBLANK(Scores!V13),"",Scores!V13) ->  | D29: =IF(ISBLANK(Scores!V14),"",Scores!V14) ->  | E29: [1/4] 1er Poule D vs. 2eme Poule C | F29: =Scores!U13 -> France | G29: =Scores!U14 -> Italie | H29: 2012-06-24T20:45:00 | I29: =IF(ISBLANK(Scores!W13),0,Scores!W13) -> 0 | J29: =IF(ISBLANK(Scores!W14),0,Scores!W14) -> 0 | M29: 28 | N29: 2 | O29: 1 | P29: 0 | Q29: 0 | S29: 3 | T29: Groupe A | W29: 28 | X29: 32 | Y29: 38 | Z29: 14 | AA29: 0 | AB29: 1 | AC29: 0 | AD29: 174 | AE29: 118 | AF29: 51 | AG29: 7 | AH29: 0 | AI29: 0 | AJ29: 93 | AK29: 229 | AL29: 30 | AM29: 3 | AN29: 0 | AO29: 0 | AP29: 7 | AQ29: 39 | AR29: 16 | AS29: 1 | AT29: 0 | AU29: 0 | AV29: 1 | AW29: 2 | AX29: 1 | AY29: 2 | AZ29: 1 | BA29: 0 | BB29: 2 | BC29: 0 | BD29: 1 | BE29: 0 | BF29: 0 | BG29: 0
B30: 29 | C30: =IF(ISBLANK(Scores!V17),"",Scores!V17) ->  | D30: =IF(ISBLANK(Scores!V18),"",Scores!V18) ->  | E30: [1/2] 1er Quarts 1 vs. 1er Quarts 2 | F30: =Scores!U17 -> - | G30: =Scores!U18 -> - | H30: 2012-06-27T20:45:00 | I30: =IF(ISBLANK(Scores!W17),0,Scores!W17) -> 0 | J30: =IF(ISBLANK(Scores!W18),0,Scores!W18) -> 0 | M30: 29 | N30: 2 | O30: 1 | P30: 0 | Q30: 0 | S30: 4 | T30: Groupe B | W30: 29 | X30: 15 | Y30: 89 | Z30: 59 | AA30: 4 | AB30: 4 | AC30: 0 | AD30: 36 | AE30: 70 | AF30: 207 | AG30: 42 | AH30: 0 | AI30: 0 | AJ30: 22 | AK30: 104 | AL30: 74 | AM30: 80 | AN30: 4 | AO30: 0 | AP30: 2 | AQ30: 8 | AR30: 17 | AS30: 2 | AT30: 3 | AU30: 1 | AV30: 0 | AW30: 0 | AX30: 1 | AY30: 1 | AZ30: 0 | BA30: 0 | BB30: 0 | BC30: 0 | BD30: 0 | BE30: 0 | BF30: 1 | BG30: 0
B31: 30 | C31: =IF(ISBLANK(Scores!V19),"",Scores!V19) ->  | D31: =IF(ISBLANK(Scores!V20),"",Scores!V20) ->  | E31: [1/2] 1er Quarts 3 vs. 1er Quarts 4 | F31: =Scores!U19 -> - | G31: =Scores!U20 -> - | H31: 2012-06-28T20:45:00 | I31: =IF(ISBLANK(Scores!W19),0,Scores!W19) -> 0 | J31: =IF(ISBLANK(Scores!W20),0,Scores!W20) -> 0 | M31: 30 | N31: 2 | O31: 1 | P31: 0 | Q31: 0 | S31: 5 | T31: Groupe C | W31: 30 | X31: 16 | Y31: 79 | Z31: 17 | AA31: 1 | AB31: 2 | AC31: 0 | AD31: 92 | AE31: 66 | AF31: 110 | AG31: 22 | AH31: 0 | AI31: 0 | AJ31: 81 | AK31: 179 | AL31: 44 | AM31: 41 | AN31: 0 | AO31: 0 | AP31: 16 | AQ31: 43 | AR31: 26 | AS31: 4 | AT31: 2 | AU31: 0 | AV31: 0 | AW31: 2 | AX31: 1 | AY31: 1 | AZ31: 0 | BA31: 0 | BB31: 0 | BC31: 0 | BD31: 0 | BE31: 0 | BF31: 0 | BG31: 0
B32: 31 | C32: =IF(ISBLANK(Scores!AB24),"",Scores!AB24) ->  | D32: =IF(ISBLANK(Scores!AB25),"",Scores!AB25) ->  | E32: Petite Finale | H32: 2012-06-28T21:00:00 | M32: 32 | N32: 1 | O32: 2 | P32: 0 | Q32: 0 | S32: 6 | T32: Groupe D | W32: 31 | X32: 0 | Y32: 0 | Z32: 0 | AA32: 0 | AB32: 0 | AC32: 0 | AD32: 0 | AE32: 0 | AF32: 0 | AG32: 0 | AH32: 0 | AI32: 0 | AJ32: 0 | AK32: 0 | AL32: 0 | AM32: 0 | AN32: 0 | AO32: 0 | AP32: 0 | AQ32: 0 | AR32: 0 | AS32: 0 | AT32: 0 | AU32: 0 | AV32: 0 | AW32: 0 | AX32: 0 | AY32: 0 | AZ32: 0 | BA32: 0 | BB32: 0 | BC32: 0 | BD32: 0 | BE32: 0 | BF32: 0 | BG32: 0
B33: 32 | C33: =IF(ISBLANK(Scores!V24),"",Scores!V24) ->  | D33: =IF(ISBLANK(Scores!V25),"",Scores!V25) ->  | E33: Finale | F33: =Scores!U24 -> - | G33: =Scores!U25 -> - | H33: 2012-07-01T20:45:00 | I33: =IF(ISBLANK(Scores!W24),0,Scores!W24) -> 0 | J33: =IF(ISBLANK(Scores!W25),0,Scores!W25) -> 0 | S33: 7 | T33: Quarts de finale | W33: 32 | X33: 13 | Y33: 81 | Z33: 50 | AA33: 13 | AB33: 1 | AC33: 0 | AD33: 96 | AE33: 44 | AF33: 185 | AG33: 29 | AH33: 2 | AI33: 0 | AJ33: 48 | AK33: 146 | AL33: 18 | AM33: 26 | AN33: 2 | AO33: 1 | AP33: 7 | AQ33: 26 | AR33: 24 | AS33: 3 | AT33: 0 | AU33: 0 | AV33: 0 | AW33: 1 | AX33: 1 | AY33: 1 | AZ33: 1 | BA33: 2 | BB33: 1 | BC33: 0 | BD33: 0 | BE33: 0 | BF33: 0 | BG33: 0
S34: 8 | T34: Demi-finales
S35: 9 | T35: Finale
S36: 10 | T36: Vainqueur
S37: 11 | T37: Finaliste
S38: 12 | T38: Pts
S39: 13 | T39: BP
S40: 14 | T40: BC
S41: 15 | T41: Statistiques
S42: 16 | T42: Succès
S43: 17 | T43: Position
S44: 18 | T44: Total
S45: 19 | T45: Faites vos paris entre amis !
S46: 20 | T46: Inscrivez vos pronostics ou les résultats des matchs dans les tableaux ci-dessous.
S47: 21 | T47: Les calculs se feront automatiquement.
S48: 22 | T48: Et les équipes se positionneront dans le tableau final.
S49: 23 | T49: Avec le seul tableau respectant le règlement jusqu'au tirage au sort !
S50: 24 | T50: Si vous n'arrivez pas à lire correctement ce tableau :
S51: 25 | T51: Ne pas toucher cette partie des calculs, sinon :
S52: 26 | T52: à | U52: (2 à 0)
S53: 27 | T53: Les Pronostics

Sheet Debug (hidden)
A1: Publish Url | B1: http://apipronosticseuro2012.cloudapp.net/publish/publish?id=9A99BCB6-BD58-4412-9424-C26C4ADA32D7
B2: scores=%5B%7B%22GameId%22%3A1%2C%22ScoreTeam1%22%3A1%2C%22ScoreTeam2%22%3A0%2C%22PenaltyTeam1%22%3A0%2C%22PenaltyTeam2%22%3A0%7D%2C%7B%22GameId%22%3A2%2C%22ScoreTeam1%22%3A1%2C%22ScoreTeam2%22%3A1%2C%22PenaltyTeam1%22%3A0%2C%22PenaltyTeam2%22%3A0%7D%2C%7B%22GameId%22%3A3%2C%22ScoreTeam1%22%3A0%2C%22ScoreTeam2%22%3A2%2C%22PenaltyTeam1%22%3A0%2C%22PenaltyTeam2%22%3A0%7D%2C%7B%22GameId%22%3A4%2C%22ScoreTeam1%22%3A1%2C%22ScoreTeam2%22%3A2%2C%22PenaltyTeam1%22%3A0%2C%22PenaltyTeam2%22%3A0%7D%2C%7B%22GameId%22%3A5%2C%22ScoreTeam1%22%3A0%2C%22ScoreTeam2%22%3A2%2C%22PenaltyTeam1%22%3A0%2C%22PenaltyTeam2%22%3A0%7D%2C%7B%22GameId%22%3A6%2C%22ScoreTeam1%22%3A1%2C%22ScoreTeam2%22%3A1%2C%22PenaltyTeam1%22%3A0%2C%22PenaltyTeam2%22%3A0%7D%2C%7B%22GameId%22%3A7%2C%22ScoreTeam1%22%3A0%2C%22ScoreTeam2%22%3A2%2C%22PenaltyTeam1%22%3A0%2C%22PenaltyTeam2%22%3A0%7D%2C%7B%22GameId%22%3A8%2C%22ScoreTeam1%22%3A1%2C%22ScoreTeam2%22%3A1%2C%22PenaltyTeam1%22%3A0%2C%22PenaltyTeam2%22%3A0%7D%2C%7B%22GameId%22%3A9%2C%22ScoreTeam1%22%3A1%2C%22ScoreTeam2%22%3A1%2C%22PenaltyTeam1%22%3A0%2C%22PenaltyTeam2%22%3A0%7D%2C%7B%22GameId%22%3A10%2C%22ScoreTeam1%22%3A1%2C%22ScoreTeam2%22%3A1%2C%22PenaltyTeam1%22%3A0%2C%22PenaltyTeam2%22%3A0%7D%2C%7B%22GameId%22%3A11%2C%22ScoreTeam1%22%3A0%2C%22ScoreTeam2%22%3A2%2C%22PenaltyTeam1%22%3A0%2C%22PenaltyTeam2%22%3A0%7D%2C%7B%22GameId%22%3A12%2C%22ScoreTeam1%22%3A0%2C%22ScoreTeam2%22%3A1%2C%22PenaltyTeam1%22%3A0%2C%22PenaltyTeam2%22%3A0%7D%2C%7B%22GameId%22%3A13%2C%22ScoreTeam1%22%3A1%2C%22ScoreTeam2%22%3A1%2C%22PenaltyTeam1%22%3A0%2C%22PenaltyTeam2%22%3A0%7D%2C%7B%22GameId%22%3A14%2C%22ScoreTeam1%22%3A1%2C%22ScoreTeam2%22%3A1%2C%22PenaltyTeam1%22%3A0%2C%22PenaltyTeam2%22%3A0%7D%2C%7B%22GameId%22%3A15%2C%22ScoreTeam1%22%3A0%2C%22ScoreTeam2%22%3A1%2C%22PenaltyTeam1%22%3A0%2C%22PenaltyTeam2%22%3A0%7D%2C%7B%22GameId%22%3A16%2C%22ScoreTeam1%22%3A1%2C%22ScoreTeam2%22%3A1%2C%22PenaltyTeam1%22%3A0%2C%22PenaltyTeam2%22%3A0%7D%2C%7B%22GameId%22%3A17%2C%22ScoreTeam1%22%3A0%2C%22ScoreTeam2%22%3A1%2C%22PenaltyTeam1%22%3A0%2C%22PenaltyTeam2%22%3A0%7D%2C%7B%22GameId%22%3A18%2C%22ScoreTeam1%22%3A1%2C%22ScoreTeam2%22%3A1%2C%22PenaltyTeam1%22%3A0%2C%22PenaltyTeam2%22%3A0%7D%2C%7B%22GameId%22%3A19%2C%22ScoreTeam1%22%3A3%2C%22ScoreTeam2%22%3A0%2C%22PenaltyTeam1%22%3A0%2C%22PenaltyTeam2%22%3A0%7D%2C%7B%22GameId%22%3A20%2C%22ScoreTeam1%22%3A1%2C%22ScoreTeam2%22%3A1%2C%22PenaltyTeam1%22%3A0%2C%22PenaltyTeam2%22%3A0%7D%2C%7B%22GameId%22%3A21%2C%22ScoreTeam1%22%3A0%2C%22ScoreTeam2%22%3A1%2C%22PenaltyTeam1%22%3A0%2C%22PenaltyTeam2%22%3A0%7D%2C%7B%22GameId%22%3A22%2C%22ScoreTeam1%22%3A1%2C%22ScoreTeam2%22%3A1%2C%22PenaltyTeam1%22%3A0%2C%22PenaltyTeam2%22%3A0%7D%2C%7B%22GameId%22%3A23%2C%22ScoreTeam1%22%3A1%2C%22ScoreTeam2%22%3A1%2C%22PenaltyTeam1%22%3A0%2C%22PenaltyTeam2%22%3A0%7D%2C%7B%22GameId%22%3A24%2C%22ScoreTeam1%22%3A1%2C%22ScoreTeam2%22%3A1%2C%22PenaltyTeam1%22%3A0%2C%22PenaltyTeam2%22%3A0%7D%5D

Sheet Temp (hidden)
A1: PublishResult | E1: [{"GameId":1,"ScoreTeam1":1,"ScoreTeam2":0,"PenaltyTeam1":0,"PenaltyTeam2":0},{"GameId":2,"ScoreTeam1":1,"ScoreTeam2":1,"PenaltyTeam1":0,"PenaltyTeam2":0},{"GameId":3,"ScoreTeam1":0,"ScoreTeam2":2,"PenaltyTeam1":0,"PenaltyTeam2":0},{"GameId":4,"ScoreTeam1":1,"ScoreTeam2":2,"PenaltyTeam1":0,"PenaltyTeam2":0},{"GameId":5,"ScoreTeam1":0,"ScoreTeam2":2,"PenaltyTeam1":0,"PenaltyTeam2":0},{"GameId":6,"ScoreTeam1":1,"ScoreTeam2":1,"PenaltyTeam1":0,"PenaltyTeam2":0},{"GameId":7,"ScoreTeam1":2,"ScoreTeam2":0,"PenaltyTeam1":0,"PenaltyTeam2":0},{"GameId":8,"ScoreTeam1":0,"ScoreTeam2":0,"PenaltyTeam1":0,"PenaltyTeam2":0},{"GameId":9,"ScoreTeam1":1,"ScoreTeam2":1,"PenaltyTeam1":0,"PenaltyTeam2":0},{"GameId":10,"ScoreTeam1":1,"ScoreTeam2":1,"PenaltyTeam1":0,"PenaltyTeam2":0},{"GameId":11,"ScoreTeam1":0,"ScoreTeam2":2,"PenaltyTeam1":0,"PenaltyTeam2":0},{"GameId":12,"ScoreTeam1":0,"ScoreTeam2":1,"PenaltyTeam1":0,"PenaltyTeam2":0},{"GameId":13,"ScoreTeam1":1,"ScoreTeam2":1,"PenaltyTeam1":0,"PenaltyTeam2":0},{"GameId":14,"ScoreTeam1":1,"ScoreTeam2":1,"PenaltyTeam1":0,"PenaltyTeam2":0},{"GameId":15,"ScoreTeam1":0,"ScoreTeam2":1,"PenaltyTeam1":0,"PenaltyTeam2":0},{"GameId":16,"ScoreTeam1":1,"ScoreTeam2":1,"PenaltyTeam1":0,"PenaltyTeam2":0},{"GameId":17,"ScoreTeam1":0,"ScoreTeam2":1,"PenaltyTeam1":0,"PenaltyTeam2":0},{"GameId":18,"ScoreTeam1":1,"ScoreTeam2":1,"PenaltyTeam1":0,"PenaltyTeam2":0},{"GameId":19,"ScoreTeam1":3,"ScoreTeam2":0,"PenaltyTeam1":0,"PenaltyTeam2":0},{"GameId":20,"ScoreTeam1":1,"ScoreTeam2":1,"PenaltyTeam1":0,"PenaltyTeam2":0},{"GameId":21,"ScoreTeam1":0,"ScoreTeam2":1,"PenaltyTeam1":0,"PenaltyTeam2":0},{"GameId":22,"ScoreTeam1":1,"ScoreTeam2":1,"PenaltyTeam1":0,"PenaltyTeam2":0},{"GameId":23,"ScoreTeam1":1,"ScoreTeam2":1,"PenaltyTeam1":0,"PenaltyTeam2":0},{"GameId":24,"ScoreTeam1":1,"ScoreTeam2":1,"PenaltyTeam1":0,"PenaltyTeam2":0},{"GameId":25,"ScoreTeam1":1,"ScoreTeam2":2,"PenaltyTeam1":0,"PenaltyTeam2":0},{"GameId":26,"ScoreTeam1":2,"ScoreTeam2":0,"PenaltyTeam1":0,"PenaltyTeam2":0},{"GameId":27,"ScoreTeam1":2,"ScoreTeam2":0,"PenaltyTeam1":0,"PenaltyTeam2":0},{"GameId":28,"ScoreTeam1":2,"ScoreTeam2":1,"PenaltyTeam1":0,"PenaltyTeam2":0},{"GameId":29,"ScoreTeam1":2,"ScoreTeam2":1,"PenaltyTeam1":0,"PenaltyTeam2":0},{"GameId":30,"ScoreTeam1":2,"ScoreTeam2":1,"PenaltyTeam1":0,"PenaltyTeam2":0},{"GameId":32,"ScoreTeam1":1,"ScoreTeam2":2,"PenaltyTeam1":0,"PenaltyTeam2":0}] | I1: [{"GameId":1,"ScoreTeam1":1,"ScoreTeam2":0,"PenaltyTeam1":0,"PenaltyTeam2":0},{"GameId":2,"ScoreTeam1":1,"ScoreTeam2":1,"PenaltyTeam1":0,"PenaltyTeam2":0},{"GameId":3,"ScoreTeam1":0,"ScoreTeam2":2,"PenaltyTeam1":0,"PenaltyTeam2":0},{"GameId":4,"ScoreTeam1":1,"ScoreTeam2":2,"PenaltyTeam1":0,"PenaltyTeam2":0},{"GameId":5,"ScoreTeam1":0,"ScoreTeam2":2,"PenaltyTeam1":0,"PenaltyTeam2":0},{"GameId":6,"ScoreTeam1":1,"ScoreTeam2":1,"PenaltyTeam1":0,"PenaltyTeam2":0},{"GameId":7,"ScoreTeam1":0,"ScoreTeam2":2,"PenaltyTeam1":0,"PenaltyTeam2":0},{"GameId":8,"ScoreTeam1":1,"ScoreTeam2":1,"PenaltyTeam1":0,"PenaltyTeam2":0},{"GameId":9,"ScoreTeam1":1,"ScoreTeam2":0,"PenaltyTeam1":0,"PenaltyTeam2":0},{"GameId":10,"ScoreTeam1":2,"ScoreTeam2":3,"PenaltyTeam1":0,"PenaltyTeam2":0},{"GameId":11,"ScoreTeam1":0,"ScoreTeam2":2,"PenaltyTeam1":0,"PenaltyTeam2":0},{"GameId":12,"ScoreTeam1":0,"ScoreTeam2":1,"PenaltyTeam1":0,"PenaltyTeam2":0},{"GameId":13,"ScoreTeam1":1,"ScoreTeam2":1,"PenaltyTeam1":0,"PenaltyTeam2":0},{"GameId":14,"ScoreTeam1":1,"ScoreTeam2":1,"PenaltyTeam1":0,"PenaltyTeam2":0},{"GameId":15,"ScoreTeam1":1,"ScoreTeam2":0,"PenaltyTeam1":0,"PenaltyTeam2":0},{"GameId":16,"ScoreTeam1":3,"ScoreTeam2":0,"PenaltyTeam1":0,"PenaltyTeam2":0},{"GameId":17,"ScoreTeam1":0,"ScoreTeam2":2,"PenaltyTeam1":0,"PenaltyTeam2":0},{"GameId":18,"ScoreTeam1":1,"ScoreTeam2":1,"PenaltyTeam1":0,"PenaltyTeam2":0},{"GameId":19,"ScoreTeam1":3,"ScoreTeam2":0,"PenaltyTeam1":0,"PenaltyTeam2":0},{"GameId":20,"ScoreTeam1":1,"ScoreTeam2":1,"PenaltyTeam1":0,"PenaltyTeam2":0},{"GameId":21,"ScoreTeam1":0,"ScoreTeam2":1,"PenaltyTeam1":0,"PenaltyTeam2":0},{"GameId":22,"ScoreTeam1":0,"ScoreTeam2":1,"PenaltyTeam1":0,"PenaltyTeam2":0},{"GameId":23,"ScoreTeam1":1,"ScoreTeam2":1,"PenaltyTeam1":0,"PenaltyTeam2":0},{"GameId":24,"ScoreTeam1":1,"ScoreTeam2":1,"PenaltyTeam1":0,"PenaltyTeam2":0},{"GameId":25,"ScoreTeam1":2,"ScoreTeam2":0,"PenaltyTeam1":0,"PenaltyTeam2":0},{"GameId":26,"ScoreTeam1":4,"ScoreTeam2":0,"PenaltyTeam1":0,"PenaltyTeam2":0},{"GameId":27,"ScoreTeam1":2,"ScoreTeam2":1,"PenaltyTeam1":0,"PenaltyTeam2":0},{"GameId":28,"ScoreTeam1":1,"ScoreTeam2":1,"PenaltyTeam1":5,"PenaltyTeam2":3},{"GameId":29,"ScoreTeam1":1,"ScoreTeam2":3,"PenaltyTeam1":0,"PenaltyTeam2":0},{"GameId":30,"ScoreTeam1":1,"ScoreTeam2":0,"PenaltyTeam1":0,"PenaltyTeam2":0},{"GameId":32,"ScoreTeam1":2,"ScoreTeam2":0,"PenaltyTeam1":0,"PenaltyTeam2":0}] | K1: [{"GameId":1,"ScoreTeam1":1,"ScoreTeam2":0,"PenaltyTeam1":0,"PenaltyTeam2":0},{"GameId":2,"ScoreTeam1":1,"ScoreTeam2":1,"PenaltyTeam1":0,"PenaltyTeam2":0},{"GameId":3,"ScoreTeam1":0,"ScoreTeam2":2,"PenaltyTeam1":0,"PenaltyTeam2":0},{"GameId":4,"ScoreTeam1":1,"ScoreTeam2":2,"PenaltyTeam1":0,"PenaltyTeam2":0},{"GameId":5,"ScoreTeam1":0,"ScoreTeam2":2,"PenaltyTeam1":0,"PenaltyTeam2":0},{"GameId":6,"ScoreTeam1":1,"ScoreTeam2":1,"PenaltyTeam1":0,"PenaltyTeam2":0},{"GameId":7,"ScoreTeam1":1,"ScoreTeam2":1,"PenaltyTeam1":0,"PenaltyTeam2":0},{"GameId":8,"ScoreTeam1":1,"ScoreTeam2":1,"PenaltyTeam1":0,"PenaltyTeam2":0},{"GameId":9,"ScoreTeam1":1,"ScoreTeam2":0,"PenaltyTeam1":0,"PenaltyTeam2":0},{"GameId":10,"ScoreTeam1":2,"ScoreTeam2":3,"PenaltyTeam1":0,"PenaltyTeam2":0},{"GameId":11,"ScoreTeam1":0,"ScoreTeam2":2,"PenaltyTeam1":0,"PenaltyTeam2":0},{"GameId":12,"ScoreTeam1":0,"ScoreTeam2":1,"PenaltyTeam1":0,"PenaltyTeam2":0},{"GameId":13,"ScoreTeam1":1,"ScoreTeam2":1,"PenaltyTeam1":0,"PenaltyTeam2":0},{"GameId":14,"ScoreTeam1":1,"ScoreTeam2":1,"PenaltyTeam1":0,"PenaltyTeam2":0},{"GameId":15,"ScoreTeam1":1,"ScoreTeam2":0,"PenaltyTeam1":0,"PenaltyTeam2":0},{"GameId":16,"ScoreTeam1":3,"ScoreTeam2":0,"PenaltyTeam1":0,"PenaltyTeam2":0},{"GameId":17,"ScoreTeam1":0,"ScoreTeam2":2,"PenaltyTeam1":0,"PenaltyTeam2":0},{"GameId":18,"ScoreTeam1":1,"ScoreTeam2":1,"PenaltyTeam1":0,"PenaltyTeam2":0},{"GameId":19,"ScoreTeam1":3,"ScoreTeam2":0,"PenaltyTeam1":0,"PenaltyTeam2":0},{"GameId":20,"ScoreTeam1":1,"ScoreTeam2":1,"PenaltyTeam1":0,"PenaltyTeam2":0},{"GameId":21,"ScoreTeam1":0,"ScoreTeam2":1,"PenaltyTeam1":0,"PenaltyTeam2":0},{"GameId":22,"ScoreTeam1":0,"ScoreTeam2":1,"PenaltyTeam1":0,"PenaltyTeam2":0},{"GameId":23,"ScoreTeam1":1,"ScoreTeam2":1,"PenaltyTeam1":0,"PenaltyTeam2":0},{"GameId":24,"ScoreTeam1":1,"ScoreTeam2":1,"PenaltyTeam1":0,"PenaltyTeam2":0},{"GameId":25,"ScoreTeam1":2,"ScoreTeam2":0,"PenaltyTeam1":0,"PenaltyTeam2":0},{"GameId":26,"ScoreTeam1":4,"ScoreTeam2":0,"PenaltyTeam1":0,"PenaltyTeam2":0},{"GameId":27,"ScoreTeam1":2,"ScoreTeam2":1,"PenaltyTeam1":0,"PenaltyTeam2":0},{"GameId":28,"ScoreTeam1":1,"ScoreTeam2":1,"PenaltyTeam1":5,"PenaltyTeam2":3},{"GameId":29,"ScoreTeam1":1,"ScoreTeam2":3,"PenaltyTeam1":0,"PenaltyTeam2":0},{"GameId":30,"ScoreTeam1":1,"ScoreTeam2":0,"PenaltyTeam1":0,"PenaltyTeam2":0},{"GameId":32,"ScoreTeam1":2,"ScoreTeam2":0,"PenaltyTeam1":0,"PenaltyTeam2":0}] | P1: [{"GameId":1,"ScoreTeam1":1,"ScoreTeam2":1,"PenaltyTeam1":0,"PenaltyTeam2":0},{"GameId":2,"ScoreTeam1":1,"ScoreTeam2":1,"PenaltyTeam1":0,"PenaltyTeam2":0},{"GameId":3,"ScoreTeam1":1,"ScoreTeam2":1,"PenaltyTeam1":0,"PenaltyTeam2":0},{"GameId":4,"ScoreTeam1":1,"ScoreTeam2":1,"PenaltyTeam1":0,"PenaltyTeam2":0},{"GameId":5,"ScoreTeam1":1,"ScoreTeam2":0,"PenaltyTeam1":0,"PenaltyTeam2":0},{"GameId":6,"ScoreTeam1":1,"ScoreTeam2":2,"PenaltyTeam1":0,"PenaltyTeam2":0},{"GameId":7,"ScoreTeam1":1,"ScoreTeam2":1,"PenaltyTeam1":0,"PenaltyTeam2":0},{"GameId":8,"ScoreTeam1":2,"ScoreTeam2":1,"PenaltyTeam1":0,"PenaltyTeam2":0},{"GameId":9,"ScoreTeam1":2,"ScoreTeam2":0,"PenaltyTeam1":0,"PenaltyTeam2":0},{"GameId":10,"ScoreTeam1":1,"ScoreTeam2":1,"PenaltyTeam1":0,"PenaltyTeam2":0},{"GameId":11,"ScoreTeam1":1,"ScoreTeam2":1,"PenaltyTeam1":0,"PenaltyTeam2":0},{"GameId":12,"ScoreTeam1":1,"ScoreTeam2":1,"PenaltyTeam1":0,"PenaltyTeam2":0},{"GameId":13,"ScoreTeam1":1,"ScoreTeam2":1,"PenaltyTeam1":0,"PenaltyTeam2":0},{"GameId":14,"ScoreTeam1":1,"ScoreTeam2":0,"PenaltyTeam1":0,"PenaltyTeam2":0},{"GameId":15,"ScoreTeam1":0,"ScoreTeam2":1,"PenaltyTeam1":0,"PenaltyTeam2":0},{"GameId":16,"ScoreTeam1":2,"ScoreTeam2":0,"PenaltyTeam1":0,"PenaltyTeam2":0},{"GameId":17,"ScoreTeam1":1,"ScoreTeam2":1,"PenaltyTeam1":0,"PenaltyTeam2":0},{"GameId":18,"ScoreTeam1":1,"ScoreTeam2":1,"PenaltyTeam1":0,"PenaltyTeam2":0},{"GameId":19,"ScoreTeam1":1,"ScoreTeam2":0,"PenaltyTeam1":0,"PenaltyTeam2":0},{"GameId":20,"ScoreTeam1":1,"ScoreTeam2":1,"PenaltyTeam1":0,"PenaltyTeam2":0},{"GameId":21,"ScoreTeam1":0,"ScoreTeam2":1,"PenaltyTeam1":0,"PenaltyTeam2":0},{"GameId":22,"ScoreTeam1":1,"ScoreTeam2":1,"PenaltyTeam1":0,"PenaltyTeam2":0},{"GameId":23,"ScoreTeam1":1,"ScoreTeam2":1,"PenaltyTeam1":0,"PenaltyTeam2":0},{"GameId":24,"ScoreTeam1":1,"ScoreTeam2":1,"PenaltyTeam1":0,"PenaltyTeam2":0}]
A2: Consolidate | B2: [{"GameId":1,"Score":[47,50,19,1,0,0,331,156,52,3,0,2,140,172,13,3,0,1,11,11,4,1,1,1,1,3,2,0,0,0,3,0,0,0,0,0]},{"GameId":2,"Score":[22,55,53,4,0,0,130,190,98,9,0,0,96,205,49,8,0,0,10,40,15,3,1,0,0,8,0,0,0,0,1,0,0,0,1,2]},{"GameId":3,"Score":[90,220,214,30,5,1,74,140,136,55,1,0,22,41,41,6,1,0,6,8,5,0,1,1,2,1,0,1,0,1,0,1,0,0,0,0]},{"GameId":4,"Score":[93,139,127,18,1,0,85,282,164,50,1,0,19,59,49,11,0,0,2,9,4,0,0,0,0,1,1,0,1,0,0,0,0,0,0,1]},{"GameId":5,"Score":[71,160,233,88,8,2,68,136,159,83,8,0,24,33,29,13,0,1,3,6,2,0,0,0,3,1,1,1,0,0,1,3,0,0,1,2]},{"GameId":6,"Score":[95,104,54,2,0,0,134,272,117,22,1,1,63,131,77,10,0,0,18,24,6,1,0,0,1,0,3,0,0,0,0,0,1,0,0,2]},{"GameId":7,"Score":[10,7,3,1,0,1,61,32,7,0,0,0,308,146,17,4,0,0,126,193,15,1,1,0,19,19,3,0,1,0,3,1,1,0,0,0]},{"GameId":8,"Score":[18,15,2,0,0,0,83,107,32,7,0,0,107,310,94,9,0,0,17,109,58,7,1,0,3,5,4,0,0,1,0,0,0,0,0,0]},{"GameId":9,"Score":[36,218,230,52,3,4,43,117,226,66,8,1,6,36,38,12,4,0,0,3,1,0,0,0,1,0,0,0,1,1,0,1,0,0,0,0]},{"GameId":10,"Score":[22,67,39,3,2,0,30,235,208,34,1,0,16,76,263,60,5,0,0,11,27,7,1,0,0,0,1,1,1,1,0,1,1,0,0,0]},{"GameId":11,"Score":[36,98,81,14,1,0,46,210,248,91,4,1,21,83,104,42,8,1,1,9,8,5,2,0,1,1,3,0,0,0,0,0,0,0,1,0]},{"GameId":12,"Score":[17,117,322,176,43,3,8,69,135,138,35,3,6,10,10,13,6,0,0,3,2,0,1,0,0,0,0,1,0,0,0,1,0,0,0,1]},{"GameId":13,"Score":[51,24,1,0,0,0,123,121,23,2,0,0,174,260,42,4,0,0,23,94,33,0,2,0,2,7,2,1,0,1,0,0,0,0,0,0]},{"GameId":14,"Score":[93,212,117,12,1,1,90,186,133,32,1,0,21,45,30,5,0,0,2,1,3,1,0,0,1,0,1,0,0,0,0,0,0,1,0,0]},{"GameId":15,"Score":[62,47,11,0,0,0,212,262,53,5,0,1,86,235,59,4,2,1,18,31,10,0,0,0,0,3,0,0,0,1,0,0,0,0,0,0]},{"GameId":16,"Score":[4,3,0,0,0,0,91,17,7,1,0,0,345,80,3,2,0,0,291,126,3,0,0,0,76,45,2,1,0,1,9,1,0,0,0,0]},{"GameId":17,"Score":[22,134,239,76,20,2,8,89,286,134,17,1,2,8,28,22,2,0,0,1,2,0,0,0,0,0,0,0,0,0,0,0,0,2,0,0]},{"GameId":18,"Score":[48,26,1,1,0,0,279,135,18,1,0,0,271,178,35,3,0,0,45,37,13,0,0,0,1,1,0,1,0,0,0,1,1,0,0,0]},{"GameId":19,"Score":[40,28,16,1,0,0,150,187,52,3,2,0,154,315,48,2,2,0,6,37,11,3,1,0,0,2,3,0,0,0,1,0,0,0,0,1]},{"GameId":20,"Score":[67,152,104,13,1,0,109,284,146,34,2,0,38,74,28,7,0,0,2,5,4,0,0,0,0,1,0,0,0,0,0,0,1,0,0,1]},{"GameId":21,"Score":[31,231,271,60,1,0,9,131,216,104,4,0,5,13,20,14,0,0,1,1,0,0,0,0,0,0,0,0,0,0,0,1,1,1,0,0]},{"GameId":22,"Score":[40,168,138,19,0,0,51,216,225,51,1,0,19,73,80,18,4,0,2,2,4,2,0,0,0,1,1,0,0,0,0,0,0,0,1,0]},{"GameId":23,"Score":[40,176,118,18,1,1,27,262,254,87,3,0,7,20,53,24,3,0,0,3,1,2,0,0,1,1,0,0,0,0,0,0,0,0,0,0]},{"GameId":24,"Score":[33,24,11,1,0,0,234,121,41,6,0,0,243,183,41,4,0,0,60,76,10,0,0,0,2,5,1,2,0,0,0,2,0,0,0,0]},{"GameId":25,"Score":[6,77,164,28,1,0,19,33,266,124,9,2,14,41,33,31,5,0,0,3,7,0,0,0,0,1,0,0,0,0,0,0,0,0,0,0]},{"GameId":26,"Score":[2,4,0,1,0,0,54,12,7,1,0,0,269,120,9,0,0,0,131,178,24,1,0,0,22,18,4,0,0,0,4,1,0,0,0,0]},{"GameId":27,"Score":[19,17,2,1,1,0,85,57,32,3,0,0,145,218,24,11,0,0,39,146,32,1,0,1,6,10,7,0,1,0,0,0,3,0,1,0]},{"GameId":28,"Score":[32,38,14,0,1,0,174,118,51,7,0,0,93,229,30,3,0,0,7,39,16,1,0,0,1,2,1,2,1,0,2,0,1,0,0,0]},{"GameId":29,"Score":[15,89,59,4,4,0,36,70,207,42,0,0,22,104,74,80,4,0,2,8,17,2,3,1,0,0,1,1,0,0,0,0,0,0,1,0]},{"GameId":30,"Score":[16,79,17,1,2,0,92,66,110,22,0,0,81,179,44,41,0,0,16,43,26,4,2,0,0,2,1,1,0,0,0,0,0,0,0,0]},{"GameId":31,"Score":[0,0,0,0,0,0,0,0,0,0,0,0,0,0,0,0,0,0,0,0,0,0,0,0,0,0,0,0,0,0,0,0,0,0,0,0]},{"GameId":32,"Score":[13,81,50,13,1,0,96,44,185,29,2,0,48,146,18,26,2,1,7,26,24,3,0,0,0,1,1,1,1,2,1,0,0,0,0,0]}] | F2: [{"GameId":1,"Score":[47,50,19,1,0,0,331,156,52,3,0,2,140,172,13,3,0,1,11,11,4,1,1,1,1,3,2,0,0,0,3,0,0,0,0,0]},{"GameId":2,"Score":[22,55,53,4,0,0,130,190,98,9,0,0,96,205,49,8,0,0,10,40,15,3,1,0,0,8,0,0,0,0,1,0,0,0,1,2]},{"GameId":3,"Score":[79,191,191,27,4,1,60,118,117,52,1,0,16,33,33,5,1,0,5,6,3,0,1,1,1,1,0,1,0,1,0,1,0,0,0,0]},{"GameId":4,"Score":[82,115,101,14,0,0,79,255,127,39,0,0,17,55,43,8,0,0,1,9,2,0,0,0,0,1,1,0,1,0,0,0,0,0,0,1]},{"GameId":5,"Score":[60,137,196,72,6,2,60,125,125,60,7,0,22,28,24,9,0,1,1,5,1,0,0,0,1,1,1,1,0,0,1,3,0,0,1,1]},{"GameId":6,"Score":[82,82,45,2,0,0,113,241,88,21,1,1,49,107,66,6,0,0,15,22,3,0,0,0,1,0,3,0,0,0,0,0,1,0,0,2]},{"GameId":7,"Score":[10,6,3,1,0,1,61,32,7,0,0,0,308,147,17,4,0,0,126,192,15,1,1,0,19,19,3,0,1,0,3,1,1,0,0,0]},{"GameId":8,"Score":[16,15,2,0,0,0,76,107,32,7,0,0,106,312,94,9,0,0,15,109,58,7,1,0,3,5,4,0,0,1,0,0,0,0,0,0]},{"GameId":9,"Score":[30,187,194,41,2,4,36,100,188,60,7,1,6,29,28,8,4,0,0,3,1,0,0,0,0,0,0,0,1,1,0,1,0,0,0,0]},{"GameId":10,"Score":[13,56,25,1,2,0,26,208,167,28,1,0,11,62,228,55,5,0,0,10,21,7,1,0,0,0,1,1,1,1,0,1,1,0,0,0]},{"GameId":11,"Score":[28,79,76,13,1,0,34,179,208,79,4,1,11,61,84,38,8,1,0,9,8,4,2,0,1,1,2,0,0,0,0,0,0,0,1,0]},{"GameId":12,"Score":[9,90,266,160,36,3,5,60,112,114,34,2,5,8,7,10,4,0,0,3,2,0,1,0,0,0,0,1,0,0,0,1,0,0,0,1]},{"GameId":13,"Score":[49,24,1,0,0,0,121,112,22,2,0,0,169,257,39,4,0,0,23,93,31,0,2,0,2,7,2,1,0,1,0,0,0,0,0,0]},{"GameId":14,"Score":[93,204,114,12,1,0,87,182,128,25,1,0,20,44,30,5,0,0,2,1,3,1,0,0,1,0,1,0,0,0,0,0,0,1,0,0]},{"GameId":15,"Score":[55,44,8,0,0,0,182,228,40,4,0,1,68,186,43,6,1,1,13,29,7,0,0,0,0,2,0,0,0,1,0,0,0,0,0,0]},{"GameId":16,"Score":[1,3,0,0,0,0,80,15,5,1,0,0,288,67,4,2,0,0,239,108,2,0,0,0,57,31,1,1,0,1,9,1,0,0,0,0]},{"GameId":17,"Score":[16,107,196,69,18,2,7,78,231,120,14,1,1,5,23,19,2,0,0,1,2,0,0,0,0,0,0,0,0,0,0,0,0,2,0,0]},{"GameId":18,"Score":[42,24,1,0,0,0,236,114,18,1,0,0,213,146,32,2,0,0,37,31,11,0,0,0,2,2,0,1,0,0,0,1,1,0,0,0]},{"GameId":19,"Score":[38,24,11,0,0,0,141,160,46,3,2,0,139,280,45,3,2,0,4,36,11,2,1,0,0,2,3,0,0,0,1,0,0,0,0,1]},{"GameId":20,"Score":[61,133,93,12,1,0,91,258,131,30,2,0,33,61,26,7,0,0,2,5,4,0,0,0,0,1,0,0,0,0,0,0,1,0,0,1]},{"GameId":21,"Score":[24,204,226,50,1,0,8,109,166,85,4,0,5,10,15,11,0,0,1,1,0,0,0,0,0,0,0,0,0,0,0,0,1,1,0,0]},{"GameId":22,"Score":[26,148,115,16,0,0,36,179,183,48,1,0,14,58,68,15,4,0,2,2,2,1,0,0,0,1,1,0,0,0,0,0,0,0,1,0]},{"GameId":23,"Score":[34,150,91,13,1,1,23,230,210,74,3,0,4,13,46,21,3,0,0,2,1,2,0,0,0,1,0,0,0,0,0,0,0,0,0,0]},{"GameId":24,"Score":[25,16,10,1,0,0,198,101,31,4,0,0,210,148,39,3,0,0,51,61,10,0,0,0,2,5,1,2,0,0,0,2,0,0,0,0]},{"GameId":25,"Score":[5,62,144,26,1,0,9,29,217,114,9,2,6,23,25,28,4,0,0,1,5,0,0,0,0,1,0,0,0,0,0,0,0,0,0,0]},{"GameId":26,"Score":[2,4,0,0,0,0,41,9,6,1,0,0,235,94,6,0,0,0,99,151,18,1,0,0,16,18,3,0,0,0,4,1,0,0,0,0]},{"GameId":27,"Score":[15,14,1,1,1,0,67,50,25,2,0,0,119,173,23,10,0,0,36,119,29,1,0,1,4,9,6,0,1,0,0,0,2,0,1,0]},{"GameId":28,"Score":[31,25,9,0,0,0,138,102,39,5,0,0,82,191,28,1,0,0,5,31,15,1,0,0,0,2,1,2,1,0,1,0,1,0,0,0]},{"GameId":29,"Score":[12,73,44,4,2,0,30,61,166,32,0,0,23,87,64,68,3,0,2,5,17,2,1,1,0,0,0,0,0,0,0,0,0,0,1,0]},{"GameId":30,"Score":[12,68,13,1,2,0,69,56,91,15,0,0,65,152,38,35,0,0,14,36,20,5,1,0,0,2,1,1,0,0,0,0,0,0,0,0]},{"GameId":31,"Score":[0,0,0,0,0,0,0,0,0,0,0,0,0,0,0,0,0,0,0,0,0,0,0,0,0,0,0,0,0,0,0,0,0,0,0,0]},{"GameId":32,"Score":[11,65,39,12,0,0,80,36,150,19,2,0,35,124,17,24,2,1,5,24,21,3,0,0,0,1,1,1,1,2,0,0,0,0,0,0]}] | J2: [{"GameId":1,"Score":[47,50,19,1,0,0,331,156,52,3,0,2,140,172,13,3,0,1,11,11,4,1,1,1,1,3,2,0,0,0,3,0,0,0,0,0]},{"GameId":2,"Score":[22,55,53,4,0,0,130,190,98,9,0,0,96,205,49,8,0,0,10,40,15,3,1,0,0,8,0,0,0,0,1,0,0,0,1,2]},{"GameId":3,"Score":[76,187,187,27,4,1,57,118,110,52,1,0,16,32,29,5,1,0,5,7,3,0,1,1,1,1,0,1,0,1,0,1,0,0,0,0]},{"GameId":4,"Score":[81,112,100,14,0,0,78,250,122,35,0,0,17,51,41,8,0,0,1,9,2,0,0,0,0,1,2,0,1,0,0,0,0,0,0,1]},{"GameId":5,"Score":[59,132,189,67,6,2,60,122,121,61,7,0,22,28,23,8,0,1,1,5,2,0,0,0,1,1,1,1,0,0,1,3,0,0,1,1]},{"GameId":6,"Score":[78,77,42,2,0,0,111,236,88,20,1,1,49,104,65,6,0,0,15,21,3,0,0,0,1,0,3,0,0,0,0,0,1,0,0,2]},{"GameId":7,"Score":[9,4,3,1,0,1,60,31,8,0,0,0,299,142,17,4,0,0,120,187,15,1,1,0,19,19,2,0,1,0,3,1,1,0,0,0]},{"GameId":8,"Score":[15,15,2,0,0,0,72,106,31,7,0,0,106,299,91,9,0,0,14,106,55,7,1,0,3,5,4,0,0,1,0,0,0,0,0,0]},{"GameId":9,"Score":[29,183,187,41,2,4,36,98,181,56,7,1,6,28,28,8,4,0,0,3,1,0,0,0,0,0,0,0,0,1,0,1,0,0,0,0]},{"GameId":10,"Score":[13,52,25,1,2,0,25,198,166,28,1,0,11,60,221,54,5,0,0,10,21,6,1,0,0,0,1,1,1,1,0,1,1,0,0,0]},{"GameId":11,"Score":[27,76,76,13,0,0,32,172,204,78,4,1,11,56,82,37,8,1,0,9,9,4,2,0,1,1,2,0,0,0,0,0,0,0,0,0]},{"GameId":12,"Score":[8,90,260,153,35,3,5,57,109,111,32,2,5,7,7,10,4,0,0,3,2,0,1,0,0,0,0,1,0,0,0,1,0,0,0,1]},{"GameId":13,"Score":[47,24,1,0,0,0,119,108,23,2,0,0,160,252,37,4,0,0,23,89,30,0,2,0,2,7,2,1,0,1,0,0,0,0,0,0]},{"GameId":14,"Score":[93,199,111,12,1,0,83,180,122,23,1,0,18,42,29,5,0,0,2,1,3,1,0,0,1,0,1,0,0,0,0,0,0,1,0,0]},{"GameId":15,"Score":[54,42,8,0,0,0,178,220,40,4,0,1,65,182,42,6,0,1,13,27,7,0,0,0,0,2,0,0,0,1,0,0,0,0,0,0]},{"GameId":16,"Score":[0,3,0,0,0,0,77,14,5,1,0,0,282,63,4,2,0,0,233,105,2,0,0,0,56,32,1,0,0,1,8,1,0,0,0,0]},{"GameId":17,"Score":[16,105,191,65,17,2,7,77,224,117,14,1,1,5,22,19,1,0,0,0,2,0,0,0,0,0,0,0,0,0,0,0,0,2,0,0]},{"GameId":18,"Score":[40,24,1,0,0,0,232,111,17,1,0,0,204,143,30,1,0,0,37,30,11,0,0,0,2,2,0,1,0,0,0,1,1,0,0,0]},{"GameId":19,"Score":[38,24,11,0,0,0,136,156,46,3,2,0,135,269,45,3,2,0,5,34,10,2,1,0,0,2,2,0,0,0,1,0,0,0,0,1]},{"GameId":20,"Score":[59,132,89,12,1,0,89,251,123,28,2,0,32,62,26,7,0,0,2,4,4,0,0,0,0,1,0,0,0,0,0,0,1,0,0,1]},{"GameId":21,"Score":[24,202,219,48,1,0,8,104,159,82,4,0,5,10,15,11,0,0,1,1,0,0,0,0,0,0,0,0,0,0,0,0,1,1,0,0]},{"GameId":22,"Score":[26,146,111,15,0,0,35,172,179,48,1,0,14,56,64,14,4,0,2,2,2,1,0,0,0,1,1,0,0,0,0,0,0,0,1,0]},{"GameId":23,"Score":[33,148,90,13,1,1,23,222,204,68,3,0,4,14,46,20,2,0,0,1,1,2,0,0,0,1,0,0,0,0,0,0,0,0,0,0]},{"GameId":24,"Score":[25,15,9,1,0,0,191,103,30,4,0,0,201,143,39,2,0,0,50,60,9,0,0,0,2,5,1,2,0,0,0,2,0,0,0,0]},{"GameId":25,"Score":[5,59,144,26,1,0,8,29,205,114,9,2,6,21,24,27,4,0,0,1,5,0,0,0,0,1,0,0,0,0,0,0,0,0,0,0]},{"GameId":26,"Score":[2,4,0,0,0,0,40,9,6,1,0,0,225,92,6,0,0,0,96,147,17,1,0,0,17,18,3,0,0,0,4,1,0,0,0,0]},{"GameId":27,"Score":[15,13,1,1,1,0,66,50,24,2,0,0,115,168,21,10,0,0,36,114,29,1,0,1,4,9,6,0,0,0,0,0,2,0,1,0]},{"GameId":28,"Score":[28,24,9,0,0,0,136,100,39,5,0,0,76,188,28,1,0,0,5,30,14,1,0,0,0,2,1,2,1,0,1,0,0,0,0,0]},{"GameId":29,"Score":[11,74,41,4,2,0,28,61,163,31,0,0,22,83,61,65,3,0,2,5,17,2,1,1,0,0,0,0,0,0,0,0,0,0,1,0]},{"GameId":30,"Score":[12,65,13,1,2,0,64,54,89,15,0,0,65,149,38,32,0,0,14,36,18,5,1,0,0,2,1,1,0,0,0,0,0,0,0,0]},{"GameId":31,"Score":[0,0,0,0,0,0,0,0,0,0,0,0,0,0,0,0,0,0,0,0,0,0,0,0,0,0,0,0,0,0,0,0,0,0,0,0]},{"GameId":32,"Score":[10,64,39,11,0,0,78,36,143,20,2,0,35,120,16,23,2,1,5,24,19,3,0,0,0,1,1,1,1,2,0,0,0,0,0,0]}] | L2: [{"GameId":1,"Score":[47,50,19,1,0,0,329,145,52,3,0,2,140,172,13,3,0,1,11,11,4,1,1,1,1,3,2,0,0,0,3,0,0,0,0,0]},{"GameId":2,"Score":[22,53,50,4,0,0,124,186,95,8,0,0,93,195,49,8,0,0,10,37,15,3,1,0,0,0,0,0,0,0,1,0,0,0,1,2]},{"GameId":3,"Score":[72,179,182,27,4,1,55,111,106,51,1,0,15,31,29,4,0,0,5,7,3,0,1,1,1,1,0,1,0,1,0,1,0,0,0,0]},{"GameId":4,"Score":[81,109,94,14,0,0,76,246,114,33,0,0,15,45,40,7,0,0,1,9,2,0,0,0,0,1,2,0,1,0,0,0,0,0,0,1]},{"GameId":5,"Score":[58,127,179,65,5,2,60,116,115,59,7,0,22,28,22,8,0,1,1,4,2,0,0,0,1,1,1,1,0,0,1,3,0,0,1,1]},{"GameId":6,"Score":[77,73,36,2,0,0,107,229,81,18,1,1,47,103,64,6,0,0,15,21,3,0,0,0,1,0,3,0,0,0,0,0,1,0,0,2]},{"GameId":7,"Score":[9,4,3,1,0,1,58,30,7,0,0,0,286,138,16,4,0,0,119,175,15,1,1,0,18,19,2,0,1,0,3,1,1,0,0,0]},{"GameId":8,"Score":[15,14,2,0,0,0,71,103,27,7,0,0,103,288,89,9,0,0,13,101,52,7,1,0,2,5,4,0,0,1,0,0,0,0,0,0]},{"GameId":9,"Score":[28,180,179,40,2,4,35,93,175,55,7,1,5,27,26,8,3,0,0,2,1,0,0,0,0,0,0,0,0,1,0,1,0,0,0,0]},{"GameId":10,"Score":[13,50,24,1,2,0,25,191,160,27,1,0,10,56,216,51,5,0,0,10,19,6,1,0,0,0,1,1,1,1,0,1,1,0,0,0]},{"GameId":11,"Score":[28,74,73,13,0,0,31,164,197,73,4,1,11,55,80,36,8,1,0,8,8,4,1,0,1,1,2,0,0,0,0,0,0,0,0,0]},{"GameId":12,"Score":[8,89,250,150,34,3,5,56,105,103,30,2,4,7,6,10,4,0,0,3,2,0,1,0,0,0,0,1,0,0,0,1,0,0,0,1]},{"GameId":13,"Score":[46,22,1,0,0,0,117,102,23,2,0,0,150,245,37,4,0,0,22,84,30,0,2,0,2,7,2,1,0,1,0,0,0,0,0,0]},{"GameId":14,"Score":[89,194,105,12,1,0,77,179,115,22,1,0,17,40,28,5,0,0,2,1,3,1,0,0,1,0,1,0,0,0,0,0,0,1,0,0]},{"GameId":15,"Score":[52,40,8,0,0,0,170,211,38,3,0,1,64,178,41,6,0,1,13,26,6,0,0,0,0,2,0,0,0,1,0,0,0,0,0,0]},{"GameId":16,"Score":[0,3,0,0,0,0,75,13,5,1,0,0,276,55,4,2,0,0,228,100,2,0,0,0,54,30,1,0,0,1,7,1,0,0,0,0]},{"GameId":17,"Score":[16,102,181,63,17,2,7,75,215,114,14,1,1,5,20,18,1,0,0,0,2,0,0,0,0,0,0,0,0,0,0,0,0,2,0,0]},{"GameId":18,"Score":[37,24,1,0,0,0,229,102,17,1,0,0,196,139,28,1,0,0,36,29,11,0,0,0,2,1,0,1,0,0,0,1,1,0,0,0]},{"GameId":19,"Score":[38,22,10,0,0,0,132,151,44,3,2,0,134,257,45,1,2,0,5,30,9,2,1,0,0,2,2,0,0,0,1,0,0,0,0,1]},{"GameId":20,"Score":[58,128,83,11,0,0,88,241,120,24,2,0,31,61,26,7,0,0,2,4,3,0,0,0,0,1,0,0,0,0,0,0,1,0,0,1]},{"GameId":21,"Score":[24,196,205,47,1,0,8,101,154,79,4,0,5,10,15,11,0,0,1,1,0,0,0,0,0,0,0,0,0,0,0,0,1,1,0,0]},{"GameId":22,"Score":[25,141,109,15,0,0,34,167,172,47,1,0,14,54,57,13,4,0,2,2,2,1,0,0,0,1,1,0,0,0,0,0,0,0,1,0]},{"GameId":23,"Score":[33,145,88,13,1,1,20,215,196,64,3,0,4,13,44,20,2,0,0,1,1,0,0,0,0,1,0,0,0,0,0,0,0,0,0,0]},{"GameId":24,"Score":[25,15,9,1,0,0,181,100,29,3,0,0,193,140,37,2,0,0,50,56,9,0,0,0,2,5,1,2,0,0,0,2,0,0,0,0]},{"GameId":25,"Score":[5,57,143,26,0,0,7,28,191,113,9,2,5,21,24,25,2,0,0,1,5,0,0,0,0,1,0,0,0,0,0,0,0,0,0,0]},{"GameId":26,"Score":[2,4,0,0,0,0,34,9,5,1,0,0,218,91,6,0,0,0,93,143,17,1,0,0,15,18,2,0,0,0,4,0,0,0,0,0]},{"GameId":27,"Score":[15,13,0,1,1,0,65,50,24,2,0,0,112,155,21,10,0,0,35,109,28,1,0,1,4,8,6,0,0,0,0,0,2,0,1,0]},{"GameId":28,"Score":[27,24,9,0,0,0,133,95,39,5,0,0,72,179,27,1,0,0,4,28,14,1,0,0,0,2,1,1,1,0,1,0,0,0,0,0]},{"GameId":29,"Score":[11,70,40,4,2,0,25,59,157,30,0,0,22,80,57,65,3,0,2,5,16,2,1,1,0,0,0,0,0,0,0,0,0,0,1,0]},{"GameId":30,"Score":[12,62,13,1,2,0,59,53,86,14,0,0,62,145,38,27,0,0,14,36,18,5,1,0,0,2,1,1,0,0,0,0,0,0,0,0]},{"GameId":31,"Score":[0,0,0,0,0,0,0,0,0,0,0,0,0,0,0,0,0,0,0,0,0,0,0,0,0,0,0,0,0,0,0,0,0,0,0,0]},{"GameId":32,"Score":[10,64,39,11,0,0,75,31,135,19,2,0,33,118,16,22,1,1,5,22,19,3,0,0,0,1,1,1,1,2,0,0,0,0,0,0]}] | M2: [{"GameId":1,"Score":[47,51,19,1,0,0,328,142,52,3,0,2,141,171,13,3,0,1,11,10,4,1,1,1,1,3,2,0,0,0,3,0,0,0,0,0]},{"GameId":2,"Score":[22,53,50,4,0,0,124,187,95,8,0,0,92,195,48,8,0,0,10,37,15,3,1,0,0,0,0,0,0,0,1,0,0,0,1,2]},{"GameId":3,"Score":[71,179,182,28,4,1,55,110,106,51,1,0,15,31,29,4,0,0,5,7,3,0,1,1,1,1,0,1,0,1,0,1,0,0,0,0]},{"GameId":4,"Score":[81,109,93,14,0,0,77,245,114,33,0,0,15,45,40,7,0,0,1,9,2,0,0,0,0,1,2,0,1,0,0,0,0,0,0,1]},{"GameId":5,"Score":[58,127,179,64,5,2,60,116,115,59,7,0,22,28,22,8,0,1,1,4,2,0,0,0,1,1,1,1,0,0,1,3,0,0,1,1]},{"GameId":6,"Score":[78,73,36,2,0,0,106,229,80,18,1,1,47,103,64,6,0,0,15,21,3,0,0,0,1,0,3,0,0,0,0,0,1,0,0,2]},{"GameId":7,"Score":[9,4,3,1,0,1,58,29,7,0,0,0,287,139,16,4,0,0,119,174,14,1,1,0,18,19,2,0,1,0,3,1,1,0,0,0]},{"GameId":8,"Score":[15,14,2,0,0,0,71,102,26,7,0,0,103,288,89,9,0,0,13,102,52,7,1,0,2,5,4,0,0,1,0,0,0,0,0,0]},{"GameId":9,"Score":[29,180,178,40,2,4,35,93,175,55,7,1,5,26,26,8,3,0,0,2,1,0,0,0,0,0,0,0,0,1,0,1,0,0,0,0]},{"GameId":10,"Score":[13,50,24,1,2,0,25,191,160,27,1,0,10,56,217,51,4,0,0,10,18,6,1,0,0,0,1,1,1,1,0,1,1,0,0,0]},{"GameId":11,"Score":[28,74,72,13,0,0,31,164,197,73,4,1,11,55,81,35,8,1,0,8,8,4,1,0,1,1,2,0,0,0,0,0,0,0,0,0]},{"GameId":12,"Score":[8,88,250,151,34,3,5,56,104,103,30,2,4,7,6,10,4,0,0,3,2,0,1,0,0,0,0,1,0,0,0,1,0,0,0,1]},{"GameId":13,"Score":[46,22,1,0,0,0,118,100,23,2,0,0,150,245,37,4,0,0,22,84,30,0,2,0,2,7,2,1,0,1,0,0,0,0,0,0]},{"GameId":14,"Score":[89,193,105,13,1,0,78,178,115,22,1,0,17,39,28,5,0,0,2,1,3,1,0,0,1,0,1,0,0,0,0,0,0,1,0,0]},{"GameId":15,"Score":[52,40,8,0,0,0,170,210,37,3,0,1,64,179,41,6,0,1,13,26,6,0,0,0,0,2,0,0,0,1,0,0,0,0,0,0]},{"GameId":16,"Score":[0,3,0,0,0,0,75,13,5,1,0,0,276,55,4,2,0,0,227,100,2,0,0,0,54,30,1,0,0,1,7,1,0,0,0,0]},{"GameId":17,"Score":[16,102,181,63,17,2,7,75,215,114,14,1,1,5,19,18,1,0,0,0,2,0,0,0,0,0,0,0,0,0,0,0,0,2,0,0]},{"GameId":18,"Score":[37,24,1,0,0,0,230,101,17,1,0,0,195,139,28,1,0,0,36,29,11,0,0,0,2,1,0,1,0,0,0,1,1,0,0,0]},{"GameId":19,"Score":[38,22,11,0,0,0,132,151,43,3,2,0,134,258,45,1,2,0,4,30,8,2,1,0,0,2,2,0,0,0,1,0,0,0,0,1]},{"GameId":20,"Score":[58,128,82,11,0,0,89,239,120,24,2,0,31,61,27,7,0,0,2,4,3,0,0,0,0,1,0,0,0,0,0,0,1,0,0,1]},{"GameId":21,"Score":[24,197,204,47,1,0,8,101,153,79,4,0,5,10,15,11,0,0,1,1,0,0,0,0,0,0,0,0,0,0,0,0,1,1,0,0]},{"GameId":22,"Score":[25,141,110,15,0,0,34,167,172,47,1,0,14,53,56,13,4,0,2,2,2,1,0,0,0,1,1,0,0,0,0,0,0,0,1,0]},{"GameId":23,"Score":[33,145,89,13,1,1,20,215,194,64,3,0,4,13,44,20,2,0,0,1,1,0,0,0,0,1,0,0,0,0,0,0,0,0,0,0]},{"GameId":24,"Score":[25,15,9,1,0,0,181,99,29,3,0,0,193,140,37,2,0,0,51,56,9,0,0,0,2,4,1,2,0,0,0,2,0,0,0,0]},{"GameId":25,"Score":[5,57,143,26,0,0,7,28,191,112,9,2,5,21,24,25,2,0,0,1,5,0,0,0,0,1,0,0,0,0,0,0,0,0,0,0]},{"GameId":26,"Score":[2,4,0,0,0,0,34,9,5,1,0,0,218,91,6,0,0,0,93,142,17,1,0,0,15,18,2,0,0,0,4,0,0,0,0,0]},{"GameId":27,"Score":[15,13,0,1,1,0,65,49,24,2,0,0,112,155,21,10,0,0,35,109,28,1,0,1,4,8,6,0,0,0,0,0,2,0,1,0]},{"GameId":28,"Score":[27,24,9,0,0,0,133,95,39,5,0,0,72,179,27,1,0,0,4,27,14,1,0,0,0,2,1,1,1,0,1,0,0,0,0,0]},{"GameId":29,"Score":[11,70,40,4,2,0,25,59,156,30,0,0,22,80,57,65,3,0,2,5,16,2,1,1,0,0,0,0,0,0,0,0,0,0,1,0]},{"GameId":30,"Score":[12,62,13,1,2,0,59,53,86,14,0,0,62,145,38,27,0,0,14,36,18,5,0,0,0,2,1,1,0,0,0,0,0,0,0,0]},{"GameId":31,"Score":[0,0,0,0,0,0,0,0,0,0,0,0,0,0,0,0,0,0,0,0,0,0,0,0,0,0,0,0,0,0,0,0,0,0,0,0]},{"GameId":32,"Score":[10,64,39,11,0,0,75,31,135,19,2,0,33,118,16,21,1,1,5,22,19,3,0,0,0,1,1,1,1,2,0,0,0,0,0,0]}] | N2: [{"GameId":1,"Score":[1,2,0,0,0,0,4,1,1,1,0,0,1,1,0,0,0,0,0,0,0,0,0,0,0,1,0,0,0,0,0,0,0,0,0,0]},{"GameId":2,"Score":[2,0,2,0,0,0,1,2,0,0,0,0,1,2,1,0,0,0,0,0,0,0,0,0,0,0,0,0,0,0,0,0,0,0,0,0]},{"GameId":3,"Score":[2,2,2,0,0,0,0,2,0,0,0,0,0,0,1,0,0,0,0,0,0,0,0,0,0,0,0,0,0,0,0,0,0,0,0,0]},{"GameId":4,"Score":[0,1,0,0,0,0,0,5,1,1,0,0,0,0,0,1,0,0,0,0,0,0,0,0,0,0,0,0,0,0,0,0,0,0,0,0]},{"GameId":5,"Score":[1,1,2,0,0,0,2,2,0,1,0,0,0,0,0,0,0,0,0,0,0,0,0,0,0,0,0,0,0,0,0,0,0,0,0,0]},{"GameId":6,"Score":[1,2,0,0,0,0,1,1,1,0,0,0,1,0,2,0,0,0,0,0,0,0,0,0,0,0,0,0,0,0,0,0,0,0,0,0]},{"GameId":7,"Score":[1,0,0,0,0,0,0,1,0,0,0,0,2,5,0,0,0,0,0,2,0,0,0,0,0,0,0,0,0,0,0,0,0,0,0,0]},{"GameId":8,"Score":[1,0,0,0,0,0,0,1,1,0,0,0,1,2,3,0,0,0,0,2,0,0,0,0,0,0,0,0,0,0,0,0,0,0,0,0]},{"GameId":9,"Score":[1,2,2,1,0,0,0,0,1,1,0,0,1,0,0,0,0,0,0,0,0,0,0,0,0,0,0,0,0,0,0,0,0,0,0,0]},{"GameId":10,"Score":[2,0,1,0,0,0,0,1,4,0,0,0,0,0,1,0,0,0,0,0,0,0,0,0,0,0,0,0,0,0,0,0,0,0,0,0]},{"GameId":11,"Score":[1,0,0,0,0,0,0,4,0,0,0,0,1,0,3,0,0,0,0,0,0,0,0,0,0,0,0,0,0,0,0,0,0,0,0,0]},{"GameId":12,"Score":[1,0,2,1,0,0,0,1,1,2,0,0,0,0,0,1,0,0,0,0,0,0,0,0,0,0,0,0,0,0,0,0,0,0,0,0]},{"GameId":13,"Score":[1,0,0,0,0,0,2,2,0,0,0,0,0,6,0,0,0,0,0,1,1,0,0,0,0,0,0,0,0,0,0,0,0,0,0,0]},{"GameId":14,"Score":[4,2,0,0,0,0,2,2,1,0,0,0,0,0,0,0,0,0,0,0,0,0,0,0,0,0,0,0,0,0,0,0,0,0,0,0]},{"GameId":15,"Score":[0,1,0,0,0,0,1,1,0,0,0,0,1,2,2,0,0,0,0,0,0,0,0,0,0,1,0,0,0,0,0,0,0,0,0,0]},{"GameId":16,"Score":[0,0,0,0,0,0,1,0,0,0,0,0,4,0,0,0,0,0,2,0,0,0,0,0,1,0,0,0,0,0,0,0,0,0,0,0]},{"GameId":17,"Score":[0,2,2,0,0,0,0,2,0,2,0,0,0,0,0,0,0,0,0,0,0,0,0,0,0,0,0,0,0,0,0,0,0,0,0,0]},{"GameId":18,"Score":[0,0,0,0,0,0,5,1,0,0,0,0,1,1,0,0,0,0,0,0,0,0,0,0,0,0,0,0,0,0,0,0,0,0,0,0]},{"GameId":19,"Score":[2,0,0,0,0,0,3,1,1,0,0,0,1,0,2,0,0,0,0,0,0,0,0,0,0,0,0,0,0,0,0,0,0,0,0,0]},{"GameId":20,"Score":[1,2,1,0,0,0,1,1,1,1,0,0,2,0,0,0,0,0,0,0,0,0,0,0,0,0,0,0,0,0,0,0,0,0,0,0]},{"GameId":21,"Score":[0,3,2,1,0,0,0,3,0,0,0,0,0,0,0,0,0,0,0,0,0,0,0,0,0,0,0,0,0,0,0,0,0,0,0,0]},{"GameId":22,"Score":[0,2,0,0,0,0,0,2,2,0,0,0,0,1,1,0,0,0,0,0,0,0,0,0,0,0,0,0,0,0,0,0,0,0,0,0]},{"GameId":23,"Score":[0,1,0,0,1,0,0,4,2,1,0,0,0,0,0,0,0,0,0,0,0,0,0,0,0,0,0,0,0,0,0,0,0,0,0,0]},{"GameId":24,"Score":[0,0,0,0,0,0,4,1,0,0,0,0,1,2,0,0,0,0,0,0,0,0,0,0,0,0,0,0,0,0,0,0,0,0,0,0]},{"GameId":25,"Score":[0,3,0,0,0,0,0,0,2,1,1,0,0,0,0,0,0,0,0,0,0,0,0,0,0,0,0,0,0,0,0,0,0,0,0,0]},{"GameId":26,"Score":[0,0,0,0,0,0,0,0,0,0,0,0,2,1,0,0,0,0,2,2,0,0,0,0,0,0,0,0,0,0,0,0,0,0,0,0]},{"GameId":27,"Score":[0,0,0,0,0,0,0,0,0,0,0,0,3,1,0,0,0,0,0,3,0,0,0,0,0,0,0,0,0,0,0,0,0,0,0,0]},{"GameId":28,"Score":[0,0,0,0,0,0,0,3,1,1,0,0,0,2,0,0,0,0,0,0,0,0,0,0,0,0,0,0,0,0,0,0,0,0,0,0]},{"GameId":29,"Score":[0,0,0,0,0,0,1,1,1,1,0,0,0,0,1,2,0,0,0,0,0,0,0,0,0,0,0,0,0,0,0,0,0,0,0,0]},{"GameId":30,"Score":[0,0,0,0,0,0,2,0,0,0,0,0,2,2,0,0,0,0,0,0,0,0,0,0,0,0,0,1,0,0,0,0,0,0,0,0]},{"GameId":31,"Score":[0,0,0,0,0,0,0,0,0,0,0,0,0,0,0,0,0,0,0,0,0,0,0,0,0,0,0,0,0,0,0,0,0,0,0,0]},{"GameId":32,"Score":[1,0,0,0,0,0,0,0,2,1,0,0,1,1,0,0,0,0,0,1,0,0,0,0,0,0,0,0,0,0,0,0,0,0,0,0]}] | O2: [{"GameId":1,"Score":[1,1,0,0,0,0,1,2,0,0,0,0,1,0,0,0,0,0,0,0,0,0,0,0,0,0,0,0,0,0,0,0,0,0,0,0]},{"GameId":2,"Score":[0,0,1,0,0,0,1,1,0,0,0,0,1,2,0,0,0,0,0,0,0,0,0,0,0,0,0,0,0,0,0,0,0,0,0,0]},{"GameId":3,"Score":[0,2,1,0,0,0,0,2,0,0,0,0,0,0,0,0,0,0,0,0,0,0,0,0,0,0,0,0,0,0,0,0,0,0,0,0]},{"GameId":4,"Score":[0,1,0,0,0,0,0,3,0,0,0,0,0,0,0,1,0,0,0,0,0,0,0,0,0,0,0,0,0,0,0,0,0,0,0,0]},{"GameId":5,"Score":[0,0,2,0,0,0,2,1,0,0,0,0,0,0,0,0,0,0,0,0,0,0,0,0,0,0,0,0,0,0,0,0,0,0,0,0]},{"GameId":6,"Score":[0,1,0,0,0,0,1,0,1,0,0,0,0,0,2,0,0,0,0,0,0,0,0,0,0,0,0,0,0,0,0,0,0,0,0,0]},{"GameId":7,"Score":[1,0,0,0,0,0,0,1,0,0,0,0,2,2,0,0,0,0,0,0,0,0,0,0,0,0,0,0,0,0,0,0,0,0,0,0]},{"GameId":8,"Score":[1,0,0,0,0,0,0,0,1,0,0,0,0,1,1,0,0,0,0,2,0,0,0,0,0,0,0,0,0,0,0,0,0,0,0,0]},{"GameId":9,"Score":[1,1,2,0,0,0,0,0,0,0,0,0,1,0,0,0,0,0,0,0,0,0,0,0,0,0,0,0,0,0,0,0,0,0,0,0]},{"GameId":10,"Score":[1,0,0,0,0,0,0,1,3,0,0,0,0,0,0,0,0,0,0,0,0,0,0,0,0,0,0,0,0,0,0,0,0,0,0,0]},{"GameId":11,"Score":[1,0,0,0,0,0,0,3,0,0,0,0,0,0,1,0,0,0,0,0,0,0,0,0,0,0,0,0,0,0,0,0,0,0,0,0]},{"GameId":12,"Score":[1,0,1,1,0,0,0,1,1,0,0,0,0,0,0,0,0,0,0,0,0,0,0,0,0,0,0,0,0,0,0,0,0,0,0,0]},{"GameId":13,"Score":[1,0,0,0,0,0,1,1,0,0,0,0,0,4,0,0,0,0,0,1,0,0,0,0,0,0,0,0,0,0,0,0,0,0,0,0]},{"GameId":14,"Score":[2,2,0,0,0,0,1,1,0,0,0,0,0,0,0,0,0,0,0,0,0,0,0,0,0,0,0,0,0,0,0,0,0,0,0,0]},{"GameId":15,"Score":[0,1,0,0,0,0,1,0,0,0,0,0,0,2,0,0,0,0,0,0,0,0,0,0,0,1,0,0,0,0,0,0,0,0,0,0]},{"GameId":16,"Score":[0,0,0,0,0,0,0,0,0,0,0,0,3,0,0,0,0,0,1,0,0,0,0,0,0,0,0,0,0,0,0,0,0,0,0,0]},{"GameId":17,"Score":[0,1,1,0,0,0,0,1,0,1,0,0,0,0,0,0,0,0,0,0,0,0,0,0,0,0,0,0,0,0,0,0,0,0,0,0]},{"GameId":18,"Score":[0,0,0,0,0,0,2,1,0,0,0,0,1,0,0,0,0,0,0,0,0,0,0,0,0,0,0,0,0,0,0,0,0,0,0,0]},{"GameId":19,"Score":[1,0,0,0,0,0,2,1,1,0,0,0,0,0,0,0,0,0,0,0,0,0,0,0,0,0,0,0,0,0,0,0,0,0,0,0]},{"GameId":20,"Score":[0,1,1,0,0,0,1,1,0,0,0,0,1,0,0,0,0,0,0,0,0,0,0,0,0,0,0,0,0,0,0,0,0,0,0,0]},{"GameId":21,"Score":[0,2,1,1,0,0,0,1,0,0,0,0,0,0,0,0,0,0,0,0,0,0,0,0,0,0,0,0,0,0,0,0,0,0,0,0]},{"GameId":22,"Score":[0,1,0,0,0,0,0,1,2,0,0,0,0,0,0,0,0,0,0,0,0,0,0,0,0,0,0,0,0,0,0,0,0,0,0,0]},{"GameId":23,"Score":[0,0,0,0,1,0,0,3,1,0,0,0,0,0,0,0,0,0,0,0,0,0,0,0,0,0,0,0,0,0,0,0,0,0,0,0]},{"GameId":24,"Score":[0,0,0,0,0,0,2,1,0,0,0,0,1,1,0,0,0,0,0,0,0,0,0,0,0,0,0,0,0,0,0,0,0,0,0,0]},{"GameId":25,"Score":[0,1,0,0,0,0,0,0,1,1,0,0,0,0,0,0,0,0,0,0,0,0,0,0,0,0,0,0,0,0,0,0,0,0,0,0]},{"GameId":26,"Score":[0,0,0,0,0,0,0,0,0,0,0,0,0,1,0,0,0,0,1,1,0,0,0,0,0,0,0,0,0,0,0,0,0,0,0,0]},{"GameId":27,"Score":[0,0,0,0,0,0,0,0,0,0,0,0,2,0,0,0,0,0,0,1,0,0,0,0,0,0,0,0,0,0,0,0,0,0,0,0]},{"GameId":28,"Score":[0,0,0,0,0,0,0,1,1,0,0,0,0,1,0,0,0,0,0,0,0,0,0,0,0,0,0,0,0,0,0,0,0,0,0,0]},{"GameId":29,"Score":[0,0,0,0,0,0,1,0,1,0,0,0,0,0,0,1,0,0,0,0,0,0,0,0,0,0,0,0,0,0,0,0,0,0,0,0]},{"GameId":30,"Score":[0,0,0,0,0,0,1,0,0,0,0,0,1,1,0,0,0,0,0,0,0,0,0,0,0,0,0,0,0,0,0,0,0,0,0,0]},{"GameId":31,"Score":[0,0,0,0,0,0,0,0,0,0,0,0,0,0,0,0,0,0,0,0,0,0,0,0,0,0,0,0,0,0,0,0,0,0,0,0]},{"GameId":32,"Score":[1,0,0,0,0,0,0,0,2,1,0,0,0,0,0,0,0,0,0,0,0,0,0,0,0,0,0,0,0,0,0,0,0,0,0,0]}]
B3: {"success":6,"rank":367,"total":2757} | C3: {"success":6,"rank":253,"total":2685} | D3: {"success":0,"rank":2338,"total":2338} | E3: {"success":0,"rank":2058,"total":2058} | F3: {"success":0,"rank":2018,"total":2018} | G3: {"success":0,"rank":2006,"total":2006} | H3: {"success":0,"rank":1966,"total":1966} | I3: {"success":0,"rank":1935,"total":1935} | K3: {"success":0,"rank":1932,"total":1932} | L3: {"success":0,"rank":1932,"total":1932} | P3: {"success":0,"rank":3,"total":3}
